account_party,address,code,date,document_number,expense_code_name,expense_code_name_short,id,party_cell,party_cell_code,party_cell_geoobject,purpose,source_bank_account_number,source_bank_account_type,sum,target_legal_personality,target_legal_personality_code,target_type
Самопоміч,"Київ, вулиця Єреванська, 1",70,2018-12-29,TR.2504263.69352.2667,Банківські послуги,Інші витрати,170640,Київська обласна організація,39922721,Київська область,"Плата за розрахункове обслуговування по рахунку № 26007924419329.980 за період з 01\12\2018 по 31\12\2018 зг. договору № 2016/РКО/060-077 від 2016-10-13р, без ПДВ",26007924419329,current,40.00,"АБ ""Укргазбанк""",23697280,юридична особа
Самопоміч,"Київ, вулиця Єреванська, 1",70,2018-12-29,TR.2498580.47329.2667,Банківські послуги,Інші витрати,170540,Дніпровська міська організація,39959985,Дніпропетровська область,"Плата за розрахункове обслуговування по рахунку № 26003924419196.980 за перiод з 2018-12-01 по 2018-12-31 зг. договору № 2016/РКО/175-183 від 2016-10-10 , без ПДВ",26003924419196,current,40.00,"АБ ""Укргазбанк""",23697280,юридична особа
Самопоміч,"Одеська область, Одеса, вулиця Канатна, 1",70,2018-12-28,276238,Банківські послуги,Інші витрати,170649,Одеська міська організація,39923299,Одеська область,За розрахункове обслуговування (без наявності оборотів на рахунку) зг Договору №26/80475/980 від 2015-09-18р. згідно тарифів банка. Без ПДВ,26007010353673,current,20.00,"ПАТ ""Банк Восток""",26237202,юридична особа
Самопоміч,"Київ, вулиця Миколи Лєскова, 9",70,2018-12-28,bn,Банківські послуги,Інші витрати,170552,Івано-Франківська обласна організація,39927768,Івано-Франківська область,"Комісія за користування пакетом послуг з 29.11.18 по 27.12.18 по рах №26000492575(UAH), без ПДВ",26000492575,current,80.00,"АТ ""Райффайзен банк Аваль""",14305909,юридична особа
Самопоміч,"Львівська область, Моршин, вулиця Геологів, 12",79,2018-12-28,286,"Оренда будинків і приміщень та експлуатаційні витрати (прибирання, страхування орендованих будинків, охорона, сигналізація, ремонт, вивіз сміття, тощо)",Оренда нерухомості,166483,Центральний офіс,38558365,Україна,"Оплата за питну воду, згiдно рахунку-фактури N 3300070143 вiд 16.11.18 р. в т.ч. ПДВ 32.00 грн.",26001053732835,current,192.00,ТОВ ʼІДС АКВА СЕРВІСʼ,42201052,юридична особа
Самопоміч,"Львівська область, Моршин, вулиця Геологів, 12",79,2018-12-28,288,"Оренда будинків і приміщень та експлуатаційні витрати (прибирання, страхування орендованих будинків, охорона, сигналізація, ремонт, вивіз сміття, тощо)",Оренда нерухомості,166482,Центральний офіс,38558365,Україна,"Оплата за питну воду та господарськi товари, згiдно рахунку-фактури N 330007489 вiд 23.11.18 р. в т.ч. ПДВ 438.20грн.",26001053732835,current,2629.20,ТОВ ʼІДС АКВА СЕРВІСʼ,42201052,юридична особа
Самопоміч,"Львівська область, Моршин, вулиця Геологів, 12",79,2018-12-28,287,"Оренда будинків і приміщень та експлуатаційні витрати (прибирання, страхування орендованих будинків, охорона, сигналізація, ремонт, вивіз сміття, тощо)",Оренда нерухомості,166481,Центральний офіс,38558365,Україна,"Оплата за питну воду та господарськi товари, згiдно рахунку-фактури N 3300062812 вiд 06.11.18 р. в т.ч. ПДВ 112.60грн.",26001053732835,current,675.60,ТОВ ʼІДС АКВА СЕРВІСʼ,42201052,юридична особа
Самопоміч,"Київ, вулиця Михайла Грушевського, 1Д",70,2018-12-28,CSO1OL1YTY,Банківські послуги,Інші витрати,166480,Центральний офіс,38558365,Україна,"Комiсiя за виконання платежiв в нацiональнiй валютi, згiдно з вiдкритою офертою банку N б/н вiд 2018-04-23 та тарифiв банку, без ПДВ.",26001053732835,current,3.00,"ПАТ КБ ""Приватбанк""",14360570,юридична особа
Самопоміч,"Київ, вулиця Михайла Грушевського, 1Д",70,2018-12-28,CSO1OL11PY,Банківські послуги,Інші витрати,166479,Центральний офіс,38558365,Україна,"Комiсiя за виконання платежiв в нацiональнiй валютi, згiдно з вiдкритою офертою банку N б/н вiд 2018-04-23 та тарифiв банку, без ПДВ.",26001053732835,current,3.00,"ПАТ КБ ""Приватбанк""",14360570,юридична особа
Самопоміч,"Київ, вулиця Михайла Грушевського, 1Д",70,2018-12-28,CSO1OL14LY,Банківські послуги,Інші витрати,166478,Центральний офіс,38558365,Україна,"Комiсiя за виконання платежiв в нацiональнiй валютi, згiдно з вiдкритою офертою банку N б/н вiд 2018-04-23 та тарифiв банку, без ПДВ.",26001053732835,current,3.00,"ПАТ КБ ""Приватбанк""",14360570,юридична особа
Самопоміч,"Київ, вулиця Михайла Грушевського, 1Д",70,2018-12-28,CSO1OL176Y,Банківські послуги,Інші витрати,166477,Центральний офіс,38558365,Україна,"Комiсiя за виконання платежiв в нацiональнiй валютi, згiдно з вiдкритою офертою банку N б/н вiд 2018-04-23 та тарифiв банку, без ПДВ.",26001053732835,current,3.00,"ПАТ КБ ""Приватбанк""",14360570,юридична особа
Самопоміч,"Київ, вулиця Михайла Грушевського, 1Д",70,2018-12-28,CSO1OL1A8Y,Банківські послуги,Інші витрати,166476,Центральний офіс,38558365,Україна,"Комiсiя за виконання платежiв в нацiональнiй валютi, згiдно з вiдкритою офертою банку N б/н вiд 2018-04-23 та тарифiв банку, без ПДВ.",26001053732835,current,3.00,"ПАТ КБ ""Приватбанк""",14360570,юридична особа
Самопоміч,"Київ, вулиця Михайла Грушевського, 1Д",70,2018-12-28,CSO1OL19FY,Банківські послуги,Інші витрати,166475,Центральний офіс,38558365,Україна,"Комiсiя за виконання платежiв в нацiональнiй валютi, згiдно з вiдкритою офертою банку N б/н вiд 2018-04-23 та тарифiв банку, без ПДВ.",26001053732835,current,3.00,"ПАТ КБ ""Приватбанк""",14360570,юридична особа
Самопоміч,"Київ, вулиця Михайла Грушевського, 1Д",70,2018-12-28,CSO1OKJLLY,Банківські послуги,Інші витрати,166474,Центральний офіс,38558365,Україна,"Комiсiя за виконання платежiв в нацiональнiй валютi, згiдно з вiдкритою офертою банку N б/н вiд 2018-04-23 та тарифiв банку, без ПДВ.",26001053732835,current,3.00,"ПАТ КБ ""Приватбанк""",14360570,юридична особа
Самопоміч,"Київ, вулиця Михайла Грушевського, 1Д",70,2018-12-28,CSO1OKSZ9Y,Банківські послуги,Інші витрати,166473,Центральний офіс,38558365,Україна,"Комiсiя за виконання платежiв в нацiональнiй валютi, згiдно з вiдкритою офертою банку N б/н вiд 2018-04-23 та тарифiв банку, без ПДВ.",26001053732835,current,3.00,"ПАТ КБ ""Приватбанк""",14360570,юридична особа
Самопоміч,"Київ, вулиця Михайла Грушевського, 1Д",70,2018-12-28,CSO1OKT9WY,Банківські послуги,Інші витрати,166472,Центральний офіс,38558365,Україна,"Комiсiя за виконання платежiв в нацiональнiй валютi, згiдно з вiдкритою офертою банку N б/н вiд 2018-04-23 та тарифiв банку, без ПДВ.",26001053732835,current,3.00,"ПАТ КБ ""Приватбанк""",14360570,юридична особа
Самопоміч,"Київська обл., Миронівський район, Миронівка, вулиця Соборності, 58а",43,2018-12-28,289,Інші витрати,Інші витрати,166471,Центральний офіс,38558365,Україна,"Вiдрахування з доходiв боржника Бондаренка Iгора Васильовича iпн: 3122507172, згiдно постанови ВП N 54401702 вiд 2018-08-14 р.",26001053732835,current,21.53,Миронівський РВДВ служби Головного ТУЮ у Київській,34970119,юридична особа
Самопоміч,"Київ, вулиця Михайла Грушевського, 1Д",70,2018-12-28,296,Банківські послуги,Інші витрати,166470,Центральний офіс,38558365,Україна,Банкiвська комiсiя за виплату зарплати та розрахункових працiвникiв за грудень 2018 р.,26001053732835,current,440.59,"ПАТ КБ ""Приватбанк""",14360570,юридична особа
Самопоміч,"Львівська область, Львів, вулиця Конотопська, 6",63,2018-12-28,291,Податок на доходи,Податкові платежі,166469,Центральний офіс,38558365,Україна,*;101;38558365;сплата ПДФО iз зарплати та розрахункових працiвникiв за грудень 2018 р.;;;11010100,26001053732835,current,19707.83,УДКСУ у Франківському районі м. Львова,37965138,юридична особа
Самопоміч,"Львівська область, Львів, вулиця Стрийська, 35",62,2018-12-28,293,Сплата ЄСВ,Податкові платежі,166468,Центральний офіс,38558365,Україна,*;101;38558365;сплата ЄСВ 22% iз зарплати та розрахункових працiвникiв за грудень 2018р.;;;,26001053732835,current,24087.34,Залізнична ОДПІ ГУ ДФС у Львівській області,39554382,юридична особа
Самопоміч,"Львівська область, Львів, вулиця Конотопська, 6",61,2018-12-28,292,Військовий збір,Податкові платежі,166467,Центральний офіс,38558365,Україна,*;101;38558365;сплата вiйськового збору iз зарплати та розрахункових працiвникiвза грудень 2018 р.;;;11011000,26001053732835,current,1642.24,УДКСУ у Франківському районі м. Львова,37965138,юридична особа
Самопоміч,Київ,84,2018-12-28,287,"Заробітна плата, премії","Заробітна плата, лікарняні, вагітності, відрядження, компенсації",166097,Центральний офіс,38558365,Україна,Зарплата,26001053732835,current,2515.63,Венгер Віта Володимирівна,,фізична особа
Самопоміч,Київ,84,2018-12-28,287,"Заробітна плата, премії","Заробітна плата, лікарняні, вагітності, відрядження, компенсації",166096,Центральний офіс,38558365,Україна,Зарплата,26001053732835,current,2515.62,Козачок-Матьола Наталія Олегівна,,фізична особа
Самопоміч,"Житомирська область, Брусилівський район, Брусилів",84,2018-12-28,287,"Заробітна плата, премії","Заробітна плата, лікарняні, вагітності, відрядження, компенсації",166095,Центральний офіс,38558365,Україна,Зарплата,26001053732835,current,3501.75,Стадник Орися Борисівна,,фізична особа
Самопоміч,"Волинська область, Любомльський район, Любомль",84,2018-12-28,286,"Заробітна плата, премії","Заробітна плата, лікарняні, вагітності, відрядження, компенсації",166094,Центральний офіс,38558365,Україна,Зарплата,26001053732835,current,1823.79,Булавка Тамара Павлівна,,фізична особа
Самопоміч,"Івано-Франківська область, Івано-Франківськ",84,2018-12-28,286,"Заробітна плата, премії","Заробітна плата, лікарняні, вагітності, відрядження, компенсації",166093,Центральний офіс,38558365,Україна,Зарплата,26001053732835,current,7301.37,Яковишин Володимир Юрійович,,фізична особа
Самопоміч,"Черкаська область, Золотоноша",84,2018-12-28,286,"Заробітна плата, премії","Заробітна плата, лікарняні, вагітності, відрядження, компенсації",166092,Центральний офіс,38558365,Україна,Зарплата,26001053732835,current,4219.81,Луцик Оксана Олександрівна,,фізична особа
Самопоміч,"Київська обл., Бровари",84,2018-12-28,286,"Заробітна плата, премії","Заробітна плата, лікарняні, вагітності, відрядження, компенсації",166091,Центральний офіс,38558365,Україна,Зарплата,26001053732835,current,2822.99,Крилова Тетяна Миколаївна,,фізична особа
Самопоміч,"Волинська область, Луцьк",84,2018-12-28,286,"Заробітна плата, премії","Заробітна плата, лікарняні, вагітності, відрядження, компенсації",166090,Центральний офіс,38558365,Україна,Зарплата,26001053732835,current,5218.98,Надточій Алла Володимирівна,,фізична особа
Самопоміч,Тернопільська область,84,2018-12-28,286,"Заробітна плата, премії","Заробітна плата, лікарняні, вагітності, відрядження, компенсації",166089,Центральний офіс,38558365,Україна,Зарплата,26001053732835,current,10184.93,Грушицький Олег Мирославович,,фізична особа
Самопоміч,"Чернігівська область, Сосницький район",84,2018-12-28,286,"Заробітна плата, премії","Заробітна плата, лікарняні, вагітності, відрядження, компенсації",166088,Центральний офіс,38558365,Україна,Зарплата,26001053732835,current,1400.68,Душик Наталія Володимирівна,,фізична особа
Самопоміч,Івано-Франківська область,84,2018-12-28,286,"Заробітна плата, премії","Заробітна плата, лікарняні, вагітності, відрядження, компенсації",166087,Центральний офіс,38558365,Україна,Зарплата,26001053732835,current,1821.53,Шира Ірина Володимирівна,,фізична особа
Самопоміч,"Дніпропетровська область, Кам’янське",84,2018-12-28,286,"Заробітна плата, премії","Заробітна плата, лікарняні, вагітності, відрядження, компенсації",166086,Центральний офіс,38558365,Україна,Зарплата,26001053732835,current,2510.03,Неклеса Олена Олександрівна,,фізична особа
Самопоміч,"Волинська область, Луцьк",84,2018-12-28,286,"Заробітна плата, премії","Заробітна плата, лікарняні, вагітності, відрядження, компенсації",166085,Центральний офіс,38558365,Україна,Зарплата,26001053732835,current,2479.16,Боднарчук Богдана Володимирівна,,фізична особа
Самопоміч,"Волинська область, Луцьк",84,2018-12-28,286,"Заробітна плата, премії","Заробітна плата, лікарняні, вагітності, відрядження, компенсації",166084,Центральний офіс,38558365,Україна,Зарплата,26001053732835,current,7302.08,Собуцький Микола Миколайович,,фізична особа
Самопоміч,"Донецька область, Слов'янський район, Слов'янськ",84,2018-12-28,286,"Заробітна плата, премії","Заробітна плата, лікарняні, вагітності, відрядження, компенсації",166083,Центральний офіс,38558365,Україна,Зарплата,26001053732835,current,487.86,Мєнь Олег Володимирович,,фізична особа
Самопоміч,"Житомирська область, Пулинський район, Пулини",84,2018-12-28,286,"Заробітна плата, премії","Заробітна плата, лікарняні, вагітності, відрядження, компенсації",166082,Центральний офіс,38558365,Україна,Зарплата,26001053732835,current,3617.64,Сірик Владислав Сергійович,,фізична особа
Самопоміч,"Хмельницька область, Хмельницький",84,2018-12-28,286,"Заробітна плата, премії","Заробітна плата, лікарняні, вагітності, відрядження, компенсації",166081,Центральний офіс,38558365,Україна,Зарплата,26001053732835,current,3607.81,Сердечний Владислав Леонідович,,фізична особа
Самопоміч,Миколаївська область,84,2018-12-28,286,"Заробітна плата, премії","Заробітна плата, лікарняні, вагітності, відрядження, компенсації",166080,Центральний офіс,38558365,Україна,Зарплата,26001053732835,current,1772.57,Смаровоз Ганна Георгіївна,,фізична особа
Самопоміч,Київ,84,2018-12-28,286,"Заробітна плата, премії","Заробітна плата, лікарняні, вагітності, відрядження, компенсації",166079,Центральний офіс,38558365,Україна,Зарплата,26001053732835,current,2432.26,Козяр Олександр Іванович,,фізична особа
Самопоміч,"Закарпатська область, Тячівський район, Тячів",84,2018-12-28,286,"Заробітна плата, премії","Заробітна плата, лікарняні, вагітності, відрядження, компенсації",166078,Центральний офіс,38558365,Україна,Зарплата,26001053732835,current,2294.25,Томащук Світлана Вікторівна,,фізична особа
Самопоміч,"Волинська область, Камінь-Каширський район, Камінь-Каширський",84,2018-12-28,286,"Заробітна плата, премії","Заробітна плата, лікарняні, вагітності, відрядження, компенсації",166077,Центральний офіс,38558365,Україна,Зарплата,26001053732835,current,46.49,Рогозіна Тетяна Олександрівна,,фізична особа
Самопоміч,"Закарпатська область, Рахівський район, Рахів",84,2018-12-28,286,"Заробітна плата, премії","Заробітна плата, лікарняні, вагітності, відрядження, компенсації",166076,Центральний офіс,38558365,Україна,Зарплата,26001053732835,current,2897.11,Губко Богдан Валентинович,,фізична особа
Самопоміч,"Івано-Франківська область, Тлумацький район, Тлумач",84,2018-12-28,286,"Заробітна плата, премії","Заробітна плата, лікарняні, вагітності, відрядження, компенсації",166075,Центральний офіс,38558365,Україна,Зарплата,26001053732835,current,1771.33,Гнатюк Петро Михайлович,,фізична особа
Самопоміч,"Київська обл., Миронівський район, Миронівка",84,2018-12-28,286,"Заробітна плата, премії","Заробітна плата, лікарняні, вагітності, відрядження, компенсації",166074,Центральний офіс,38558365,Україна,Зарплата,26001053732835,current,1751.04,Бондаренко Ігор Васильович,,фізична особа
Самопоміч,"Миколаївська область, Новобузький район, Новий Буг",84,2018-12-28,286,"Заробітна плата, премії","Заробітна плата, лікарняні, вагітності, відрядження, компенсації",166073,Центральний офіс,38558365,Україна,Зарплата,26001053732835,current,1505.32,Шевченко Валерій Вікторович,,фізична особа
Самопоміч,"Рівненська область, Острог",84,2018-12-28,286,"Заробітна плата, премії","Заробітна плата, лікарняні, вагітності, відрядження, компенсації",166072,Центральний офіс,38558365,Україна,Зарплата,26001053732835,current,1836.05,Балик Дмитро Миколайович,,фізична особа
Самопоміч,"Київська обл., Біла Церква",84,2018-12-28,286,"Заробітна плата, премії","Заробітна плата, лікарняні, вагітності, відрядження, компенсації",166071,Центральний офіс,38558365,Україна,Зарплата,26001053732835,current,4327.71,Погребняк Юлія Ігорівна,,фізична особа
Самопоміч,"Вінницька область, Вінниця",84,2018-12-28,286,"Заробітна плата, премії","Заробітна плата, лікарняні, вагітності, відрядження, компенсації",166070,Центральний офіс,38558365,Україна,Зарплата,26001053732835,current,3603.47,Кононенко Юлія Петрівна,,фізична особа
Самопоміч,"Вінницька область, Калинівський район, Калинівка",84,2018-12-28,286,"Заробітна плата, премії","Заробітна плата, лікарняні, вагітності, відрядження, компенсації",166069,Центральний офіс,38558365,Україна,Зарплата,26001053732835,current,547.06,Бабій Микола Сергійович,,фізична особа
Самопоміч,"Київ, вулиця Кіото, 13, 124",79,2018-12-28,285,"Оренда будинків і приміщень та експлуатаційні витрати (прибирання, страхування орендованих будинків, охорона, сигналізація, ремонт, вивіз сміття, тощо)",Оренда нерухомості,165709,Центральний офіс,38558365,Україна,"Оплата гарантiйного платежу згiдно з договором оренди N1/27-12/18 вiд 2018-12-27р., згiдно рахунку-фактури N1 вiд 2018-12-27р.",26001053732835,current,26000.00,Дзюбак Наталія Анатоліївна,,фізична особа
Самопоміч,"Рівненська область, Костопільський район, Костопіль, просп. Невського",69,2018-12-27,284,Організація заходів та інші організаційні послуги,Організація заходів та інші організаційні послуги,165708,Центральний офіс,38558365,Україна,"Оплата за надання послуги виїзного ресторанного обслуговування заходу, згiдно рахунку на оплату N46 вiд 2018-12-20р.",26001053732835,current,120000.00,Онопрійчук Надія Вікторівна,,фізична особа
Самопоміч,"Дніпропетровська область, Кривий Ріг, вулиця Тесленка, 5",64,2018-12-26,1928,Повернення платежів партії,Повернення,170687,Центральний офіс,38558365,Україна,"Повернення док.№270 вiд 20.12.2018р.на суму 8100.00 грн. у зв""язку з вiдсутнiстю в призначеннi платежу СКР та ПIБ отримувача.",26001053732835,current,8100.00,Назаренко Ліна Володимирівна,,фізична особа
Самопоміч,"Київ, вулиця Михайла Грушевського, 1Д",70,2018-12-26,CQO1O52L7Y,Банківські послуги,Інші витрати,166466,Центральний офіс,38558365,Україна,"Комiсiя за виконання платежiв в нацiональнiй валютi, згiдно з вiдкритою офертою банку N б/н вiд 2018-04-23 та тарифiв банку, без ПДВ.",26001053732835,current,3.00,"ПАТ КБ ""Приватбанк""",14360570,юридична особа
Самопоміч,"Київ, вулиця Михайла Грушевського, 1Д",70,2018-12-26,CQO1O52L5Y,Банківські послуги,Інші витрати,166465,Центральний офіс,38558365,Україна,"Комiсiя за виконання платежiв в нацiональнiй валютi, згiдно з вiдкритою офертою банку N б/н вiд 2018-04-23 та тарифiв банку, без ПДВ.",26001053732835,current,3.00,"ПАТ КБ ""Приватбанк""",14360570,юридична особа
Самопоміч,"Київ, вулиця Михайла Грушевського, 1Д",70,2018-12-26,CQO1O52KWY,Банківські послуги,Інші витрати,166464,Центральний офіс,38558365,Україна,"Комiсiя за виконання платежiв в нацiональнiй валютi, згiдно з вiдкритою офертою банку N б/н вiд 2018-04-23 та тарифiв банку, без ПДВ.",26001053732835,current,3.00,"ПАТ КБ ""Приватбанк""",14360570,юридична особа
Самопоміч,"Київ, вулиця Михайла Грушевського, 1Д",70,2018-12-26,CQO1O52KTY,Банківські послуги,Інші витрати,166463,Центральний офіс,38558365,Україна,"Комiсiя за виконання платежiв в нацiональнiй валютi, згiдно з вiдкритою офертою банку N б/н вiд 2018-04-23 та тарифiв банку, без ПДВ.",26001053732835,current,3.00,"ПАТ КБ ""Приватбанк""",14360570,юридична особа
Самопоміч,"Київ, вулиця Михайла Грушевського, 1Д",70,2018-12-26,CQO1O52KJY,Банківські послуги,Інші витрати,166462,Центральний офіс,38558365,Україна,"Комiсiя за виконання платежiв в нацiональнiй валютi, згiдно з вiдкритою офертою банку N б/н вiд 2018-04-23 та тарифiв банку, без ПДВ.",26001053732835,current,3.00,"ПАТ КБ ""Приватбанк""",14360570,юридична особа
Самопоміч,"Київ, вулиця Михайла Грушевського, 1Д",70,2018-12-26,CQO1O52KMY,Банківські послуги,Інші витрати,166461,Центральний офіс,38558365,Україна,"Комiсiя за виконання платежiв в нацiональнiй валютi, згiдно з вiдкритою офертою банку N б/н вiд 2018-04-23 та тарифiв банку, без ПДВ.",26001053732835,current,3.00,"ПАТ КБ ""Приватбанк""",14360570,юридична особа
Самопоміч,"Київ, вулиця Михайла Грушевського, 1Д",70,2018-12-26,CQO1O52KPY,Банківські послуги,Інші витрати,166460,Центральний офіс,38558365,Україна,"Комiсiя за виконання платежiв в нацiональнiй валютi, згiдно з вiдкритою офертою банку N б/н вiд 2018-04-23 та тарифiв банку, без ПДВ.",26001053732835,current,3.00,"ПАТ КБ ""Приватбанк""",14360570,юридична особа
Самопоміч,"Київ, вулиця Михайла Грушевського, 1Д",70,2018-12-26,CQO1O52KZY,Банківські послуги,Інші витрати,166459,Центральний офіс,38558365,Україна,"Комiсiя за виконання платежiв в нацiональнiй валютi, згiдно з вiдкритою офертою банку N б/н вiд 2018-04-23 та тарифiв банку, без ПДВ.",26001053732835,current,3.00,"ПАТ КБ ""Приватбанк""",14360570,юридична особа
Самопоміч,"Київ, вулиця Михайла Грушевського, 1Д",70,2018-12-26,CQO1O52LVY,Банківські послуги,Інші витрати,166458,Центральний офіс,38558365,Україна,"Комiсiя за виконання платежiв в нацiональнiй валютi, згiдно з вiдкритою офертою банку N б/н вiд 2018-04-23 та тарифiв банку, без ПДВ.",26001053732835,current,3.00,"ПАТ КБ ""Приватбанк""",14360570,юридична особа
Самопоміч,"Київ, вулиця Михайла Грушевського, 1Д",70,2018-12-26,CQO1O52LJY,Банківські послуги,Інші витрати,166457,Центральний офіс,38558365,Україна,"Комiсiя за виконання платежiв в нацiональнiй валютi, згiдно з вiдкритою офертою банку N б/н вiд 2018-04-23 та тарифiв банку, без ПДВ.",26001053732835,current,3.00,"ПАТ КБ ""Приватбанк""",14360570,юридична особа
Самопоміч,"Київ, вулиця Михайла Грушевського, 1Д",70,2018-12-26,CQO1O52LEY,Банківські послуги,Інші витрати,166456,Центральний офіс,38558365,Україна,"Комiсiя за виконання платежiв в нацiональнiй валютi, згiдно з вiдкритою офертою банку N б/н вiд 2018-04-23 та тарифiв банку, без ПДВ.",26001053732835,current,3.00,"ПАТ КБ ""Приватбанк""",14360570,юридична особа
Самопоміч,"Київ, вулиця Михайла Грушевського, 1Д",70,2018-12-26,282,Банківські послуги,Інші витрати,166455,Центральний офіс,38558365,Україна,Банкiвська комiсiя за виплату лiкарняних працiвникiв за рахунок пiдприємства за грудень 2018 р.,26001053732835,current,4.04,"ПАТ КБ ""Приватбанк""",14360570,юридична особа
Самопоміч,"Київ, вулиця Михайла Грушевського, 1Д",70,2018-12-26,277,Банківські послуги,Інші витрати,166454,Центральний офіс,38558365,Україна,Банкiвська комiсiя за виплату вiдпускних працiвникiв за грудень 2018 р.,26001053732835,current,66.46,"ПАТ КБ ""Приватбанк""",14360570,юридична особа
Самопоміч,"Львівська область, Львів, вулиця Конотопська, 6",63,2018-12-26,279,Податок на доходи,Податкові платежі,166453,Центральний офіс,38558365,Україна,*;101;38558365;сплата ПДФО iз лiкарняних працiвникiв за рахунок пiдприємства за грудень 2018 р.;;;11010100,26001053732835,current,180.55,УДКСУ у Франківському районі м. Львова,37965138,юридична особа
Самопоміч,"Львівська область, Львів, вулиця Конотопська, 6",63,2018-12-26,274,Податок на доходи,Податкові платежі,166452,Центральний офіс,38558365,Україна,*;101;38558365;сплата ПДФО iз вiдпускних працiвникiв за грудень 2018 р.;;;11010100,26001053732835,current,2971.97,УДКСУ у Франківському районі м. Львова,37965138,юридична особа
Самопоміч,"Львівська область, Львів, вулиця Стрийська, 35",62,2018-12-26,278,Сплата ЄСВ,Податкові платежі,166451,Центральний офіс,38558365,Україна,*;101;38558365;сплата ЄСВ 22% iз лiкарняних працiвникiв за рахунок пiдприємства за грудень 2018р.;;;,26001053732835,current,220.67,Залізнична ОДПІ ГУ ДФС у Львівській області,39554382,юридична особа
Самопоміч,"Львівська область, Львів, вулиця Стрийська, 35",62,2018-12-26,273,Сплата ЄСВ,Податкові платежі,166450,Центральний офіс,38558365,Україна,*;101;38558365;сплата ЄСВ 22% iз вiдпускних працiвникiв за грудень 2018р.;;;,26001053732835,current,3632.41,Залізнична ОДПІ ГУ ДФС у Львівській області,39554382,юридична особа
Самопоміч,"Львівська область, Львів, вулиця Конотопська, 6",61,2018-12-26,280,Військовий збір,Податкові платежі,166449,Центральний офіс,38558365,Україна,*;101;38558365;сплата вiйськового збору iз лiкарняних працiвникiв за рахунок пiдприємства за грудень 2018 р.;;;11011000,26001053732835,current,15.04,УДКСУ у Франківському районі м. Львова,37965138,юридична особа
Самопоміч,"Львівська область, Львів, вулиця Конотопська, 6",61,2018-12-26,275,Військовий збір,Податкові платежі,166448,Центральний офіс,38558365,Україна,*;101;38558365;сплата вiйськового збору iз вiдпускних працiвникiв за грудень 2018 р.;;;11011000,26001053732835,current,247.67,УДКСУ у Франківському районі м. Львова,37965138,юридична особа
Самопоміч,"Львівська область, Львів",84,2018-12-26,285,"Заробітна плата, премії","Заробітна плата, лікарняні, вагітності, відрядження, компенсації",166068,Центральний офіс,38558365,Україна,Зарплата,26001053732835,current,262.63,Никорак Ольга Юріївна,,фізична особа
Самопоміч,"Львівська область, Львів",84,2018-12-26,285,"Заробітна плата, премії","Заробітна плата, лікарняні, вагітності, відрядження, компенсації",166067,Центральний офіс,38558365,Україна,Зарплата,26001053732835,current,544.81,Христина Зоряна Орестівна,,фізична особа
Самопоміч,Київ,84,2018-12-26,282,"Заробітна плата, премії","Заробітна плата, лікарняні, вагітності, відрядження, компенсації",166066,Центральний офіс,38558365,Україна,Зарплата,26001053732835,current,816.31,Демедюк Сніжана Василівна,,фізична особа
Самопоміч,"Вінницька область, Вінниця",84,2018-12-26,282,"Заробітна плата, премії","Заробітна плата, лікарняні, вагітності, відрядження, компенсації",166065,Центральний офіс,38558365,Україна,Зарплата,26001053732835,current,6353.13,Бугакова Олена Юріївна,,фізична особа
Самопоміч,Севастополь,84,2018-12-26,282,"Заробітна плата, премії","Заробітна плата, лікарняні, вагітності, відрядження, компенсації",166064,Центральний офіс,38558365,Україна,Зарплата,26001053732835,current,971.66,Балдига Лілія Олександрівна,,фізична особа
Самопоміч,Київ,84,2018-12-26,282,"Заробітна плата, премії","Заробітна плата, лікарняні, вагітності, відрядження, компенсації",166063,Центральний офіс,38558365,Україна,Зарплата,26001053732835,current,251.34,Деркач Юлія Олександрівна,,фізична особа
Самопоміч,"Львівська область, Львів",84,2018-12-26,282,"Заробітна плата, премії","Заробітна плата, лікарняні, вагітності, відрядження, компенсації",166062,Центральний офіс,38558365,Україна,Зарплата,26001053732835,current,1014.75,Мотус Оксана Іванівна,,фізична особа
Самопоміч,"Івано-Франківська область, Івано-Франківськ",84,2018-12-26,282,"Заробітна плата, премії","Заробітна плата, лікарняні, вагітності, відрядження, компенсації",166061,Центральний офіс,38558365,Україна,Зарплата,26001053732835,current,3884.12,Войтович Роман Степанович,,фізична особа
Самопоміч,"Дніпропетровська область, Кривий Ріг, вулиця Тесленка, 5",79,2018-12-26,283,"Оренда будинків і приміщень та експлуатаційні витрати (прибирання, страхування орендованих будинків, охорона, сигналізація, ремонт, вивіз сміття, тощо)",Оренда нерухомості,165707,Центральний офіс,38558365,Україна,"Оплата за суборенду нежитлового примiщення за листопад 2018р., згiдно акту наданих послуг N1 вiд 30.11.18р.",26001053732835,current,8100.00,Назаренко Ліна Володимирівна,,фізична особа
Самопоміч,"Чернівецька область, Чернівці, вулиця Кобилянської, 11",49,2018-12-21,54,Публікування матеріалів у друкованих ЗМІ,Реклама в друкованих ЗМІ,170683,Чернівецька міська організація,39914787,Чернівецька область,*;101*; 39914787; 50110000; за право розміщення реклами,26003051502635,current,1291.00,УДКСУ у м. Чернівці,37978173,юридична особа
Самопоміч,"Київ, вулиця Михайла Грушевського, 1Д",70,2018-12-21,CL01NV2YYY,Банківські послуги,Інші витрати,170682,Чернівецька міська організація,39914787,Чернівецька область,"Комісія за виконання платежів в національній валюті, згідно з відкритою офертою банку № б/н від 2015-09-29 та тарифів банку, без ПДВ.",26003051502635,current,3.00,"ПАТ КБ ""Приватбанк""",14360570,юридична особа
Самопоміч,"Львівська область, Моршин, вулиця Геологів, 12",78,2018-12-21,276,Оренда обладнання та технічних засобів,Оренда обладнання та технічних засобів,166447,Центральний офіс,38558365,Україна,"Оплата за оренду обладнання, згiдно рахунку-фактури N 3440004384 вiд 30.11.18 р. в т.ч. ПДВ 25.00 грн.",26001053732835,current,150.00,ТОВ ʼІДС АКВА СЕРВІСʼ,42201052,юридична особа
Самопоміч,"Київ, вулиця Михайла Грушевського, 1Д",70,2018-12-21,CLO1NUZXIY,Банківські послуги,Інші витрати,166446,Центральний офіс,38558365,Україна,"Комiсiя за виконання платежiв в нацiональнiй валютi, згiдно з вiдкритою офертою банку N б/н вiд 2018-04-23 та тарифiв банку, без ПДВ.",26001053732835,current,3.00,"ПАТ КБ ""Приватбанк""",14360570,юридична особа
Самопоміч,"Київ, вулиця Михайла Грушевського, 1Д",70,2018-12-21,CLO1NUZXRY,Банківські послуги,Інші витрати,166445,Центральний офіс,38558365,Україна,"Комiсiя за виконання платежiв в нацiональнiй валютi, згiдно з вiдкритою офертою банку N б/н вiд 2018-04-23 та тарифiв банку, без ПДВ.",26001053732835,current,3.00,"ПАТ КБ ""Приватбанк""",14360570,юридична особа
Самопоміч,"Київ, вулиця Михайла Грушевського, 1Д",70,2018-12-21,CLO1NUX65Y,Банківські послуги,Інші витрати,166444,Центральний офіс,38558365,Україна,"Комiсiя за виконання платежiв в нацiональнiй валютi, згiдно з вiдкритою офертою банку N б/н вiд 2018-04-23 та тарифiв банку, без ПДВ.",26001053732835,current,3.00,"ПАТ КБ ""Приватбанк""",14360570,юридична особа
Самопоміч,"Київ, вулиця Михайла Грушевського, 1Д",70,2018-12-21,CLO1NUZXZY,Банківські послуги,Інші витрати,166443,Центральний офіс,38558365,Україна,"Комiсiя за виконання платежiв в нацiональнiй валютi, згiдно з вiдкритою офертою банку N б/н вiд 2018-04-23 та тарифiв банку, без ПДВ.",26001053732835,current,3.00,"ПАТ КБ ""Приватбанк""",14360570,юридична особа
Самопоміч,"Київ, вулиця Михайла Грушевського, 1Д",70,2018-12-21,CLO1NUZYGY,Банківські послуги,Інші витрати,166442,Центральний офіс,38558365,Україна,"Комiсiя за виконання платежiв в нацiональнiй валютi, згiдно з вiдкритою офертою банку N б/н вiд 2018-04-23 та тарифiв банку, без ПДВ.",26001053732835,current,3.00,"ПАТ КБ ""Приватбанк""",14360570,юридична особа
Самопоміч,"Київ, вулиця Михайла Грушевського, 1Д",70,2018-12-21,CLO1NUZY9Y,Банківські послуги,Інші витрати,166441,Центральний офіс,38558365,Україна,"Комiсiя за виконання платежiв в нацiональнiй валютi, згiдно з вiдкритою офертою банку N б/н вiд 2018-04-23 та тарифiв банку, без ПДВ.",26001053732835,current,3.00,"ПАТ КБ ""Приватбанк""",14360570,юридична особа
Самопоміч,"Львівська область, Львів, вулиця Конотопська, 6",63,2018-12-21,273,Податок на доходи,Податкові платежі,166440,Центральний офіс,38558365,Україна,"*;101;сплата ПДФО вiдмiнний вiд з/п згiдно акту наданих послуг за виготовлення iнформацiйних матерiалiв, Кельбус К.В.",26001053732835,current,2250.00,УДКСУ у Франківському районі м. Львова,37965138,юридична особа
Самопоміч,"Львівська область, Львів, вулиця Конотопська, 6",61,2018-12-21,274,Військовий збір,Податкові платежі,166439,Центральний офіс,38558365,Україна,*;101;сплата вiйськового збору згiдно згiдно акту наданих послуг за виготовлення iнформацiйних матерiалiв. Кельбус К.В.,26001053732835,current,187.50,УДКСУ у Франківському районі м. Львова,37965138,юридична особа
Самопоміч,"Львівська область, Львів, вулиця Стрийська, 35",62,2018-12-21,272,Сплата ЄСВ,Податкові платежі,166438,Центральний офіс,38558365,Україна,*;101;38558365;сплата єдиного соцiального внеску 22% по договору ЦПХ з Кельбус Катерина Вiкторiвна;;;71010000,26001053732835,current,2750.00,Залізнична ОДПІ ГУ ДФС у Львівській області,39554382,юридична особа
Самопоміч,"Львівська область, Львів, вулиця Стрийська, 35",62,2018-12-21,275,Сплата ЄСВ,Податкові платежі,166437,Центральний офіс,38558365,Україна,*;101;38558365;сплата єдиного соцiального внеску 22% iз допомоги в звʼязку з вагiтнiстю та пологами працiвника;;;71010000,26001053732835,current,3390.42,Залізнична ОДПІ ГУ ДФС у Львівській області,39554382,юридична особа
Самопоміч,"Хмельницька область, Кам'янець-Подільський",83,2018-12-21,281,"Виплати працівникам (не зарплата): лікарняні, вагітності, відрядження, компенсації ","Заробітна плата, лікарняні, вагітності, відрядження, компенсації",166104,Центральний офіс,38558365,Україна,Допомога в звязку з вагітністю та пологами,26045903290725,current,15411.06,Мельник Світлана Василівна,,фізична особа
Самопоміч,Київ,82,2018-12-21,284,"Гонорари, в тому числі за надані консультаційні послуги","Гонорари, в тому числі за надані консультаційні послуги",166060,Центральний офіс,38558365,Україна,ЦПХ,26001053732835,current,10062.50,Кельбус Катерина Вікторівна,,фізична особа
Самопоміч,"Київська обл., Бородянський район, Бородянка",49,2018-12-20,36,Публікування матеріалів у друкованих ЗМІ,Реклама в друкованих ЗМІ,170639,Київська обласна організація,39922721,Київська область,за опублікування інформації у газеті згідно рахунк № 267 від 2017-11-23р. Без ПДВ.,26007924419329,current,4235.36,"РГ ""Вперед""",02473406,юридична особа
Самопоміч,"Київ, вулиця Єреванська, 1",70,2018-12-20,TR.2504263.177207191,Банківські послуги,Інші витрати,170638,Київська обласна організація,39922721,Київська область,"Плата за розрахункове обслуговування по рахунку № 26007924419329.980 з 20\12\2018 по 20\12\2018 згідно Договору № 2016/РКО/060-077 від 2016-10-13р, без ПДВ",26007924419329,current,0.80,"АБ ""Укргазбанк""",23697280,юридична особа
Самопоміч,"Київ, вулиця Єреванська, 1",70,2018-12-20,TR.2436077_3991,Банківські послуги,Інші витрати,170497,Центральний офіс,38558365,Україна,"Плата за розрахункове обслуговування в після операційний час по рахунку № 26008924418040.980 з 2018-12-20 по 2018-12-20 згідно Договору № 2016/РКО/291-024 від 2016-09-02 р, без ПДВ",26008924418040,state,0.80,"АБ ""Укргазбанк""",23697280,юридична особа
Самопоміч,"Київ, вулиця Єреванська, 1",70,2018-12-20,TR.2436077_3990,Банківські послуги,Інші витрати,170496,Центральний офіс,38558365,Україна,"Плата за розрахункове обслуговування в після операційний час по рахунку № 26008924418040.980 з 2018-12-20 по 2018-12-20 згідно Договору № 2016/РКО/291-024 від 2016-09-02 р, без ПДВ",26008924418040,state,0.80,"АБ ""Укргазбанк""",23697280,юридична особа
Самопоміч,"Київ, вулиця Єреванська, 1",70,2018-12-20,TR.2436077_3989,Банківські послуги,Інші витрати,170495,Центральний офіс,38558365,Україна,"Плата за розрахункове обслуговування в після операційний час по рахунку № 26008924418040.980 з 2018-12-20 по 2018-12-20 згідно Договору № 2016/РКО/291-024 від 2016-09-02 р, без ПДВ",26008924418040,state,0.80,"АБ ""Укргазбанк""",23697280,юридична особа
Самопоміч,"Львівська область, Турківський район, Турка, вулиця Січових Стрільців, 64",79,2018-12-20,5104,"Оренда будинків і приміщень та експлуатаційні витрати (прибирання, страхування орендованих будинків, охорона, сигналізація, ремонт, вивіз сміття, тощо)",Оренда нерухомості,170494,Центральний офіс,38558365,Україна,"Оплата за оренду нежитлового приміщення у листопаді 2018 р., згідно акту наданих послуг від 2018-11-30 р.",26008924418040,state,428.56,Відділ культури і туризму Турківської РДА,26057411,юридична особа
Самопоміч,"Київська обл., Васильківський район, Гребінки, вулиця Індустріальна",79,2018-12-20,5100,"Оренда будинків і приміщень та експлуатаційні витрати (прибирання, страхування орендованих будинків, охорона, сигналізація, ремонт, вивіз сміття, тощо)",Оренда нерухомості,170493,Центральний офіс,38558365,Україна,Оплата за оренду нежитлового приміщення за листопад 2018 р. згідно акту наданих послуг від 2018-11-30 р.,26008924418040,state,2700.00,"ТОВ ""МИТЬ""",13739050,юридична особа
Самопоміч,"Київ, вулиця Єреванська, 1",70,2018-12-20,5101,Банківські послуги,Інші витрати,170492,Центральний офіс,38558365,Україна,Банківська комісія за відшкодування відрядних витрат,26008924418040,state,24.97,"АБ ""Укргазбанк""",23697280,юридична особа
Самопоміч,"Львівська область, Червоноград",83,2018-12-20,5102,"Виплати працівникам (не зарплата): лікарняні, вагітності, відрядження, компенсації ","Заробітна плата, лікарняні, вагітності, відрядження, компенсації",167107,Центральний офіс,38558365,Україна,відрядження,26008924418040,state,2100.00,Фартушок Дмитро Ігорович,,фізична особа
Самопоміч,"Волинська область, Луцьк",83,2018-12-20,5102,"Виплати працівникам (не зарплата): лікарняні, вагітності, відрядження, компенсації ","Заробітна плата, лікарняні, вагітності, відрядження, компенсації",167106,Центральний офіс,38558365,Україна,відрядження,26008924418040,state,1348.27,Собуцький Микола Миколайович,,фізична особа
Самопоміч,"Закарпатська область, Ужгород",83,2018-12-20,5102,"Виплати працівникам (не зарплата): лікарняні, вагітності, відрядження, компенсації ","Заробітна плата, лікарняні, вагітності, відрядження, компенсації",167105,Центральний офіс,38558365,Україна,відрядження,26008924418040,state,60.00,Нестеренко-Шатро Ернесто-Валерій Вікторович,,фізична особа
Самопоміч,"Донецька область, Слов'янський район, Слов'янськ",83,2018-12-20,5102,"Виплати працівникам (не зарплата): лікарняні, вагітності, відрядження, компенсації ","Заробітна плата, лікарняні, вагітності, відрядження, компенсації",167104,Центральний офіс,38558365,Україна,відрядження,26008924418040,state,120.00,Риженкова Катерина Михайлівна,,фізична особа
Самопоміч,Київ,83,2018-12-20,5102,"Виплати працівникам (не зарплата): лікарняні, вагітності, відрядження, компенсації ","Заробітна плата, лікарняні, вагітності, відрядження, компенсації",167103,Центральний офіс,38558365,Україна,відрядження,26008924418040,state,1365.03,Баланович Станіслав Васильович,,фізична особа
Самопоміч,"Рівненська область, Дубно, вулиця Данила Галицького, 7",79,2018-12-20,5103,"Оренда будинків і приміщень та експлуатаційні витрати (прибирання, страхування орендованих будинків, охорона, сигналізація, ремонт, вивіз сміття, тощо)",Оренда нерухомості,166929,Центральний офіс,38558365,Україна,Оплата за оренду нежитлового приміщення за листопад 2018 р. згідно акту наданих послуг від 2018-11-30 р.,26008924418040,state,2500.00,Демчук Тетяна Святославівна,,фізична особа
Самопоміч,"Київ, вулиця Іллінська, 8",79,2018-12-20,257,"Оренда будинків і приміщень та експлуатаційні витрати (прибирання, страхування орендованих будинків, охорона, сигналізація, ремонт, вивіз сміття, тощо)",Оренда нерухомості,166436,Центральний офіс,38558365,Україна,"Оплата комунальних послуг за листопад 2018 р.,по договору N78 вiд 2017-12-08р згiдно рахунку на оплату N 3026 вiд 30.11.18 р. в т.ч. ПДВ 9157,79 грн.",26001053732835,current,54946.72,"ТОВ ""ЛАСТІВКА ЛТД""",32252797,юридична особа
Самопоміч,"Львівська область, Львів, вулиця Стрийська, 202",75,2018-12-20,268,Поштові послуги та поширення друкованих матеріалів,Поштові послуги та поширення друкованих матеріалів,166435,Центральний офіс,38558365,Україна,"Оплата за розповсюдження полiграфiчної продукцiї, згiдно акту надання послуг з розповсюдження продукцiї N 19 вiд 2018-12-13 р.",26001053732835,current,24500.00,ТОВ ʼПромоціяʼ,41738913,юридична особа
Самопоміч,"Вінницька область, Вінниця, проспект Космонавтів, 23",49,2018-12-20,269,Публікування матеріалів у друкованих ЗМІ,Реклама в друкованих ЗМІ,166434,Центральний офіс,38558365,Україна,"Оплата за розмiщення iнформацiйних матерiалiв в газетi i на сайтi, згiдно акту наданих послуг вiд 10.12.18р.",26001053732835,current,13500.00,"ТОВ ""Регіна ЛТД""",13331299,юридична особа
Самопоміч,"Львівська область, Моршин, вулиця Геологів, 12",78,2018-12-20,256,Оренда обладнання та технічних засобів,Оренда обладнання та технічних засобів,166433,Центральний офіс,38558365,Україна,"Оплата за оренду обладнання, згiдно рахунку-фактури N 3300000811 вiд 30.11.18 р. в т.ч. ПДВ 25.00 грн.",26001053732835,current,150.00,ТОВ ʼІДС АКВА СЕРВІСʼ,42201052,юридична особа
Самопоміч,"Львівська область, Моршин, вулиця Геологів, 12",78,2018-12-20,255,Оренда обладнання та технічних засобів,Оренда обладнання та технічних засобів,166432,Центральний офіс,38558365,Україна,"Оплата за оренду обладнання, згiдно рахунку-фактури N 3300000810 вiд 30.11.18 р. в т.ч. ПДВ 50.00 грн.",26001053732835,current,300.00,ТОВ ʼІДС АКВА СЕРВІСʼ,42201052,юридична особа
Самопоміч,"Київ, вулиця Михайла Грушевського, 1Д",70,2018-12-20,CKO1NNXJTY,Банківські послуги,Інші витрати,166431,Центральний офіс,38558365,Україна,"Комiсiя за виконання платежiв в нацiональнiй валютi, згiдно з вiдкритою офертою банку N б/н вiд 2018-04-23 та тарифiв банку, без ПДВ.",26001053732835,current,3.00,"ПАТ КБ ""Приватбанк""",14360570,юридична особа
Самопоміч,"Київ, вулиця Михайла Грушевського, 1Д",70,2018-12-20,CKO1NO3D5Y,Банківські послуги,Інші витрати,166430,Центральний офіс,38558365,Україна,"Комiсiя за виконання платежiв в нацiональнiй валютi, згiдно з вiдкритою офертою банку N б/н вiд 2018-04-23 та тарифiв банку, без ПДВ.",26001053732835,current,3.00,"ПАТ КБ ""Приватбанк""",14360570,юридична особа
Самопоміч,"Київ, вулиця Михайла Грушевського, 1Д",70,2018-12-20,CKO1NO3CRY,Банківські послуги,Інші витрати,166429,Центральний офіс,38558365,Україна,"Комiсiя за виконання платежiв в нацiональнiй валютi, згiдно з вiдкритою офертою банку N б/н вiд 2018-04-23 та тарифiв банку, без ПДВ.",26001053732835,current,3.00,"ПАТ КБ ""Приватбанк""",14360570,юридична особа
Самопоміч,"Київ, вулиця Михайла Грушевського, 1Д",70,2018-12-20,CKO1NNXMJY,Банківські послуги,Інші витрати,166428,Центральний офіс,38558365,Україна,"Комiсiя за виконання платежiв в нацiональнiй валютi, згiдно з вiдкритою офертою банку N б/н вiд 2018-04-23 та тарифiв банку, без ПДВ.",26001053732835,current,3.00,"ПАТ КБ ""Приватбанк""",14360570,юридична особа
Самопоміч,"Київ, вулиця Михайла Грушевського, 1Д",70,2018-12-20,CKO1NO3CJY,Банківські послуги,Інші витрати,166427,Центральний офіс,38558365,Україна,"Комiсiя за виконання платежiв в нацiональнiй валютi, згiдно з вiдкритою офертою банку N б/н вiд 2018-04-23 та тарифiв банку, без ПДВ.",26001053732835,current,3.00,"ПАТ КБ ""Приватбанк""",14360570,юридична особа
Самопоміч,"Київ, вулиця Михайла Грушевського, 1Д",70,2018-12-20,CKO1NNXOGY,Банківські послуги,Інші витрати,166426,Центральний офіс,38558365,Україна,"Комiсiя за виконання платежiв в нацiональнiй валютi, згiдно з вiдкритою офертою банку N б/н вiд 2018-04-23 та тарифiв банку, без ПДВ.",26001053732835,current,3.00,"ПАТ КБ ""Приватбанк""",14360570,юридична особа
Самопоміч,"Київ, вулиця Михайла Грушевського, 1Д",70,2018-12-20,CKO1NNXDJY,Банківські послуги,Інші витрати,166425,Центральний офіс,38558365,Україна,"Комiсiя за виконання платежiв в нацiональнiй валютi, згiдно з вiдкритою офертою банку N б/н вiд 2018-04-23 та тарифiв банку, без ПДВ.",26001053732835,current,3.00,"ПАТ КБ ""Приватбанк""",14360570,юридична особа
Самопоміч,"Київ, вулиця Михайла Грушевського, 1Д",70,2018-12-20,CKO1NNXHAY,Банківські послуги,Інші витрати,166424,Центральний офіс,38558365,Україна,"Комiсiя за виконання платежiв в нацiональнiй валютi, згiдно з вiдкритою офертою банку N б/н вiд 2018-04-23 та тарифiв банку, без ПДВ.",26001053732835,current,3.00,"ПАТ КБ ""Приватбанк""",14360570,юридична особа
Самопоміч,"Київ, вулиця Михайла Грушевського, 1Д",70,2018-12-20,CKO1NK8VYY,Банківські послуги,Інші витрати,166423,Центральний офіс,38558365,Україна,"Комiсiя за виконання платежiв в нацiональнiй валютi, згiдно з вiдкритою офертою банку N б/н вiд 2018-04-23 та тарифiв банку, без ПДВ.",26001053732835,current,3.00,"ПАТ КБ ""Приватбанк""",14360570,юридична особа
Самопоміч,"Київ, вулиця Михайла Грушевського, 1Д",70,2018-12-20,CKO1NK8W0Y,Банківські послуги,Інші витрати,166422,Центральний офіс,38558365,Україна,"Комiсiя за виконання платежiв в нацiональнiй валютi, згiдно з вiдкритою офертою банку N б/н вiд 2018-04-23 та тарифiв банку, без ПДВ.",26001053732835,current,3.00,"ПАТ КБ ""Приватбанк""",14360570,юридична особа
Самопоміч,"Київ, вулиця Михайла Грушевського, 1Д",70,2018-12-20,CKO1NK8W5Y,Банківські послуги,Інші витрати,166421,Центральний офіс,38558365,Україна,"Комiсiя за виконання платежiв в нацiональнiй валютi, згiдно з вiдкритою офертою банку N б/н вiд 2018-04-23 та тарифiв банку, без ПДВ.",26001053732835,current,3.00,"ПАТ КБ ""Приватбанк""",14360570,юридична особа
Самопоміч,"Київ, вулиця Михайла Грушевського, 1Д",70,2018-12-20,258,Банківські послуги,Інші витрати,166420,Центральний офіс,38558365,Україна,Банкiвська комiсiя за виплату вiдпускних працiвникiв за грудень 2018 р.,26001053732835,current,79.82,"ПАТ КБ ""Приватбанк""",14360570,юридична особа
Самопоміч,"Львівська область, Львів, вулиця Конотопська, 6",63,2018-12-20,261,Податок на доходи,Податкові платежі,166419,Центральний офіс,38558365,Україна,*;101;38558365;сплата ПДФО iз вiдпускних працiвникiв за грудень 2018 р.;;;11010100,26001053732835,current,3569.40,УДКСУ у Франківському районі м. Львова,37965138,юридична особа
Самопоміч,"Львівська область, Львів, вулиця Стрийська, 35",62,2018-12-20,262,Сплата ЄСВ,Податкові платежі,166418,Центральний офіс,38558365,Україна,*;101;38558365;сплата ЄСВ 22% iз вiдпускних працiвникiв за грудень 2018р.;;;,26001053732835,current,4362.62,Залізнична ОДПІ ГУ ДФС у Львівській області,39554382,юридична особа
Самопоміч,"Львівська область, Львів, вулиця Конотопська, 6",61,2018-12-20,259,Військовий збір,Податкові платежі,166417,Центральний офіс,38558365,Україна,*;101;38558365;сплата вiйськового збору iз вiдпускних працiвникiв за грудень 2018 р.;;;11011000,26001053732835,current,297.46,УДКСУ у Франківському районі м. Львова,37965138,юридична особа
Самопоміч,"Волинська область, Рожищенський район, Рожище",84,2018-12-20,279,"Заробітна плата, премії","Заробітна плата, лікарняні, вагітності, відрядження, компенсації",166059,Центральний офіс,38558365,Україна,Зарплата,26001053732835,current,1121.03,Джусюк Алла Юріївна,,фізична особа
Самопоміч,"Тернопільська область, Тернопіль",84,2018-12-20,279,"Заробітна плата, премії","Заробітна плата, лікарняні, вагітності, відрядження, компенсації",166058,Центральний офіс,38558365,Україна,Зарплата,26001053732835,current,3292.77,Гарасимів Зоряна Володимирівна,,фізична особа
Самопоміч,"Тернопільська область, Тернопіль",84,2018-12-20,279,"Заробітна плата, премії","Заробітна плата, лікарняні, вагітності, відрядження, компенсації",166057,Центральний офіс,38558365,Україна,Зарплата,26001053732835,current,466.60,Фаленда Оксана Петрівна,,фізична особа
Самопоміч,"Львівська область, Дрогобич",84,2018-12-20,279,"Заробітна плата, премії","Заробітна плата, лікарняні, вагітності, відрядження, компенсації",166056,Центральний офіс,38558365,Україна,Зарплата,26001053732835,current,2039.26,Зінченко Тарас Ігорович,,фізична особа
Самопоміч,"Київська обл., Бориспіль",84,2018-12-20,279,"Заробітна плата, премії","Заробітна плата, лікарняні, вагітності, відрядження, компенсації",166055,Центральний офіс,38558365,Україна,Зарплата,26001053732835,current,1128.90,Князька Ірина Миколаївна,,фізична особа
Самопоміч,Київ,84,2018-12-20,279,"Заробітна плата, премії","Заробітна плата, лікарняні, вагітності, відрядження, компенсації",166054,Центральний офіс,38558365,Україна,Зарплата,26001053732835,current,233.45,Степанюк Ірина Анатоліївна,,фізична особа
Самопоміч,"Вінницька область, Гайсинський район, Гайсин",84,2018-12-20,279,"Заробітна плата, премії","Заробітна плата, лікарняні, вагітності, відрядження, компенсації",166053,Центральний офіс,38558365,Україна,Зарплата,26001053732835,current,546.34,Франтовська Оксана Миколаївна,,фізична особа
Самопоміч,"Хмельницька область, Нетішин",84,2018-12-20,279,"Заробітна плата, премії","Заробітна плата, лікарняні, вагітності, відрядження, компенсації",166052,Центральний офіс,38558365,Україна,Зарплата,26001053732835,current,7134.87,Коваль Наталія Михайлівна,,фізична особа
Самопоміч,"Дніпропетровська область, Кривий Ріг, вулиця Тесленка, 5",79,2018-12-20,270,"Оренда будинків і приміщень та експлуатаційні витрати (прибирання, страхування орендованих будинків, охорона, сигналізація, ремонт, вивіз сміття, тощо)",Оренда нерухомості,165706,Центральний офіс,38558365,Україна,"Оплата за суборенду нежитлового примiщення за листопад 2018р., згiдно акту наданих послуг N1 вiд 30.11.18р.",26001053732835,current,8100.00,Назаренко Ліна Володимирівна,,фізична особа
Самопоміч,"Одеська область, Подільськ, вулиця Слобідська, 44",75,2018-12-20,263,Поштові послуги та поширення друкованих матеріалів,Поштові послуги та поширення друкованих матеріалів,165705,Центральний офіс,38558365,Україна,"Оплата за розповсюдження рекламної продукцiї, згiдно акту надання послуг з розповсюдження рекламної продукцiї N 12 вiд 2018-11-15 р.",26001053732835,current,6258.00,Бондаренко Ольга Анатоліївна,,фізична особа
Самопоміч,"Полтавська область, Полтава, вулиця Ватутіна, 3",75,2018-12-20,264,Поштові послуги та поширення друкованих матеріалів,Поштові послуги та поширення друкованих матеріалів,165704,Центральний офіс,38558365,Україна,"Оплата за розповсюдження полiграфiчної продукцiї, згiдно акту надання послуг з розповсюдження продукцiї N10 вiд 2018-12-12 р.",26001053732835,current,7280.00,Дацюк Богдан Володимирович,,фізична особа
Самопоміч,"Київська обл., Васильків, вулиця Шевченка, 23",75,2018-12-20,267,Поштові послуги та поширення друкованих матеріалів,Поштові послуги та поширення друкованих матеріалів,165703,Центральний офіс,38558365,Україна,"Оплата за розповсюдження полiграфiчної продукцiї, згiдно акту надання послуг з розповсюдження продукцiї N 37 вiд 2018-11-22 р.",26001053732835,current,16900.00,Шабанова Сніжана Михайлівна,,фізична особа
Самопоміч,"Київська обл., Васильків, вулиця Шевченка, 23",75,2018-12-20,266,Поштові послуги та поширення друкованих матеріалів,Поштові послуги та поширення друкованих матеріалів,165702,Центральний офіс,38558365,Україна,"Оплата за розповсюдження полiграфiчної продукцiї, згiдно акту надання послуг з розповсюдження продукцiї N 36 вiд 2018-11-21 р.",26001053732835,current,13000.00,Шабанова Сніжана Михайлівна,,фізична особа
Самопоміч,"Київська обл., Васильків, вулиця Шевченка, 23",75,2018-12-20,265,Поштові послуги та поширення друкованих матеріалів,Поштові послуги та поширення друкованих матеріалів,165701,Центральний офіс,38558365,Україна,"Оплата за розповсюдження полiграфiчної продукцiї, згiдно акту надання послуг з розповсюдження продукцiї N 35 вiд 2018-11-20 р.",26001053732835,current,18500.00,Шабанова Сніжана Михайлівна,,фізична особа
Самопоміч,"Київ, проспект Володимира Маяковського, 69, 8",79,2018-12-19,12,"Оренда будинків і приміщень та експлуатаційні витрати (прибирання, страхування орендованих будинків, охорона, сигналізація, ремонт, вивіз сміття, тощо)",Оренда нерухомості,170500,Барська районна організація,39919455,Вінницька область,Оплата за оренду нежитлового приміщення згідно договору від 2018-03-01 р. без ПДВ.,26000171311565,current,1020.00,Мацюк Ніна Василівна,,фізична особа
Самопоміч,"Київ, вулиця Дегтярівська, 53",76,2018-12-18,10,Послуги зв’язку,Послуги зв’язку,170551,Івано-Франківська обласна організація,39927768,Івано-Франківська область,"Платіж за послуги звязку на особовий рахунок № 8203677 згідно рахунку -фактури № 9-22988497 від 2018-11-30 р., у т.ч. ПДВ 20% - 103,24 грн.",26000492575,current,658.15,"ПрАТ ""Київстар""",21673832,юридична особа
Самопоміч,"Київ, вулиця Дегтярівська, 53",76,2018-12-18,11,Послуги зв’язку,Послуги зв’язку,170550,Івано-Франківська обласна організація,39927768,Івано-Франківська область,"Платіж за послуги фіксованого звязку на о/р № 8203924 згідно рахунку -фактури № 9-22988498 від 2018-11-30 р., у т.ч. ПДВ 20% - 76 грн.",26000492575,current,456.00,"ПрАТ ""Київстар""",21673832,юридична особа
Самопоміч,"Київ, бульвар Тараса Шевченка, 18",76,2018-12-18,257,Послуги зв’язку,Послуги зв’язку,166416,Центральний офіс,38558365,Україна,"Оплата за телекомунiкацiйнi послуги за листопад 2018р., зг. рах.-акт N 740000000201302018-11-00 вiд 30.11.18р. зг. договору N 22503 в т.ч. ПДВ 46,50грн.",26001053732835,current,279.00,"ПАТ ""Укртелеком""",21560766,юридична особа
Самопоміч,"Херсонська область, Херсон, вулиця Торгова, 37",51,2018-12-18,236,Оплата ефірного часу на ТБ,Телереклама,166415,Центральний офіс,38558365,Україна,"Оплата за розмiщення матерiалiв на телеканалi ""Херсон плюс"", згiдно акту наданих послуг вiд 2018-12-05 р.",26001053732835,current,21033.95,"ТОВ ТРК ""Херсон Плюс""",36944934,юридична особа
Самопоміч,"Київ, вулиця Оболонська Набережна, 11",79,2018-12-18,245,"Оренда будинків і приміщень та експлуатаційні витрати (прибирання, страхування орендованих будинків, охорона, сигналізація, ремонт, вивіз сміття, тощо)",Оренда нерухомості,166414,Центральний офіс,38558365,Україна,"Оплата за послуги прибирання примiщення за листопад 2018р., згiдно рахунку на оплату N 196 вiд 2018-11-13р.",26001053732835,current,5200.00,"ПП ""Комсервіс Секьюріті""",40484460,юридична особа
Самопоміч,"Вінницька область, вулиця Процишина, 45",51,2018-12-18,256,Оплата ефірного часу на ТБ,Телереклама,166413,Центральний офіс,38558365,Україна,"Оплата за послуги з розмiщення та трансляцiю iнформацiйних матерiалiв на радiо, згiдно акту NОУ-0000049 вiд 2018-11-28 р.",26001053732835,current,3000.00,ПП ТРК ʼПодільські комунікаціїʼ,34261211,юридична особа
Самопоміч,"Вінницька область, вулиця Процишина, 45",51,2018-12-18,255,Оплата ефірного часу на ТБ,Телереклама,166412,Центральний офіс,38558365,Україна,"Оплата за послуги з розмiщення та трансляцiю iнформацiйних матерiалiв на радiо, згiдно акту NОУ-0000047 вiд 2018-11-12 р.",26001053732835,current,3000.00,ПП ТРК ʼПодільські комунікаціїʼ,34261211,юридична особа
Самопоміч,"Київ, Киянівський провулок, 3-7",79,2018-12-18,239,"Оренда будинків і приміщень та експлуатаційні витрати (прибирання, страхування орендованих будинків, охорона, сигналізація, ремонт, вивіз сміття, тощо)",Оренда нерухомості,166411,Центральний офіс,38558365,Україна,"Оплата за оренду нежитлового примiщення за листопад 2018 р., згiдно рахунку на оплату N 801 вiд 2018-11-20 р. в т.ч. ПДВ 1000.00 грн.",26001053732835,current,6000.00,"ПрАТ ""Центр реклами і сприяння міжнарожному співробітництву""",21558858,юридична особа
Самопоміч,"Київ, вулиця Михайла Драгоманова, 31",79,2018-12-18,238,"Оренда будинків і приміщень та експлуатаційні витрати (прибирання, страхування орендованих будинків, охорона, сигналізація, ремонт, вивіз сміття, тощо)",Оренда нерухомості,166410,Центральний офіс,38558365,Україна,"Оплата за оренду нежитлового примiщення за листопад 2018 р., згiдно акту приймання-передачi наданих орендних послуг N165 вiд 2018-11-30 р.",26001053732835,current,1500.00,"ТОВ ""Інфанта""",23735922,юридична особа
Самопоміч,"Київ, вулиця Новокостянтинівська, 4А",77,2018-12-18,246,"Оренда, ремонт та обслуговування автомобілів","Оренда, ремонт та обслуговування автомобілів",166409,Центральний офіс,38558365,Україна,"Оплата за нафтопродукти, згiдно накладної на вiдпуск товарiв N24ОБКТЛ-2652-9077572286 вiд 2018-12-18р. в т.ч. ПДВ 4998,33 грн.",26001053732835,current,29990.00,"ПП ""ОККО-БІЗНЕС КОНТРАКТ""",33614922,юридична особа
Самопоміч,"Волинська область, Луцьк, Кременецька вулиця, 38",77,2018-12-18,258,"Оренда, ремонт та обслуговування автомобілів","Оренда, ремонт та обслуговування автомобілів",166408,Центральний офіс,38558365,Україна,"Оплата за нафтопродукти, згiдно видаткової накладної N669104 вiд 2018-12-18 р. в т.ч. ПДВ 4915,00 грн.",26001053732835,current,29490.00,"ТОВ ""Нафтотрейд Ресурс""",33680859,юридична особа
Самопоміч,"Київ, вулиця Дегтярівська, 53",76,2018-12-18,250,Послуги зв’язку,Послуги зв’язку,166407,Центральний офіс,38558365,Україна,"Оплата за наданi послуги мобiльного звʼязку за листопад 2018 р., згiдно рахунку N 16-22363124 вiд 2018-11-30 р. . в т.ч. ПДВ 166,50 грн.",26001053732835,current,999.00,"ПрАТ ""Київстар""",21673832,юридична особа
Самопоміч,"Київ, вулиця Зоологічна, 4А",79,2018-12-18,240,"Оренда будинків і приміщень та експлуатаційні витрати (прибирання, страхування орендованих будинків, охорона, сигналізація, ремонт, вивіз сміття, тощо)",Оренда нерухомості,166406,Центральний офіс,38558365,Україна,"Оплата за компенсацiю комунальних платежiв за листопад 2018 р., згiдно рахунку-фактури NСФ-0002084 вiд 2018-12-04 р. в т.ч. ПДВ - 50.44 грн.",26001053732835,current,302.65,"ТОВ ""ОФІСПАРТНЕР""",39093087,юридична особа
Самопоміч,"Хмельницька область, Хмельницький, вулиця Толстого, 1",79,2018-12-18,252,"Оренда будинків і приміщень та експлуатаційні витрати (прибирання, страхування орендованих будинків, охорона, сигналізація, ремонт, вивіз сміття, тощо)",Оренда нерухомості,166405,Центральний офіс,38558365,Україна,"Оплата за вивезення побутових вiдходiв у листопадi 2018 р., згiдно рахунку N 5326 вiд 2018-11-14р. в т.ч. ПДВ 6.30 грн.",26001053732835,current,37.83,ХКП ʼСпецкомунтрансʼ,03356565,юридична особа
Самопоміч,"Харківська область, Харків, Театральний провулок, 4",51,2018-12-18,234,Оплата ефірного часу на ТБ,Телереклама,166404,Центральний офіс,38558365,Україна,"Оплата винагороди за невиключне право на телевiзiйний показ Твору шляхом передачi в ефiр, згiдно рахунку-фактури NСФ-0000250 вiд 2018-11-16р.",26001053732835,current,8000.00,"ТОВ ""Компанія АТН""",24270655,юридична особа
Самопоміч,"Київ, вулиця Михайла Грушевського, 1Д",70,2018-12-18,CIO1NBFHOY,Банківські послуги,Інші витрати,166403,Центральний офіс,38558365,Україна,"Комiсiя за виконання платежiв в нацiональнiй валютi, згiдно з вiдкритою офертою банку N б/н вiд 2018-04-23 та тарифiв банку, без ПДВ.",26001053732835,current,3.00,"ПАТ КБ ""Приватбанк""",14360570,юридична особа
Самопоміч,"Київ, вулиця Михайла Грушевського, 1Д",70,2018-12-18,CIO1NA7ERY,Банківські послуги,Інші витрати,166402,Центральний офіс,38558365,Україна,"Комiсiя за виконання платежiв в нацiональнiй валютi, згiдно з вiдкритою офертою банку N б/н вiд 2018-04-23 та тарифiв банку, без ПДВ.",26001053732835,current,3.00,"ПАТ КБ ""Приватбанк""",14360570,юридична особа
Самопоміч,"Київ, вулиця Михайла Грушевського, 1Д",70,2018-12-18,CIO1NA7EMY,Банківські послуги,Інші витрати,166401,Центральний офіс,38558365,Україна,"Комiсiя за виконання платежiв в нацiональнiй валютi, згiдно з вiдкритою офертою банку N б/н вiд 2018-04-23 та тарифiв банку, без ПДВ.",26001053732835,current,3.00,"ПАТ КБ ""Приватбанк""",14360570,юридична особа
Самопоміч,"Київ, вулиця Михайла Грушевського, 1Д",70,2018-12-18,CIO1NA7EJY,Банківські послуги,Інші витрати,166400,Центральний офіс,38558365,Україна,"Комiсiя за виконання платежiв в нацiональнiй валютi, згiдно з вiдкритою офертою банку N б/н вiд 2018-04-23 та тарифiв банку, без ПДВ.",26001053732835,current,3.00,"ПАТ КБ ""Приватбанк""",14360570,юридична особа
Самопоміч,"Київ, вулиця Михайла Грушевського, 1Д",70,2018-12-18,CIO1NBFHRY,Банківські послуги,Інші витрати,166399,Центральний офіс,38558365,Україна,"Комiсiя за виконання платежiв в нацiональнiй валютi, згiдно з вiдкритою офертою банку N б/н вiд 2018-04-23 та тарифiв банку, без ПДВ.",26001053732835,current,3.00,"ПАТ КБ ""Приватбанк""",14360570,юридична особа
Самопоміч,"Київ, вулиця Михайла Грушевського, 1Д",70,2018-12-18,CIO1NBFHYY,Банківські послуги,Інші витрати,166398,Центральний офіс,38558365,Україна,"Комiсiя за виконання платежiв в нацiональнiй валютi, згiдно з вiдкритою офертою банку N б/н вiд 2018-04-23 та тарифiв банку, без ПДВ.",26001053732835,current,3.00,"ПАТ КБ ""Приватбанк""",14360570,юридична особа
Самопоміч,"Київ, вулиця Михайла Грушевського, 1Д",70,2018-12-18,CIO1NA7CEY,Банківські послуги,Інші витрати,166397,Центральний офіс,38558365,Україна,"Комiсiя за виконання платежiв в нацiональнiй валютi, згiдно з вiдкритою офертою банку N б/н вiд 2018-04-23 та тарифiв банку, без ПДВ.",26001053732835,current,3.00,"ПАТ КБ ""Приватбанк""",14360570,юридична особа
Самопоміч,"Київ, вулиця Михайла Грушевського, 1Д",70,2018-12-18,CIO1NA7CUY,Банківські послуги,Інші витрати,166396,Центральний офіс,38558365,Україна,"Комiсiя за виконання платежiв в нацiональнiй валютi, згiдно з вiдкритою офертою банку N б/н вiд 2018-04-23 та тарифiв банку, без ПДВ.",26001053732835,current,3.00,"ПАТ КБ ""Приватбанк""",14360570,юридична особа
Самопоміч,"Київ, вулиця Михайла Грушевського, 1Д",70,2018-12-18,CIO1NA7D1Y,Банківські послуги,Інші витрати,166395,Центральний офіс,38558365,Україна,"Комiсiя за виконання платежiв в нацiональнiй валютi, згiдно з вiдкритою офертою банку N б/н вiд 2018-04-23 та тарифiв банку, без ПДВ.",26001053732835,current,3.00,"ПАТ КБ ""Приватбанк""",14360570,юридична особа
Самопоміч,"Київ, вулиця Михайла Грушевського, 1Д",70,2018-12-18,CIO1NA7DDY,Банківські послуги,Інші витрати,166394,Центральний офіс,38558365,Україна,"Комiсiя за виконання платежiв в нацiональнiй валютi, згiдно з вiдкритою офертою банку N б/н вiд 2018-04-23 та тарифiв банку, без ПДВ.",26001053732835,current,3.00,"ПАТ КБ ""Приватбанк""",14360570,юридична особа
Самопоміч,"Київ, вулиця Михайла Грушевського, 1Д",70,2018-12-18,CIO1NA7DEY,Банківські послуги,Інші витрати,166393,Центральний офіс,38558365,Україна,"Комiсiя за виконання платежiв в нацiональнiй валютi, згiдно з вiдкритою офертою банку N б/н вiд 2018-04-23 та тарифiв банку, без ПДВ.",26001053732835,current,3.00,"ПАТ КБ ""Приватбанк""",14360570,юридична особа
Самопоміч,"Київ, вулиця Михайла Грушевського, 1Д",70,2018-12-18,CIO1NA7DHY,Банківські послуги,Інші витрати,166392,Центральний офіс,38558365,Україна,"Комiсiя за виконання платежiв в нацiональнiй валютi, згiдно з вiдкритою офертою банку N б/н вiд 2018-04-23 та тарифiв банку, без ПДВ.",26001053732835,current,3.00,"ПАТ КБ ""Приватбанк""",14360570,юридична особа
Самопоміч,"Київ, вулиця Михайла Грушевського, 1Д",70,2018-12-18,CIO1NA7DPY,Банківські послуги,Інші витрати,166391,Центральний офіс,38558365,Україна,"Комiсiя за виконання платежiв в нацiональнiй валютi, згiдно з вiдкритою офертою банку N б/н вiд 2018-04-23 та тарифiв банку, без ПДВ.",26001053732835,current,3.00,"ПАТ КБ ""Приватбанк""",14360570,юридична особа
Самопоміч,"Київ, вулиця Михайла Грушевського, 1Д",70,2018-12-18,CIO1NA7DRY,Банківські послуги,Інші витрати,166390,Центральний офіс,38558365,Україна,"Комiсiя за виконання платежiв в нацiональнiй валютi, згiдно з вiдкритою офертою банку N б/н вiд 2018-04-23 та тарифiв банку, без ПДВ.",26001053732835,current,3.00,"ПАТ КБ ""Приватбанк""",14360570,юридична особа
Самопоміч,"Київ, вулиця Михайла Грушевського, 1Д",70,2018-12-18,CIO1NA7E2Y,Банківські послуги,Інші витрати,166389,Центральний офіс,38558365,Україна,"Комiсiя за виконання платежiв в нацiональнiй валютi, згiдно з вiдкритою офертою банку N б/н вiд 2018-04-23 та тарифiв банку, без ПДВ.",26001053732835,current,3.00,"ПАТ КБ ""Приватбанк""",14360570,юридична особа
Самопоміч,"Київ, вулиця Михайла Грушевського, 1Д",70,2018-12-18,CIO1NA7DVY,Банківські послуги,Інші витрати,166388,Центральний офіс,38558365,Україна,"Комiсiя за виконання платежiв в нацiональнiй валютi, згiдно з вiдкритою офертою банку N б/н вiд 2018-04-23 та тарифiв банку, без ПДВ.",26001053732835,current,3.00,"ПАТ КБ ""Приватбанк""",14360570,юридична особа
Самопоміч,"Львівська область, Львів, вулиця Конотопська, 6",63,2018-12-18,248,Податок на доходи,Податкові платежі,166387,Центральний офіс,38558365,Україна,*;101;сплата ПДФО вiдмiнний вiд з/п згiдно договору оренди за жовтень 2018р. Роганiна Ю.Г.,26001053732835,current,900.00,УДКСУ у Франківському районі м. Львова,37965138,юридична особа
Самопоміч,"Львівська область, Львів, вулиця Конотопська, 6",61,2018-12-18,249,Військовий збір,Податкові платежі,166386,Центральний офіс,38558365,Україна,*;101;сплата вiйськового збору згiдно договору оренди за жовтень 2018р. Роганiна Ю.Г.,26001053732835,current,75.00,УДКСУ у Франківському районі м. Львова,37965138,юридична особа
Самопоміч,"Хмельницька область, Красилівський район, Красилів",79,2018-12-18,247,"Оренда будинків і приміщень та експлуатаційні витрати (прибирання, страхування орендованих будинків, охорона, сигналізація, ремонт, вивіз сміття, тощо)",Оренда нерухомості,165700,Центральний офіс,38558365,Україна,"Оплата оренди нежитлового примiщення у жовтнi 2018р., зг. акту вiд 31.10.18р.",26001053732835,current,4025.00,Роганіна Юлія Григорівна,,фізична особа
Самопоміч,"Полтавська область, Чорнухинський район, Чорнухи, вулиця Радянська, 86",79,2018-12-18,244,"Оренда будинків і приміщень та експлуатаційні витрати (прибирання, страхування орендованих будинків, охорона, сигналізація, ремонт, вивіз сміття, тощо)",Оренда нерухомості,165699,Центральний офіс,38558365,Україна,"Оплата за суборенду нежитлового примiщення за листопад 2018 р., згiдно акту наданих послуг вiд 2018-11-30 р.",26001053732835,current,1900.00,Пшикало Валентина Іванівна,,фізична особа
Самопоміч,"Дніпропетровська область, Дніпровський район, Дослідне, вулиця Наукова, 43",75,2018-12-18,235,Поштові послуги та поширення друкованих матеріалів,Поштові послуги та поширення друкованих матеріалів,165698,Центральний офіс,38558365,Україна,"Оплата за розповсюдження полiграфiчної продукцiї, згiдно рахунку на оплату N 24 вiд 2018-12-07 р.",26001053732835,current,35512.50,Колісниченко Марина Святославівна,,фізична особа
Самопоміч,"Донецька область, Маріуполь",48,2018-12-18,254,Публікування матеріалів у мережі Інтернет,Реклама в інтернеті,165697,Центральний офіс,38558365,Україна,"Оплата за розмiщення статтi в ТОП на сайтi 0564.ua, згiдно рахунку-фактури N 204-k вiд 2018-12-04 р.",26001053732835,current,5900.00,Єрмаков Максим Ігорович,,фізична особа
Самопоміч,"Закарпатська область, Ужгород, проспект Свободи, 18",79,2018-12-18,237,"Оренда будинків і приміщень та експлуатаційні витрати (прибирання, страхування орендованих будинків, охорона, сигналізація, ремонт, вивіз сміття, тощо)",Оренда нерухомості,165696,Центральний офіс,38558365,Україна,"Оплата за оренду примiщення у листопадi 2018 р., згiдно акту наданих послуг вiд 2018-11-30 р.",26001053732835,current,6585.60,Орос Василь Юрійович,,фізична особа
Самопоміч,"Закарпатська область, Тячівський район, Тячів, вулиця Кошута, 11",76,2018-12-18,243,Послуги зв’язку,Послуги зв’язку,165695,Центральний офіс,38558365,Україна,"Оплата за надання послуг до мережi ""Iнтернет"" у листопадi 2018р., згiдно рахунку-фактури N 11/11 вiд 2018-11-30 р.",26001053732835,current,170.00,Амбруш Олександр Павлович,,фізична особа
Самопоміч,"Житомирська область, Житомир, вулиця Старогончарна, 7, 4",48,2018-12-18,253,Публікування матеріалів у мережі Інтернет,Реклама в інтернеті,165694,Центральний офіс,38558365,Україна,"Оплата за виготовлення та розмiщення матерiалiв у Iнтернет-ЗМI, згiдно акту наданих послуг вiд 2018-11-15 р.",26001053732835,current,2900.00,Харчук Сергій Валерійович,,фізична особа
Самопоміч,"Херсонська область, Херсон, вулиця Михайлівська, 30",52,2018-12-18,251,Інша реклама (без класифікації),Реклама (без класифікації),165693,Центральний офіс,38558365,Україна,"Оплата за виготовлення та розмiщення iнформацiйних матерiалiв, згiдно акту приймання-передачi надання послуг вiд 2018-12-12 р.",26001053732835,current,7000.00,Вірлич Євгенія Михайлівна,,фізична особа
Самопоміч,"Київ, вулиця Єреванська, 1",70,2018-12-17,TR.2436077_3988,Банківські послуги,Інші витрати,170491,Центральний офіс,38558365,Україна,"Плата за розрахункове обслуговування по рахунку № 26008924418040.980 з 2018-12-17 по 2018-12-17 згідно Договору № 2016/РКО/291-024 від 2016-09-02 р, без ПДВ",26008924418040,state,0.80,"АБ ""Укргазбанк""",23697280,юридична особа
Самопоміч,"Київ, вулиця Єреванська, 1",70,2018-12-17,TR.2436077_3987,Банківські послуги,Інші витрати,170490,Центральний офіс,38558365,Україна,"Плата за розрахункове обслуговування по рахунку № 26008924418040.980 з 2018-12-17 по 2018-12-17 згідно Договору № 2016/РКО/291-024 від 2016-09-02 р, без ПДВ",26008924418040,state,0.80,"АБ ""Укргазбанк""",23697280,юридична особа
Самопоміч,"Київ, вулиця Єреванська, 1",70,2018-12-17,TR.2436077_3986,Банківські послуги,Інші витрати,170489,Центральний офіс,38558365,Україна,"Плата за розрахункове обслуговування по рахунку № 26008924418040.980 з 2018-12-17 по 2018-12-17 згідно Договору № 2016/РКО/291-024 від 2016-09-02 р, без ПДВ",26008924418040,state,0.80,"АБ ""Укргазбанк""",23697280,юридична особа
Самопоміч,"Київ, вулиця Єреванська, 1",70,2018-12-17,TR.2436077_3985,Банківські послуги,Інші витрати,170488,Центральний офіс,38558365,Україна,"Плата за розрахункове обслуговування по рахунку № 26008924418040.980 з 2018-12-17 по 2018-12-17 згідно Договору № 2016/РКО/291-024 від 2016-09-02 р, без ПДВ",26008924418040,state,0.80,"АБ ""Укргазбанк""",23697280,юридична особа
Самопоміч,"Київ, вулиця Єреванська, 1",70,2018-12-17,5098,Банківські послуги,Інші витрати,170487,Центральний офіс,38558365,Україна,Банківська комісія за виплату відпускних працівників за грудень 2018 р.,26008924418040,state,77.01,"АБ ""Укргазбанк""",23697280,юридична особа
Самопоміч,"Львівська область, Львів, вулиця Конотопська, 6",63,2018-12-17,5096,Податок на доходи,Податкові платежі,170486,Центральний офіс,38558365,Україна,*;101;38558365; сплата ПДФО із відпускних працівників за грудень 2018 р.;;;11010100,26008924418040,state,3444.01,УДКСУ у Франківському районі м. Львова,37965138,юридична особа
Самопоміч,"Львівська область, Львів, вулиця Стрийська, 35",62,2018-12-17,5094,Сплата ЄСВ,Податкові платежі,170485,Центральний офіс,38558365,Україна,*;101;38558365; сплата єдиного соціального внеску 8.41% із відпускних працівників за грудень 2018 р . ;;;71010000,26008924418040,state,103.44,Залізнична ОДПІ ГУ ДФС у Львівській області,39554382,юридична особа
Самопоміч,"Львівська область, Львів, вулиця Стрийська, 35",62,2018-12-17,5095,Сплата ЄСВ,Податкові платежі,170484,Центральний офіс,38558365,Україна,*;101;38558365; сплата єдиного соціального внеску 22% із відпускних працівників за грудень 2018 р . ;;;71010000,26008924418040,state,3938.74,Залізнична ОДПІ ГУ ДФС у Львівській області,39554382,юридична особа
Самопоміч,"Львівська область, Львів, вулиця Конотопська, 6",61,2018-12-17,5099,Військовий збір,Податкові платежі,170483,Центральний офіс,38558365,Україна,*;101;38558365; сплата військового збору із відпускних працівників за грудень 2018 р.;;; 11011000,26008924418040,state,287.00,УДКСУ у Франківському районі м. Львова,37965138,юридична особа
Самопоміч,"Львівська область, Сокальський район",84,2018-12-17,278,"Заробітна плата, премії","Заробітна плата, лікарняні, вагітності, відрядження, компенсації",168718,Центральний офіс,38558365,Україна,Зарплата,26008924418040,state,1774.38,Чунис Олег Романович,,фізична особа
Самопоміч,"Львівська область, Львів",84,2018-12-17,278,"Заробітна плата, премії","Заробітна плата, лікарняні, вагітності, відрядження, компенсації",168717,Центральний офіс,38558365,Україна,Зарплата,26008924418040,state,1807.96,Бенцало Любов Леонідівна,,фізична особа
Самопоміч,"Львівська область, Пустомитівський район",84,2018-12-17,278,"Заробітна плата, премії","Заробітна плата, лікарняні, вагітності, відрядження, компенсації",168716,Центральний офіс,38558365,Україна,Зарплата,26008924418040,state,652.66,Зільник Віталій Михайлович,,фізична особа
Самопоміч,"Львівська область, Львів",84,2018-12-17,278,"Заробітна плата, премії","Заробітна плата, лікарняні, вагітності, відрядження, компенсації",168715,Центральний офіс,38558365,Україна,Зарплата,26008924418040,state,1642.95,Котляров Олександр Володимирович,,фізична особа
Самопоміч,"Хмельницька область, Кам'янець-Подільський",84,2018-12-17,278,"Заробітна плата, премії","Заробітна плата, лікарняні, вагітності, відрядження, компенсації",168714,Центральний офіс,38558365,Україна,Зарплата,26008924418040,state,702.76,Нагнибіда Діна Анатоліївна,,фізична особа
Самопоміч,"Львівська область, Пустомитівський район",84,2018-12-17,278,"Заробітна плата, премії","Заробітна плата, лікарняні, вагітності, відрядження, компенсації",168713,Центральний офіс,38558365,Україна,Зарплата,26008924418040,state,822.74,Гуль Оксана Семенівна,,фізична особа
Самопоміч,"Львівська область, Мостиський район, Мостиська",84,2018-12-17,278,"Заробітна плата, премії","Заробітна плата, лікарняні, вагітності, відрядження, компенсації",168712,Центральний офіс,38558365,Україна,Зарплата,26008924418040,state,990.15,Олешко Оксана Богданівна,,фізична особа
Самопоміч,"Львівська область, Львів",84,2018-12-17,278,"Заробітна плата, премії","Заробітна плата, лікарняні, вагітності, відрядження, компенсації",168711,Центральний офіс,38558365,Україна,Зарплата,26008924418040,state,1401.26,Боршовська Галина Ярославівна,,фізична особа
Самопоміч,"Івано-Франківська область, Івано-Франківськ",84,2018-12-17,278,"Заробітна плата, премії","Заробітна плата, лікарняні, вагітності, відрядження, компенсації",168710,Центральний офіс,38558365,Україна,Зарплата,26008924418040,state,388.41,Войтович Роман Степанович,,фізична особа
Самопоміч,Київ,84,2018-12-17,278,"Заробітна плата, премії","Заробітна плата, лікарняні, вагітності, відрядження, компенсації",168709,Центральний офіс,38558365,Україна,Зарплата,26008924418040,state,5219.11,Криворучко Ольга Олександрівна,,фізична особа
Самопоміч,"Київ, вулиця Панаса Мирного, 7",82,2018-12-17,224,"Гонорари, в тому числі за надані консультаційні послуги","Гонорари, в тому числі за надані консультаційні послуги",166385,Центральний офіс,38558365,Україна,"Часткова оплата за надання правничої допомоги, згiдно рахунку на оплату N38 вiд 2018-11-29р. в т.ч. ПДВ 33333.33 грн.",26001053732835,current,200000.00,Адвокатське обʼєднання 'Юридична фірма 'АРІО',40123659,юридична особа
Самопоміч,"Чернігівська область, Ніжин",75,2018-12-17,223,Поштові послуги та поширення друкованих матеріалів,Поштові послуги та поширення друкованих матеріалів,166384,Центральний офіс,38558365,Україна,"Оплата за розповсюдження полiграфiчної продукцiї, згiдно акту надання послуг з розповсюдження продукцiї NАI-11/04 вiд 2018-11-21 р.",26001053732835,current,20806.70,ПП ʼАБП-сервісʼ,36697746,юридична особа
Самопоміч,"Вінницька область, Козятинський район, Пляхова",48,2018-12-17,231,Публікування матеріалів у мережі Інтернет,Реклама в інтернеті,166383,Центральний офіс,38558365,Україна,"Оплата за розмiщення iнформацiйних матерiалiв на iнтернет ресурсi, згiдно акту приймання-передачi наданих послуг вiд 2018-12-06 р.",26001053732835,current,1800.00,"ТОВ ""РІА МЕДІА""",40914460,юридична особа
Самопоміч,"Вінницька область, Козятинський район, Пляхова",48,2018-12-17,230,Публікування матеріалів у мережі Інтернет,Реклама в інтернеті,166382,Центральний офіс,38558365,Україна,"Оплата за розмiщення iнформацiйних матерiалiв на iнтернет ресурсi, згiдно акту приймання-передачi наданих послуг вiд 2018-12-04 р.",26001053732835,current,1800.00,"ТОВ ""РІА МЕДІА""",40914460,юридична особа
Самопоміч,"Львівська область, Моршин, вулиця Геологів, 12",79,2018-12-17,228,"Оренда будинків і приміщень та експлуатаційні витрати (прибирання, страхування орендованих будинків, охорона, сигналізація, ремонт, вивіз сміття, тощо)",Оренда нерухомості,166381,Центральний офіс,38558365,Україна,"Оплата за питну воду, згiдно рахунку-фактури N 3440148524 вiд 12.11.18 р. в т.ч. ПДВ 150.00 грн.",26001053732835,current,900.00,ТОВ ʼІДС АКВА СЕРВІСʼ,42201052,юридична особа
Самопоміч,"Львівська область, Моршин, вулиця Геологів, 12",79,2018-12-17,229,"Оренда будинків і приміщень та експлуатаційні витрати (прибирання, страхування орендованих будинків, охорона, сигналізація, ремонт, вивіз сміття, тощо)",Оренда нерухомості,166380,Центральний офіс,38558365,Україна,"Оплата за питну воду та господарськi товари, згiдно рахунку-фактури N 3440169150 вiд 21.11.18 р. в т.ч. ПДВ 98.17 грн.",26001053732835,current,589.00,ТОВ ʼІДС АКВА СЕРВІСʼ,42201052,юридична особа
Самопоміч,"Львівська область, Трускавець, вулиця Бориславська, 1",79,2018-12-17,227,"Оренда будинків і приміщень та експлуатаційні витрати (прибирання, страхування орендованих будинків, охорона, сигналізація, ремонт, вивіз сміття, тощо)",Оренда нерухомості,166379,Центральний офіс,38558365,Україна,"Оплата за оренду примiщення у листопалi 2018 р. в т.ч. вiдшкодування земельного податку 24,64 грн., згiдно рахунку N 133 вiд 2018-12-12 р.",26001053732835,current,1816.44,Відділ культури Трускавецької міської ради,02229209,юридична особа
Самопоміч,"Івано-Франківська область, Верховинський район, Верховина, вулиця Івана Франка, 19",79,2018-12-17,212,"Оренда будинків і приміщень та експлуатаційні витрати (прибирання, страхування орендованих будинків, охорона, сигналізація, ремонт, вивіз сміття, тощо)",Оренда нерухомості,166378,Центральний офіс,38558365,Україна,"Оплата за оренду нежитлового примiщення у жовтнi 2018 р., згiдно акту наданих послуг вiд 2018-11-01р.",26001053732835,current,2700.00,"ТОВ ""Побутовик+""",02139386,юридична особа
Самопоміч,"Івано-Франківська область, Верховинський район, Верховина, вулиця Івана Франка, 19",79,2018-12-17,211,"Оренда будинків і приміщень та експлуатаційні витрати (прибирання, страхування орендованих будинків, охорона, сигналізація, ремонт, вивіз сміття, тощо)",Оренда нерухомості,166377,Центральний офіс,38558365,Україна,"Оплата за оренду нежитлового примiщення у листопадi 2018 р., згiдно акту наданих послуг вiд 2018-12-01р.",26001053732835,current,2700.00,"ТОВ ""Побутовик+""",02139386,юридична особа
Самопоміч,"Львівська область, Трускавець, вулиця Бориславська, 1",79,2018-12-17,226,"Оренда будинків і приміщень та експлуатаційні витрати (прибирання, страхування орендованих будинків, охорона, сигналізація, ремонт, вивіз сміття, тощо)",Оренда нерухомості,166376,Центральний офіс,38558365,Україна,"Оплата за вiдшкодування витрат по комунальних послугах за листопад 2018 р., згiдно рахунку N 127 вiд 2018-12-07 р.",26001053732835,current,557.89,Відділ культури Трускавецької міської ради,02229209,юридична особа
Самопоміч,"Київ, вулиця Михайла Грушевського, 1Д",70,2018-12-17,CHO1N4MPRA,Банківські послуги,Інші витрати,166375,Центральний офіс,38558365,Україна,Комiсiя за поповнення карток для виплат,26001053732835,current,4.83,"ПАТ КБ ""Приватбанк""",14360570,юридична особа
Самопоміч,"Київ, вулиця Михайла Грушевського, 1Д",70,2018-12-17,CHO1N4FTMY,Банківські послуги,Інші витрати,166374,Центральний офіс,38558365,Україна,"Комiсiя за виконання платежiв в нацiональнiй валютi, згiдно з вiдкритою офертою банку N б/н вiд 2018-04-23 та тарифiв банку, без ПДВ.",26001053732835,current,3.00,"ПАТ КБ ""Приватбанк""",14360570,юридична особа
Самопоміч,"Київ, вулиця Михайла Грушевського, 1Д",70,2018-12-17,CHO1N4FTKY,Банківські послуги,Інші витрати,166373,Центральний офіс,38558365,Україна,"Комiсiя за виконання платежiв в нацiональнiй валютi, згiдно з вiдкритою офертою банку N б/н вiд 2018-04-23 та тарифiв банку, без ПДВ.",26001053732835,current,3.00,"ПАТ КБ ""Приватбанк""",14360570,юридична особа
Самопоміч,"Київ, вулиця Михайла Грушевського, 1Д",70,2018-12-17,CHO1N4FT5Y,Банківські послуги,Інші витрати,166372,Центральний офіс,38558365,Україна,"Комiсiя за виконання платежiв в нацiональнiй валютi, згiдно з вiдкритою офертою банку N б/н вiд 2018-04-23 та тарифiв банку, без ПДВ.",26001053732835,current,3.00,"ПАТ КБ ""Приватбанк""",14360570,юридична особа
Самопоміч,"Київ, вулиця Михайла Грушевського, 1Д",70,2018-12-17,CHO1N4FT3Y,Банківські послуги,Інші витрати,166371,Центральний офіс,38558365,Україна,"Комiсiя за виконання платежiв в нацiональнiй валютi, згiдно з вiдкритою офертою банку N б/н вiд 2018-04-23 та тарифiв банку, без ПДВ.",26001053732835,current,3.00,"ПАТ КБ ""Приватбанк""",14360570,юридична особа
Самопоміч,"Київ, вулиця Михайла Грушевського, 1Д",70,2018-12-17,CHO1N4FSYY,Банківські послуги,Інші витрати,166370,Центральний офіс,38558365,Україна,"Комiсiя за виконання платежiв в нацiональнiй валютi, згiдно з вiдкритою офертою банку N б/н вiд 2018-04-23 та тарифiв банку, без ПДВ.",26001053732835,current,3.00,"ПАТ КБ ""Приватбанк""",14360570,юридична особа
Самопоміч,"Київ, вулиця Михайла Грушевського, 1Д",70,2018-12-17,CHO1N4FSTY,Банківські послуги,Інші витрати,166369,Центральний офіс,38558365,Україна,"Комiсiя за виконання платежiв в нацiональнiй валютi, згiдно з вiдкритою офертою банку N б/н вiд 2018-04-23 та тарифiв банку, без ПДВ.",26001053732835,current,3.00,"ПАТ КБ ""Приватбанк""",14360570,юридична особа
Самопоміч,"Київ, вулиця Михайла Грушевського, 1Д",70,2018-12-17,CHO1N5LL5Y,Банківські послуги,Інші витрати,166368,Центральний офіс,38558365,Україна,"Комiсiя за виконання платежiв в нацiональнiй валютi, згiдно з вiдкритою офертою банку N б/н вiд 2018-04-23 та тарифiв банку, без ПДВ.",26001053732835,current,3.00,"ПАТ КБ ""Приватбанк""",14360570,юридична особа
Самопоміч,"Київ, вулиця Михайла Грушевського, 1Д",70,2018-12-17,CHO1N5CG2Y,Банківські послуги,Інші витрати,166367,Центральний офіс,38558365,Україна,"Комiсiя за виконання платежiв в нацiональнiй валютi, згiдно з вiдкритою офертою банку N б/н вiд 2018-04-23 та тарифiв банку, без ПДВ.",26001053732835,current,3.00,"ПАТ КБ ""Приватбанк""",14360570,юридична особа
Самопоміч,"Київ, вулиця Михайла Грушевського, 1Д",70,2018-12-17,CHO1N4TQPY,Банківські послуги,Інші витрати,166366,Центральний офіс,38558365,Україна,"Комiсiя за виконання платежiв в нацiональнiй валютi, згiдно з вiдкритою офертою банку N б/н вiд 2018-04-23 та тарифiв банку, без ПДВ.",26001053732835,current,3.00,"ПАТ КБ ""Приватбанк""",14360570,юридична особа
Самопоміч,"Київ, вулиця Михайла Грушевського, 1Д",70,2018-12-17,CHO1N5CG8Y,Банківські послуги,Інші витрати,166365,Центральний офіс,38558365,Україна,"Комiсiя за виконання платежiв в нацiональнiй валютi, згiдно з вiдкритою офертою банку N б/н вiд 2018-04-23 та тарифiв банку, без ПДВ.",26001053732835,current,3.00,"ПАТ КБ ""Приватбанк""",14360570,юридична особа
Самопоміч,"Київ, вулиця Михайла Грушевського, 1Д",70,2018-12-17,CHO1N4TQLY,Банківські послуги,Інші витрати,166364,Центральний офіс,38558365,Україна,"Комiсiя за виконання платежiв в нацiональнiй валютi, згiдно з вiдкритою офертою банку N б/н вiд 2018-04-23 та тарифiв банку, без ПДВ.",26001053732835,current,3.00,"ПАТ КБ ""Приватбанк""",14360570,юридична особа
Самопоміч,"Київ, вулиця Михайла Грушевського, 1Д",70,2018-12-17,CHO1N4MNGY,Банківські послуги,Інші витрати,166363,Центральний офіс,38558365,Україна,"Комiсiя за виконання платежiв в нацiональнiй валютi, згiдно з вiдкритою офертою банку N б/н вiд 2018-04-23 та тарифiв банку, без ПДВ.",26001053732835,current,3.00,"ПАТ КБ ""Приватбанк""",14360570,юридична особа
Самопоміч,"Київ, вулиця Михайла Грушевського, 1Д",70,2018-12-17,CHO1N4MOKY,Банківські послуги,Інші витрати,166362,Центральний офіс,38558365,Україна,"Комiсiя за виконання платежiв в нацiональнiй валютi, згiдно з вiдкритою офертою банку N б/н вiд 2018-04-23 та тарифiв банку, без ПДВ.",26001053732835,current,3.00,"ПАТ КБ ""Приватбанк""",14360570,юридична особа
Самопоміч,"Київ, вулиця Михайла Грушевського, 1Д",70,2018-12-17,CHO1N51JOY,Банківські послуги,Інші витрати,166361,Центральний офіс,38558365,Україна,"Комiсiя за виконання платежiв в нацiональнiй валютi, згiдно з вiдкритою офертою банку N б/н вiд 2018-04-23 та тарифiв банку, без ПДВ.",26001053732835,current,3.00,"ПАТ КБ ""Приватбанк""",14360570,юридична особа
Самопоміч,"Київ, вулиця Михайла Грушевського, 1Д",70,2018-12-17,CHO1N4TQDY,Банківські послуги,Інші витрати,166360,Центральний офіс,38558365,Україна,"Комiсiя за виконання платежiв в нацiональнiй валютi, згiдно з вiдкритою офертою банку N б/н вiд 2018-04-23 та тарифiв банку, без ПДВ.",26001053732835,current,3.00,"ПАТ КБ ""Приватбанк""",14360570,юридична особа
Самопоміч,"Київ, вулиця Михайла Грушевського, 1Д",70,2018-12-17,CHO1N51JUY,Банківські послуги,Інші витрати,166359,Центральний офіс,38558365,Україна,"Комiсiя за виконання платежiв в нацiональнiй валютi, згiдно з вiдкритою офертою банку N б/н вiд 2018-04-23 та тарифiв банку, без ПДВ.",26001053732835,current,3.00,"ПАТ КБ ""Приватбанк""",14360570,юридична особа
Самопоміч,"Київ, вулиця Михайла Грушевського, 1Д",70,2018-12-17,CHO1N4TOBY,Банківські послуги,Інші витрати,166358,Центральний офіс,38558365,Україна,"Комiсiя за виконання платежiв в нацiональнiй валютi, згiдно з вiдкритою офертою банку N б/н вiд 2018-04-23 та тарифiв банку, без ПДВ.",26001053732835,current,3.00,"ПАТ КБ ""Приватбанк""",14360570,юридична особа
Самопоміч,"Київ, вулиця Михайла Грушевського, 1Д",70,2018-12-17,CHO1N4TONY,Банківські послуги,Інші витрати,166357,Центральний офіс,38558365,Україна,"Комiсiя за виконання платежiв в нацiональнiй валютi, згiдно з вiдкритою офертою банку N б/н вiд 2018-04-23 та тарифiв банку, без ПДВ.",26001053732835,current,3.00,"ПАТ КБ ""Приватбанк""",14360570,юридична особа
Самопоміч,"Київ, вулиця Михайла Грушевського, 1Д",70,2018-12-17,CHO1N4TOUY,Банківські послуги,Інші витрати,166356,Центральний офіс,38558365,Україна,"Комiсiя за виконання платежiв в нацiональнiй валютi, згiдно з вiдкритою офертою банку N б/н вiд 2018-04-23 та тарифiв банку, без ПДВ.",26001053732835,current,3.00,"ПАТ КБ ""Приватбанк""",14360570,юридична особа
Самопоміч,"Київ, вулиця Михайла Грушевського, 1Д",70,2018-12-17,CHO1N4TQ6Y,Банківські послуги,Інші витрати,166355,Центральний офіс,38558365,Україна,"Комiсiя за виконання платежiв в нацiональнiй валютi, згiдно з вiдкритою офертою банку N б/н вiд 2018-04-23 та тарифiв банку, без ПДВ.",26001053732835,current,3.00,"ПАТ КБ ""Приватбанк""",14360570,юридична особа
Самопоміч,"Київ, вулиця Михайла Грушевського, 1Д",70,2018-12-17,CHO1N4TPZY,Банківські послуги,Інші витрати,166354,Центральний офіс,38558365,Україна,"Комiсiя за виконання платежiв в нацiональнiй валютi, згiдно з вiдкритою офертою банку N б/н вiд 2018-04-23 та тарифiв банку, без ПДВ.",26001053732835,current,3.00,"ПАТ КБ ""Приватбанк""",14360570,юридична особа
Самопоміч,"Київ, вулиця Михайла Грушевського, 1Д",70,2018-12-17,CHO1N4TPTY,Банківські послуги,Інші витрати,166353,Центральний офіс,38558365,Україна,"Комiсiя за виконання платежiв в нацiональнiй валютi, згiдно з вiдкритою офертою банку N б/н вiд 2018-04-23 та тарифiв банку, без ПДВ.",26001053732835,current,3.00,"ПАТ КБ ""Приватбанк""",14360570,юридична особа
Самопоміч,"Київ, вулиця Михайла Грушевського, 1Д",70,2018-12-17,CHO1N4TPPY,Банківські послуги,Інші витрати,166352,Центральний офіс,38558365,Україна,"Комiсiя за виконання платежiв в нацiональнiй валютi, згiдно з вiдкритою офертою банку N б/н вiд 2018-04-23 та тарифiв банку, без ПДВ.",26001053732835,current,3.00,"ПАТ КБ ""Приватбанк""",14360570,юридична особа
Самопоміч,"Київ, вулиця Михайла Грушевського, 1Д",70,2018-12-17,CHO1N4TOZY,Банківські послуги,Інші витрати,166351,Центральний офіс,38558365,Україна,"Комiсiя за виконання платежiв в нацiональнiй валютi, згiдно з вiдкритою офертою банку N б/н вiд 2018-04-23 та тарифiв банку, без ПДВ.",26001053732835,current,3.00,"ПАТ КБ ""Приватбанк""",14360570,юридична особа
Самопоміч,"Київ, вулиця Михайла Грушевського, 1Д",70,2018-12-17,CHO1N4TP8Y,Банківські послуги,Інші витрати,166350,Центральний офіс,38558365,Україна,"Комiсiя за виконання платежiв в нацiональнiй валютi, згiдно з вiдкритою офертою банку N б/н вiд 2018-04-23 та тарифiв банку, без ПДВ.",26001053732835,current,3.00,"ПАТ КБ ""Приватбанк""",14360570,юридична особа
Самопоміч,"Київ, вулиця Михайла Грушевського, 1Д",70,2018-12-17,CHO1N4TPLY,Банківські послуги,Інші витрати,166349,Центральний офіс,38558365,Україна,"Комiсiя за виконання платежiв в нацiональнiй валютi, згiдно з вiдкритою офертою банку N б/н вiд 2018-04-23 та тарифiв банку, без ПДВ.",26001053732835,current,3.00,"ПАТ КБ ""Приватбанк""",14360570,юридична особа
Самопоміч,"Львівська область, Львів, вулиця Конотопська, 6",63,2018-12-17,213,Податок на доходи,Податкові платежі,166348,Центральний офіс,38558365,Україна,*;101;сплата ПДФО вiдмiнний вiд з/п згiдно договору суборенди Гусак Ю.В. за листопад 2018 р.,26001053732835,current,359.86,УДКСУ у Франківському районі м. Львова,37965138,юридична особа
Самопоміч,"Львівська область, Львів, вулиця Конотопська, 6",61,2018-12-17,214,Військовий збір,Податкові платежі,166347,Центральний офіс,38558365,Україна,*;101;сплата вiйськового збору згiдно договору суборенди за листопад 2018 р. Гусак Ю.В.,26001053732835,current,29.99,УДКСУ у Франківському районі м. Львова,37965138,юридична особа
Самопоміч,"Львівська область, Стебник, вулиця Михайла Грушевського, 13",82,2018-12-17,221,"Гонорари, в тому числі за надані консультаційні послуги","Гонорари, в тому числі за надані консультаційні послуги",165692,Центральний офіс,38558365,Україна,"Оплата за юридичнi послуги за перiод з 2018-12-01 р. до 2018-12-14 р., згiдно акту про надання послуг N 29 вiд 2018-12-14 р.",26001053732835,current,5000.00,Романишин Тарас Миколайович,,фізична особа
Самопоміч,"Київ, вулиця Генерала Генадія Воробйова, 13В",75,2018-12-17,221,Поштові послуги та поширення друкованих матеріалів,Поштові послуги та поширення друкованих матеріалів,165691,Центральний офіс,38558365,Україна,"Оплата за розповсюдження полiграфiчної продукцiї, згiдно рахунку на оплату N93 вiд 2018-12-03 р.",26001053732835,current,66000.00,Котова Наталія Дмитрівна,,фізична особа
Самопоміч,"Київ, вулиця Генерала Генадія Воробйова, 13В",75,2018-12-17,222,Поштові послуги та поширення друкованих матеріалів,Поштові послуги та поширення друкованих матеріалів,165690,Центральний офіс,38558365,Україна,"Оплата за розповсюдження полiграфiчної продукцiї, згiдно рахунку на оплату N89 вiд 2018-11-19 р.",26001053732835,current,84000.00,Котова Наталія Дмитрівна,,фізична особа
Самопоміч,"Київська обл., Васильків, вулиця Шевченка, 23",75,2018-12-17,233,Поштові послуги та поширення друкованих матеріалів,Поштові послуги та поширення друкованих матеріалів,165689,Центральний офіс,38558365,Україна,"Оплата за розповсюдження полiграфiчної продукцiї, згiдно акту надання послуг з розповсюдження продукцiї N 34 вiд 2018-11-08 р.",26001053732835,current,9975.00,Шабанова Сніжана Михайлівна,,фізична особа
Самопоміч,"Сумська область, Охтирський район, Чернеччина",75,2018-12-17,225,Поштові послуги та поширення друкованих матеріалів,Поштові послуги та поширення друкованих матеріалів,165688,Центральний офіс,38558365,Україна,"Оплата за розповсюдження полiграфiї, згiдно акту надання послуг з розповсюдження продукцiї N12 вiд 2018-12-05 р.",26001053732835,current,6039.20,Канівець Юрій Олексійович,,фізична особа
Самопоміч,"Львівська область, Львів, вулиця Володимира Великого, 63, 305",75,2018-12-17,232,Поштові послуги та поширення друкованих матеріалів,Поштові послуги та поширення друкованих матеріалів,165687,Центральний офіс,38558365,Україна,"Оплата за розповсюдження газети ""Обʼєднання ""Самопомiч"", згiдно акту надання послуг з розповсюдження продукцiї N7 вiд 2018-12-06 р.",26001053732835,current,36700.20,Великий Остап Васильович,,фізична особа
Самопоміч,"Львівська область, Львів, вулиця Паньківського, 4",78,2018-12-17,230,Оренда обладнання та технічних засобів,Оренда обладнання та технічних засобів,165686,Центральний офіс,38558365,Україна,"Оплата за оренду кма ricoh за жовтень 2018 р., згiдно рахунку N 8246/1 вiд 31.10.18 р.",26001053732835,current,1250.00,Зборовський Даниїл Євгенович,,фізична особа
Самопоміч,"Львівська область, Львів, вулиця Паньківського, 4",78,2018-12-17,229,Оренда обладнання та технічних засобів,Оренда обладнання та технічних засобів,165685,Центральний офіс,38558365,Україна,"Оплата за оренду кма ricoh за жовтень 2018 р., згiдно рахунку N 8245/1 вiд 31.10.18 р.",26001053732835,current,1250.00,Зборовський Даниїл Євгенович,,фізична особа
Самопоміч,"Львівська область, Львів, вулиця Паньківського, 4",78,2018-12-17,228,Оренда обладнання та технічних засобів,Оренда обладнання та технічних засобів,165684,Центральний офіс,38558365,Україна,"Оплата за оренду кма ricoh за жовтень 2018 р., згiдно рахунку N 8242/1 вiд 31.10.18 р.",26001053732835,current,1250.00,Зборовський Даниїл Євгенович,,фізична особа
Самопоміч,"Львівська область, Львів, вулиця Паньківського, 4",78,2018-12-17,231,Оренда обладнання та технічних засобів,Оренда обладнання та технічних засобів,165683,Центральний офіс,38558365,Україна,"Оплата за оренду кма ricoh за жовтень 2018 р. та виготовлення копiй А4, згiдно рахунку N 8244/1 вiд 31.10.18 р.",26001053732835,current,1555.83,Зборовський Даниїл Євгенович,,фізична особа
Самопоміч,"Львівська область, Львів, вулиця Паньківського, 4",78,2018-12-17,232,Оренда обладнання та технічних засобів,Оренда обладнання та технічних засобів,165682,Центральний офіс,38558365,Україна,"Оплата за оренду кма ricoh за жовтень 2018 р. та виготовлення копiй А4, згiдно рахунку N 8157/1 вiд 31.10.18 р.",26001053732835,current,1500.00,Зборовський Даниїл Євгенович,,фізична особа
Самопоміч,"Львівська область, Яворівський район, Бірки, вулиця Брюховицька, 26",75,2018-12-17,217,Поштові послуги та поширення друкованих матеріалів,Поштові послуги та поширення друкованих матеріалів,165681,Центральний офіс,38558365,Україна,"Оплата за обслуговування системи, згiдно акту прийому-передачi наданих послуг вiд 2018-09-18 р.",26001053732835,current,87600.00,Пасемко Ігор Степанович,,фізична особа
Самопоміч,"Львівська область, Яворівський район, Бірки, вулиця Брюховицька, 26",75,2018-12-17,216,Поштові послуги та поширення друкованих матеріалів,Поштові послуги та поширення друкованих матеріалів,165680,Центральний офіс,38558365,Україна,"Оплата за обслуговування системи, згiдно акту прийому-передачi наданих послуг вiд 2018-08-20 р.",26001053732835,current,106800.00,Пасемко Ігор Степанович,,фізична особа
Самопоміч,"Львівська область, Львів, вулиця Паньківського, 4",78,2018-12-17,233,Оренда обладнання та технічних засобів,Оренда обладнання та технічних засобів,165679,Центральний офіс,38558365,Україна,"Оплата за обслуговування орг. технiки за жовтень, згiдно рахунку N 8113/1 вiд 31.10.18 р.",26001053732835,current,469.00,Зборовський Даниїл Євгенович,,фізична особа
Самопоміч,"Львівська область, Львів, вулиця Паньківського, 4",78,2018-12-17,233,Оренда обладнання та технічних засобів,Оренда обладнання та технічних засобів,165678,Центральний офіс,38558365,Україна,"Оплата за обслуговування орг. технiки за жовтень, згiдно рахунку N 7975/1 вiд 31.10.18 р.",26001053732835,current,1200.00,Зборовський Даниїл Євгенович,,фізична особа
Самопоміч,"Львівська область, Львів, вулиця Паньківського, 4",78,2018-12-17,232,Оренда обладнання та технічних засобів,Оренда обладнання та технічних засобів,165677,Центральний офіс,38558365,Україна,"Оплата за обслуговування орг. технiки з жовтень, згiдно рахунку N 8151/1 вiд 31.10.18 р.",26001053732835,current,1480.00,Зборовський Даниїл Євгенович,,фізична особа
Самопоміч,"Донецька область, Маріуполь, вулиця Пилипа Орлика, 106",73,2018-12-17,220,Придбання меблів,Придбання меблів,165676,Центральний офіс,38558365,Україна,"Оплата за меблi, згiдно видаткової накладної N00067 вiд 2018-12-04р.",26001053732835,current,18700.00,Коваленко Олександра Володимирівна,,фізична особа
Самопоміч,"Львівська область, Львів, вулиця Шафарика, 6, 168",71,2018-12-17,220,Придбання рухомого майна (окрім транспортних засобів),Інші витрати,165675,Центральний офіс,38558365,Україна,"Оплата за куби металевi, згiдно видаткової накладної Nв-000000911 вiд 2018-11-09р.",26001053732835,current,100800.00,Панас Андрій Орестович,,фізична особа
Самопоміч,"Львівська область, Яворівський район, Бірки, вулиця Брюховицька, 26",75,2018-12-17,218,Поштові послуги та поширення друкованих матеріалів,Поштові послуги та поширення друкованих матеріалів,165674,Центральний офіс,38558365,Україна,"Оплата за користувацький супровiд i обслуговування системи, згiдно акту прийому-передачi наданих послуг вiд 2018-08-31 р.",26001053732835,current,29998.00,Пасемко Ігор Степанович,,фізична особа
Самопоміч,"Львівська область, Яворівський район, Бірки, вулиця Брюховицька, 26",75,2018-12-17,219,Поштові послуги та поширення друкованих матеріалів,Поштові послуги та поширення друкованих матеріалів,165673,Центральний офіс,38558365,Україна,"Оплата за користувацький супровiд i обслуговування системи, згiдно акту прийому-передачi наданих послуг вiд 2018-09-28 р.",26001053732835,current,83800.00,Пасемко Ігор Степанович,,фізична особа
Самопоміч,"Донецька область, Покровськ",79,2018-12-17,215,"Оренда будинків і приміщень та експлуатаційні витрати (прибирання, страхування орендованих будинків, охорона, сигналізація, ремонт, вивіз сміття, тощо)",Оренда нерухомості,165672,Центральний офіс,38558365,Україна,"Оплата суборенди нежитлового примiщення за листопад 2018 р.,зг. акту вiд 2018-11-30 р.",26001053732835,current,1609.35,Гусак Юрій Вікторович,,фізична особа
Самопоміч,"Київ, вулиця Турівська, 12",62,2018-12-14,307,Сплата ЄСВ,Податкові платежі,170617,Київська міська організація,39842314,Київ,ЄСВ вiд зарплати за грудень 2018р.,26005056218695,current,250.00,ДПІ у Подільському районі ГУ ДФС у м. Києві,39467012,юридична особа
Самопоміч,"Київ, вулиця Межигірська, 25",63,2018-12-14,306,Податок на доходи,Податкові платежі,170613,Київська міська організація,39842314,Київ,ПДФО вiд зарплати за грудень 2018 р.,26005056218695,current,200.00,УДКСУ у Подільському районі м. Києва,37975298,юридична особа
Самопоміч,"Київ, вулиця Межигірська, 25",61,2018-12-14,308,Військовий збір,Податкові платежі,170612,Київська міська організація,39842314,Київ,Вiйськовий збiр вiд зарплати за грудень 2018р.,26005056218695,current,20.00,УДКСУ у Подільському районі м. Києва,37975298,юридична особа
Самопоміч,"Київ, вулиця Михайла Грушевського, 1Д",70,2018-12-14,305,Банківські послуги,Інші витрати,170592,Київська міська організація,39842314,Київ,Комiсiя РКО вiд зарплати за грудень 2018р.,26005056218695,current,2.25,"ПАТ КБ ""Приватбанк""",14360570,юридична особа
Самопоміч,"Київ, вулиця Михайла Грушевського, 1Д",70,2018-12-14,CEO1MXEAIY,Банківські послуги,Інші витрати,170585,Київська міська організація,39842314,Київ,"Комiсiя за виконання платежiв в нацiональнiй валютi, згiдно з вiдкритою офертою банку N б/н вiд 2017-10-19 та тарифiв банку, без ПДВ.",26005056218695,current,3.00,"ПАТ КБ ""Приватбанк""",14360570,юридична особа
Самопоміч,"Київ, вулиця Михайла Грушевського, 1Д",70,2018-12-14,CEO1MXE97Y,Банківські послуги,Інші витрати,170584,Київська міська організація,39842314,Київ,"Комiсiя за виконання платежiв в нацiональнiй валютi, згiдно з вiдкритою офертою банку N б/н вiд 2017-10-19 та тарифiв банку, без ПДВ.",26005056218695,current,3.00,"ПАТ КБ ""Приватбанк""",14360570,юридична особа
Самопоміч,"Київ, вулиця Михайла Грушевського, 1Д",70,2018-12-14,CEO1MXE7YY,Банківські послуги,Інші витрати,170583,Київська міська організація,39842314,Київ,"Комiсiя за виконання платежiв в нацiональнiй валютi, згiдно з вiдкритою офертою банку N б/н вiд 2017-10-19 та тарифiв банку, без ПДВ.",26005056218695,current,3.00,"ПАТ КБ ""Приватбанк""",14360570,юридична особа
Самопоміч,Київ,84,2018-12-14,304,"Заробітна плата, премії","Заробітна плата, лікарняні, вагітності, відрядження, компенсації",170559,Київська міська організація,39842314,Київ,Зарплата за грудень 2018р.,26005056218695,current,900.00,Зубер Світлана Олександрівна,,фізична особа
Самопоміч,"Київ, вулиця Єреванська, 1",70,2018-12-14,5093,Банківські послуги,Інші витрати,170482,Центральний офіс,38558365,Україна,Банківська комісія за відшкодування відрядних витрат,26008924418040,state,39.46,"АБ ""Укргазбанк""",23697280,юридична особа
Самопоміч,"Волинська область, Луцьк",83,2018-12-14,5092,"Виплати працівникам (не зарплата): лікарняні, вагітності, відрядження, компенсації ","Заробітна плата, лікарняні, вагітності, відрядження, компенсації",167102,Центральний офіс,38558365,Україна,відрядження,26008924418040,state,350.00,Собуцький Микола Миколайович,,фізична особа
Самопоміч,"Тернопільська область, Чортківський район, Горішня Вигнанка, вулиця Шевченка, 34",83,2018-12-14,5092,"Виплати працівникам (не зарплата): лікарняні, вагітності, відрядження, компенсації ","Заробітна плата, лікарняні, вагітності, відрядження, компенсації",167101,Центральний офіс,38558365,Україна,відрядження,26008924418040,state,5050.00,Вітровий Богдан Олегович,,фізична особа
Самопоміч,"Вінницька область, Вінниця",83,2018-12-14,5092,"Виплати працівникам (не зарплата): лікарняні, вагітності, відрядження, компенсації ","Заробітна плата, лікарняні, вагітності, відрядження, компенсації",167100,Центральний офіс,38558365,Україна,відрядження,26008924418040,state,2251.23,Бугакова Олена Юріївна,,фізична особа
Самопоміч,Київ,83,2018-12-14,5092,"Виплати працівникам (не зарплата): лікарняні, вагітності, відрядження, компенсації ","Заробітна плата, лікарняні, вагітності, відрядження, компенсації",167099,Центральний офіс,38558365,Україна,відрядження,26008924418040,state,240.00,Баланович Станіслав Васильович,,фізична особа
Самопоміч,"Київ, Повітрофлотський проспект, 72",76,2018-12-14,196,Послуги зв’язку,Послуги зв’язку,166346,Центральний офіс,38558365,Україна,"Оплата за телекомунiкацiйнi послуги за листопад 2018р., згiдно акту вiд 30.11.18 р. зг. договору N8566-Т вiд 2017-01-31р. в т.ч. ПДВ 30,93грн.",26001053732835,current,185.60,"ТОВ ""Укрком""",22891175,юридична особа
Самопоміч,"Київ, бульвар Тараса Шевченка, 18",76,2018-12-14,193,Послуги зв’язку,Послуги зв’язку,166345,Центральний офіс,38558365,Україна,"Оплата за телекомунiкацiйнi послуги за листопад 2018 р.,зг.рах-акт N460701000051102018-11-30 вiд 30.11.18 р.зг. договору N4607010000511030 в т.ч. ПДВ 41,69грн.",26001053732835,current,250.15,"ПАТ ""Укртелеком""",21560766,юридична особа
Самопоміч,"Київ, бульвар Тараса Шевченка, 18",76,2018-12-14,195,Послуги зв’язку,Послуги зв’язку,166344,Центральний офіс,38558365,Україна,"Оплата за телекомунiкацiйнi послуги за листопад 2018 р.,зг.рах-акт N460000000001822018-11-95 вiд 30.11.18 р.зг. договору N4600000000018295 в т.ч. ПДВ 32.89грн.",26001053732835,current,197.35,"ПАТ ""Укртелеком""",21560766,юридична особа
Самопоміч,"Київ, бульвар Тараса Шевченка, 18",76,2018-12-14,194,Послуги зв’язку,Послуги зв’язку,166343,Центральний офіс,38558365,Україна,"Оплата за телекомунiкацiйнi послуги за жовтень 2018р., зг. рах-акт N320200170049832018-10-20 вiд 31.10.18 р.зг. договору N3202001700498320 в т.ч. ПДВ 29,33грн.",26001053732835,current,186.48,"ПАТ ""Укртелеком""",21560766,юридична особа
Самопоміч,"Полтавська область, Полтава, Вулиця Степана Кондратенка, 6",79,2018-12-14,204,"Оренда будинків і приміщень та експлуатаційні витрати (прибирання, страхування орендованих будинків, охорона, сигналізація, ремонт, вивіз сміття, тощо)",Оренда нерухомості,166342,Центральний офіс,38558365,Україна,"Оплата за послуги по спостереженню за установкою пожежної автоматики за листопад 2018 р., згiдно рахунку на оплату N20845 вiд 30.11.18 р. в т.ч. ПДВ 30.00 грн.",26001053732835,current,180.00,ПП 'Явір-2000',31175036,юридична особа
Самопоміч,"Вінницька область, Літинський район, Літин",79,2018-12-14,202,"Оренда будинків і приміщень та експлуатаційні витрати (прибирання, страхування орендованих будинків, охорона, сигналізація, ремонт, вивіз сміття, тощо)",Оренда нерухомості,166341,Центральний офіс,38558365,Україна,"Оплата за оренду примiщення у листопадi 2018 р., згiдно акту наданих послуг вiд 2018-11-30 р.",26001053732835,current,800.00,Літинське районне споживче товариство,01742726,юридична особа
Самопоміч,"Хмельницька область, Волочиський район, Волочиськ, вулиця Слави, 14",79,2018-12-14,201,"Оренда будинків і приміщень та експлуатаційні витрати (прибирання, страхування орендованих будинків, охорона, сигналізація, ремонт, вивіз сміття, тощо)",Оренда нерухомості,166340,Центральний офіс,38558365,Україна,"Оплата за оренду примiщення за листопад 2018р., згiдно акту наданих послуг вiд 2018-11-30р.",26001053732835,current,3000.00,"Волочиський універмаг ""РАЙСТ"" Волочиського районного споживчого товариства",33419120,юридична особа
Самопоміч,"Житомирська область, Коростень, вулиця Шевченка, 4",79,2018-12-14,210,"Оренда будинків і приміщень та експлуатаційні витрати (прибирання, страхування орендованих будинків, охорона, сигналізація, ремонт, вивіз сміття, тощо)",Оренда нерухомості,166339,Центральний офіс,38558365,Україна,"Оплата за оренду примiщення за листопад 2018р., згiдно акту наданих послуг NОУ-0000050 вiд 2018-11-30р. в т.ч. ПДВ 450.00 грн.",26001053732835,current,2700.00,"ПП ""Коростенська ""Фірма ""Друк""",02466375,юридична особа
Самопоміч,"Київська обл., Бориспіль",79,2018-12-14,205,"Оренда будинків і приміщень та експлуатаційні витрати (прибирання, страхування орендованих будинків, охорона, сигналізація, ремонт, вивіз сміття, тощо)",Оренда нерухомості,166338,Центральний офіс,38558365,Україна,"Оплата за оренду примiщення за листопад 2018 р., згiдно акту наданих послуг N 106 вiд 2018-11-30 р.",26001053732835,current,2500.00,ТОВ ʼРом Хаусʼ,38911853,юридична особа
Самопоміч,"Київська обл., Вишгородський район, Вишгород, вулиця Шолуденка, 11",79,2018-12-14,206,"Оренда будинків і приміщень та експлуатаційні витрати (прибирання, страхування орендованих будинків, охорона, сигналізація, ремонт, вивіз сміття, тощо)",Оренда нерухомості,166337,Центральний офіс,38558365,Україна,"Оплата за оренду примiщення i комунальнi послуги за листопад 2018р., згiдно рахунку на оплату N 223 вiд 2018-11-30 р. в т.ч. ПДВ 796,33 грн.",26001053732835,current,4778.00,"ТОВ ""Зооцентр Турбота""",38423990,юридична особа
Самопоміч,"Київська обл., Яготинський район, Яготин, вулиця Незалежності, 168",79,2018-12-14,211,"Оренда будинків і приміщень та експлуатаційні витрати (прибирання, страхування орендованих будинків, охорона, сигналізація, ремонт, вивіз сміття, тощо)",Оренда нерухомості,166336,Центральний офіс,38558365,Україна,"Оплата за оренду нерухомого майна у листопадi 2018 р., згiдно акту наданих послуг вiд 2018-11-30 р.",26001053732835,current,1600.00,Яготинський спортивно-технічний клуб Товариства сприяння обороні України,02727893,юридична особа
Самопоміч,"Запорізька область, Токмак, Карла Либкнехта, 103",79,2018-12-14,198,"Оренда будинків і приміщень та експлуатаційні витрати (прибирання, страхування орендованих будинків, охорона, сигналізація, ремонт, вивіз сміття, тощо)",Оренда нерухомості,166335,Центральний офіс,38558365,Україна,"Оплата за оренду нежитлового примiщення у листопадi 2018 р., згiдно рахунку-фактури NСФ-0000018 вiд 2018-11-30р.",26001053732835,current,1804.00,"Токмацька міська громадська організація ""Разом піднімемо Токмак""",36705634,юридична особа
Самопоміч,"Київ, бульвар Лесі Українки, 26",79,2018-12-14,207,"Оренда будинків і приміщень та експлуатаційні витрати (прибирання, страхування орендованих будинків, охорона, сигналізація, ремонт, вивіз сміття, тощо)",Оренда нерухомості,166334,Центральний офіс,38558365,Україна,"Оплата за оренду нежитлового примiщення за листопад 2018 р. до дог. 2016/11/01 вiд 01.11.16 р., зг. рах. на оплату N2774 вiд 24.10.18 р. в т.ч. ПДВ 12278.55 грн",26001053732835,current,73671.30,"ПАТ ""Український зональний науково-дослідний і проектний інститут по цивільному будівництву""",01422826,юридична особа
Самопоміч,"Київ, вулиця Миколи Лєскова, 9",79,2018-12-14,203,"Оренда будинків і приміщень та експлуатаційні витрати (прибирання, страхування орендованих будинків, охорона, сигналізація, ремонт, вивіз сміття, тощо)",Оренда нерухомості,166333,Центральний офіс,38558365,Україна,"Оплата за оренду нежитлового примiщення в смт. Велика Багачка у листопадi 2018 р., згiдно акту наданих послуг N 8169 вiд 2018-11-30р. в т.ч. ПДВ 220.37 грн.",26001053732835,current,1322.20,"АТ ""Райффайзен банк Аваль""",14305909,юридична особа
Самопоміч,"Київ, вулиця Новокостянтинівська, 4А",77,2018-12-14,185,"Оренда, ремонт та обслуговування автомобілів","Оренда, ремонт та обслуговування автомобілів",166332,Центральний офіс,38558365,Україна,"Оплата за нафтопродукти, згiдно рахунку N24ОБКТЛ-2652-6946683841 вiд 2018-12-11р. в т.ч. ПДВ 0.25 грн.",26001053732835,current,1.50,"ПП ""ОККО-БІЗНЕС КОНТРАКТ""",33614922,юридична особа
Самопоміч,"Київ, бульвар Лесі Українки, 26",79,2018-12-14,208,"Оренда будинків і приміщень та експлуатаційні витрати (прибирання, страхування орендованих будинків, охорона, сигналізація, ремонт, вивіз сміття, тощо)",Оренда нерухомості,166331,Центральний офіс,38558365,Україна,"Оплата за комунальнi послуги за листопад 2018 р., згiдно акту наданих послуг N4071 вiд 2018-11-30 р. в т.ч. ПДВ 3353,38 грн.",26001053732835,current,20120.27,"ПАТ ""Український зональний науково-дослідний і проектний інститут по цивільному будівництву""",01422826,юридична особа
Самопоміч,"Запорізька область, Токмак, Карла Либкнехта, 103",79,2018-12-14,199,"Оренда будинків і приміщень та експлуатаційні витрати (прибирання, страхування орендованих будинків, охорона, сигналізація, ремонт, вивіз сміття, тощо)",Оренда нерухомості,166330,Центральний офіс,38558365,Україна,"Оплата за компенсацiю витрат по електроенергiї у вереснi та жовтнi 2018р., згiдно рахунку-фактури NСФ-0000017 вiд 2018-11-30р.",26001053732835,current,20.70,"Токмацька міська громадська організація ""Разом піднімемо Токмак""",36705634,юридична особа
Самопоміч,"Київ, вулиця Михайла Грушевського, 1Д",70,2018-12-14,CEO1MYNPLY,Банківські послуги,Інші витрати,166329,Центральний офіс,38558365,Україна,"Комiсiя за виконання платежiв в нацiональнiй валютi, згiдно з вiдкритою офертою банку N б/н вiд 2018-04-23 та тарифiв банку, без ПДВ.",26001053732835,current,3.00,"ПАТ КБ ""Приватбанк""",14360570,юридична особа
Самопоміч,"Київ, вулиця Михайла Грушевського, 1Д",70,2018-12-14,CEO1MYOOMY,Банківські послуги,Інші витрати,166328,Центральний офіс,38558365,Україна,"Комiсiя за виконання платежiв в нацiональнiй валютi, згiдно з вiдкритою офертою банку N б/н вiд 2018-04-23 та тарифiв банку, без ПДВ.",26001053732835,current,3.00,"ПАТ КБ ""Приватбанк""",14360570,юридична особа
Самопоміч,"Київ, вулиця Михайла Грушевського, 1Д",70,2018-12-14,CEO1MYOP7Y,Банківські послуги,Інші витрати,166327,Центральний офіс,38558365,Україна,"Комiсiя за виконання платежiв в нацiональнiй валютi, згiдно з вiдкритою офертою банку N б/н вiд 2018-04-23 та тарифiв банку, без ПДВ.",26001053732835,current,3.00,"ПАТ КБ ""Приватбанк""",14360570,юридична особа
Самопоміч,"Київ, вулиця Михайла Грушевського, 1Д",70,2018-12-14,CEO1MYNJEY,Банківські послуги,Інші витрати,166326,Центральний офіс,38558365,Україна,"Комiсiя за виконання платежiв в нацiональнiй валютi, згiдно з вiдкритою офертою банку N б/н вiд 2018-04-23 та тарифiв банку, без ПДВ.",26001053732835,current,3.00,"ПАТ КБ ""Приватбанк""",14360570,юридична особа
Самопоміч,"Київ, вулиця Михайла Грушевського, 1Д",70,2018-12-14,CEO1MYM73Y,Банківські послуги,Інші витрати,166325,Центральний офіс,38558365,Україна,"Комiсiя за виконання платежiв в нацiональнiй валютi, згiдно з вiдкритою офертою банку N б/н вiд 2018-04-23 та тарифiв банку, без ПДВ.",26001053732835,current,3.00,"ПАТ КБ ""Приватбанк""",14360570,юридична особа
Самопоміч,"Київ, вулиця Михайла Грушевського, 1Д",70,2018-12-14,CEO1MTH5MY,Банківські послуги,Інші витрати,166324,Центральний офіс,38558365,Україна,"Комiсiя за виконання платежiв в нацiональнiй валютi, згiдно з вiдкритою офертою банку N б/н вiд 2018-04-23 та тарифiв банку, без ПДВ.",26001053732835,current,3.00,"ПАТ КБ ""Приватбанк""",14360570,юридична особа
Самопоміч,"Київ, вулиця Михайла Грушевського, 1Д",70,2018-12-14,CEO1MXZDDY,Банківські послуги,Інші витрати,166323,Центральний офіс,38558365,Україна,"Комiсiя за виконання платежiв в нацiональнiй валютi, згiдно з вiдкритою офертою банку N б/н вiд 2018-04-23 та тарифiв банку, без ПДВ.",26001053732835,current,3.00,"ПАТ КБ ""Приватбанк""",14360570,юридична особа
Самопоміч,"Київ, вулиця Михайла Грушевського, 1Д",70,2018-12-14,CEO1MY9GMY,Банківські послуги,Інші витрати,166322,Центральний офіс,38558365,Україна,"Комiсiя за виконання платежiв в нацiональнiй валютi, згiдно з вiдкритою офертою банку N б/н вiд 2018-04-23 та тарифiв банку, без ПДВ.",26001053732835,current,3.00,"ПАТ КБ ""Приватбанк""",14360570,юридична особа
Самопоміч,"Київ, вулиця Михайла Грушевського, 1Д",70,2018-12-14,CEO1MYB91Y,Банківські послуги,Інші витрати,166321,Центральний офіс,38558365,Україна,"Комiсiя за виконання платежiв в нацiональнiй валютi, згiдно з вiдкритою офертою банку N б/н вiд 2018-04-23 та тарифiв банку, без ПДВ.",26001053732835,current,3.00,"ПАТ КБ ""Приватбанк""",14360570,юридична особа
Самопоміч,"Київ, вулиця Михайла Грушевського, 1Д",70,2018-12-14,CEO1MYGIQY,Банківські послуги,Інші витрати,166320,Центральний офіс,38558365,Україна,"Комiсiя за виконання платежiв в нацiональнiй валютi, згiдно з вiдкритою офертою банку N б/н вiд 2018-04-23 та тарифiв банку, без ПДВ.",26001053732835,current,3.00,"ПАТ КБ ""Приватбанк""",14360570,юридична особа
Самопоміч,"Київ, вулиця Михайла Грушевського, 1Д",70,2018-12-14,CEO1MV5IOY,Банківські послуги,Інші витрати,166319,Центральний офіс,38558365,Україна,"Комiсiя за виконання платежiв в нацiональнiй валютi, згiдно з вiдкритою офертою банку N б/н вiд 2018-04-23 та тарифiв банку, без ПДВ.",26001053732835,current,3.00,"ПАТ КБ ""Приватбанк""",14360570,юридична особа
Самопоміч,"Київ, вулиця Михайла Грушевського, 1Д",70,2018-12-14,CEO1MV5J2Y,Банківські послуги,Інші витрати,166318,Центральний офіс,38558365,Україна,"Комiсiя за виконання платежiв в нацiональнiй валютi, згiдно з вiдкритою офертою банку N б/н вiд 2018-04-23 та тарифiв банку, без ПДВ.",26001053732835,current,3.00,"ПАТ КБ ""Приватбанк""",14360570,юридична особа
Самопоміч,"Київ, вулиця Михайла Грушевського, 1Д",70,2018-12-14,CEO1MV5JEY,Банківські послуги,Інші витрати,166317,Центральний офіс,38558365,Україна,"Комiсiя за виконання платежiв в нацiональнiй валютi, згiдно з вiдкритою офертою банку N б/н вiд 2018-04-23 та тарифiв банку, без ПДВ.",26001053732835,current,3.00,"ПАТ КБ ""Приватбанк""",14360570,юридична особа
Самопоміч,"Київ, вулиця Михайла Грушевського, 1Д",70,2018-12-14,CEO1MV5J7Y,Банківські послуги,Інші витрати,166316,Центральний офіс,38558365,Україна,"Комiсiя за виконання платежiв в нацiональнiй валютi, згiдно з вiдкритою офертою банку N б/н вiд 2018-04-23 та тарифiв банку, без ПДВ.",26001053732835,current,3.00,"ПАТ КБ ""Приватбанк""",14360570,юридична особа
Самопоміч,"Київ, вулиця Михайла Грушевського, 1Д",70,2018-12-14,CEO1MV5IXY,Банківські послуги,Інші витрати,166315,Центральний офіс,38558365,Україна,"Комiсiя за виконання платежiв в нацiональнiй валютi, згiдно з вiдкритою офертою банку N б/н вiд 2018-04-23 та тарифiв банку, без ПДВ.",26001053732835,current,3.00,"ПАТ КБ ""Приватбанк""",14360570,юридична особа
Самопоміч,"Київ, вулиця Михайла Грушевського, 1Д",70,2018-12-14,CEO1MV5IJY,Банківські послуги,Інші витрати,166314,Центральний офіс,38558365,Україна,"Комiсiя за виконання платежiв в нацiональнiй валютi, згiдно з вiдкритою офертою банку N б/н вiд 2018-04-23 та тарифiв банку, без ПДВ.",26001053732835,current,3.00,"ПАТ КБ ""Приватбанк""",14360570,юридична особа
Самопоміч,"Київ, вулиця Михайла Грушевського, 1Д",70,2018-12-14,CEO1MXQXMY,Банківські послуги,Інші витрати,166313,Центральний офіс,38558365,Україна,"Комiсiя за виконання платежiв в нацiональнiй валютi, згiдно з вiдкритою офертою банку N б/н вiд 2018-04-23 та тарифiв банку, без ПДВ.",26001053732835,current,3.00,"ПАТ КБ ""Приватбанк""",14360570,юридична особа
Самопоміч,"Київ, вулиця Михайла Грушевського, 1Д",70,2018-12-14,CEO1MXQCBY,Банківські послуги,Інші витрати,166312,Центральний офіс,38558365,Україна,"Комiсiя за виконання платежiв в нацiональнiй валютi, згiдно з вiдкритою офертою банку N б/н вiд 2018-04-23 та тарифiв банку, без ПДВ.",26001053732835,current,3.00,"ПАТ КБ ""Приватбанк""",14360570,юридична особа
Самопоміч,"Київ, вулиця Михайла Грушевського, 1Д",70,2018-12-14,CEO1MYSJOY,Банківські послуги,Інші витрати,166311,Центральний офіс,38558365,Україна,"Комiсiя за виконання платежiв в нацiональнiй валютi, згiдно з вiдкритою офертою банку N б/н вiд 2018-04-23 та тарифiв банку, без ПДВ.",26001053732835,current,3.00,"ПАТ КБ ""Приватбанк""",14360570,юридична особа
Самопоміч,"Київ, вулиця Михайла Грушевського, 1Д",70,2018-12-14,CEO1MYOOGY,Банківські послуги,Інші витрати,166310,Центральний офіс,38558365,Україна,"Комiсiя за виконання платежiв в нацiональнiй валютi, згiдно з вiдкритою офертою банку N б/н вiд 2018-04-23 та тарифiв банку, без ПДВ.",26001053732835,current,3.00,"ПАТ КБ ""Приватбанк""",14360570,юридична особа
Самопоміч,"Київ, вулиця Михайла Грушевського, 1Д",70,2018-12-14,CEO1MYN0MY,Банківські послуги,Інші витрати,166309,Центральний офіс,38558365,Україна,"Комiсiя за виконання платежiв в нацiональнiй валютi, згiдно з вiдкритою офертою банку N б/н вiд 2018-04-23 та тарифiв банку, без ПДВ.",26001053732835,current,3.00,"ПАТ КБ ""Приватбанк""",14360570,юридична особа
Самопоміч,"Київ, вулиця Михайла Грушевського, 1Д",70,2018-12-14,CEO1MYINLY,Банківські послуги,Інші витрати,166308,Центральний офіс,38558365,Україна,"Комiсiя за виконання платежiв в нацiональнiй валютi, згiдно з вiдкритою офертою банку N б/н вiд 2018-04-23 та тарифiв банку, без ПДВ.",26001053732835,current,3.00,"ПАТ КБ ""Приватбанк""",14360570,юридична особа
Самопоміч,"Київ, вулиця Михайла Грушевського, 1Д",70,2018-12-14,CEO1MYLUMY,Банківські послуги,Інші витрати,166307,Центральний офіс,38558365,Україна,"Комiсiя за виконання платежiв в нацiональнiй валютi, згiдно з вiдкритою офертою банку N б/н вiд 2018-04-23 та тарифiв банку, без ПДВ.",26001053732835,current,3.00,"ПАТ КБ ""Приватбанк""",14360570,юридична особа
Самопоміч,"Київ, вулиця Михайла Грушевського, 1Д",70,2018-12-14,CEO1MYLBDY,Банківські послуги,Інші витрати,166306,Центральний офіс,38558365,Україна,"Комiсiя за виконання платежiв в нацiональнiй валютi, згiдно з вiдкритою офертою банку N б/н вiд 2018-04-23 та тарифiв банку, без ПДВ.",26001053732835,current,3.00,"ПАТ КБ ""Приватбанк""",14360570,юридична особа
Самопоміч,"Київ, вулиця Михайла Грушевського, 1Д",70,2018-12-14,CEO1MYOOGX,Банківські послуги,Інші витрати,166305,Центральний офіс,38558365,Україна,"Комiсiя за викон. платежу 219 вiд 2018-12-14, 1207.50 в нац. валютi в пiсляоперацiйний час, згiдно з вiдкритою офертою банку № б/н вiд 2018-04-23 без ПДВ",26001053732835,current,2.42,"ПАТ КБ ""Приватбанк""",14360570,юридична особа
Самопоміч,"Київ, вулиця Михайла Грушевського, 1Д",70,2018-12-14,CEO1MYN0MX,Банківські послуги,Інші витрати,166304,Центральний офіс,38558365,Україна,"Комiсiя за викон. платежу 216 вiд 2018-12-14, 3461.50 в нац. валютi в пiсляоперацiйний час, згiдно з вiдкритою офертою банку № б/н вiд 2018-04-23 без ПДВ",26001053732835,current,6.92,"ПАТ КБ ""Приватбанк""",14360570,юридична особа
Самопоміч,"Київ, вулиця Михайла Грушевського, 1Д",70,2018-12-14,CEO1MYSJOX,Банківські послуги,Інші витрати,166303,Центральний офіс,38558365,Україна,"Комiсiя за викон. платежу 203 вiд 2018-12-14, 1322.20 в нац. валютi в пiсляоперацiйний час, згiдно з вiдкритою офертою банку № б/н вiд 2018-04-23 без ПДВ",26001053732835,current,2.64,"ПАТ КБ ""Приватбанк""",14360570,юридична особа
Самопоміч,"Київ, вулиця Михайла Грушевського, 1Д",70,2018-12-14,CEO1MYM73X,Банківські послуги,Інші витрати,166302,Центральний офіс,38558365,Україна,"Комiсiя за викон. платежу 192 вiд 2018-12-14, 460.00 в нац. валютi в пiсляоперацiйний час, згiдно з вiдкритою офертою банку № б/н вiд 2018-04-23 без ПДВ",26001053732835,current,0.92,"ПАТ КБ ""Приватбанк""",14360570,юридична особа
Самопоміч,"Київ, вулиця Михайла Грушевського, 1Д",70,2018-12-14,191,Банківські послуги,Інші витрати,166301,Центральний офіс,38558365,Україна,"Банкiвська комiсiя за виплату авансу зарплати, вiдпускних та розрахункових працiвникiв за грудень 2018 р.",26001053732835,current,5126.46,"ПАТ КБ ""Приватбанк""",14360570,юридична особа
Самопоміч,"Львівська область, Львів, вулиця Конотопська, 6",63,2018-12-14,215,Податок на доходи,Податкові платежі,166300,Центральний офіс,38558365,Україна,*;101;сплата ПДФО вiдмiнний вiд з/п згiдно договору оренди Шлапак Х. С за листопад 2018р.,26001053732835,current,774.00,УДКСУ у Франківському районі м. Львова,37965138,юридична особа
Самопоміч,"Львівська область, Львів, вулиця Конотопська, 6",63,2018-12-14,218,Податок на доходи,Податкові платежі,166299,Центральний офіс,38558365,Україна,*;101;сплата ПДФО вiдмiнний вiд з/п згiдно договору оренди Наконечна Г. А. за листопад 2018 р.,26001053732835,current,270.00,УДКСУ у Франківському районі м. Львова,37965138,юридична особа
Самопоміч,"Львівська область, Львів, вулиця Конотопська, 6",61,2018-12-14,214,Військовий збір,Податкові платежі,166298,Центральний офіс,38558365,Україна,*;101;сплата вiйськового збору згiдно договору оренди за листопад 2018р. Шлапак Х.С. IПН 1192019625;11011000;;;,26001053732835,current,64.50,УДКСУ у Франківському районі м. Львова,37965138,юридична особа
Самопоміч,"Львівська область, Львів, вулиця Конотопська, 6",61,2018-12-14,217,Військовий збір,Податкові платежі,166297,Центральний офіс,38558365,Україна,*;101;сплата вiйськового збору згiдно договору оренди за листопад 2018 р. Наконечна Г.А.,26001053732835,current,22.50,УДКСУ у Франківському районі м. Львова,37965138,юридична особа
Самопоміч,"Львівська область, Львів, вулиця Конотопська, 6",63,2018-12-14,188,Податок на доходи,Податкові платежі,166296,Центральний офіс,38558365,Україна,"*;101;38558365;сплата ПДФО iз авансу зарплати, вiдпускних та розрахункових працiвникiв за грудень 2018 р.;;;11010100",26001053732835,current,229258.13,УДКСУ у Франківському районі м. Львова,37965138,юридична особа
Самопоміч,"Львівська область, Львів, вулиця Стрийська, 35",62,2018-12-14,187,Сплата ЄСВ,Податкові платежі,166295,Центральний офіс,38558365,Україна,"*;101;38558365;сплата ЄСВ 22% iз авансу зарплати, вiдпускних та розрахункових працiвникiв за грудень 2018р.;;;71010000",26001053732835,current,273829.55,Залізнична ОДПІ ГУ ДФС у Львівській області,39554382,юридична особа
Самопоміч,"Львівська область, Львів, вулиця Конотопська, 6",61,2018-12-14,189,Військовий збір,Податкові платежі,166294,Центральний офіс,38558365,Україна,"*;101;38558365;сплата вiйськового збору iз авансу зарплати, вiдпускних та розрахункових працiвникiв за грудень 2018 р.;;;11011000",26001053732835,current,19105.59,УДКСУ у Франківському районі м. Львова,37965138,юридична особа
Самопоміч,"Львівська область, Львів, вулиця Стрийська, 35",62,2018-12-14,186,Сплата ЄСВ,Податкові платежі,166293,Центральний офіс,38558365,Україна,"*;101;38558363;сплата ЄСВ 8,41% iз авансу зарплати працiвникiв за грудень 2018р.;;;71010000",26001053732835,current,2436.92,Залізнична ОДПІ ГУ ДФС у Львівській області,39554382,юридична особа
Самопоміч,"Хмельницька область, Кам'янець-Подільський",84,2018-12-14,270,"Заробітна плата, премії","Заробітна плата, лікарняні, вагітності, відрядження, компенсації",166051,Центральний офіс,38558365,Україна,Зарплата,26001053732835,current,3501.75,Нагнибіда Діна Анатоліївна,,фізична особа
Самопоміч,"Хмельницька область, Хмельницький",84,2018-12-14,270,"Заробітна плата, премії","Заробітна плата, лікарняні, вагітності, відрядження, компенсації",166050,Центральний офіс,38558365,Україна,Зарплата,26001053732835,current,1509.37,Сердечний Владислав Леонідович,,фізична особа
Самопоміч,"Донецька область, Слов'янський район, Слов'янськ",84,2018-12-14,270,"Заробітна плата, премії","Заробітна плата, лікарняні, вагітності, відрядження, компенсації",166049,Центральний офіс,38558365,Україна,Зарплата,26001053732835,current,3002.65,Коржова Ольга Олегівна,,фізична особа
Самопоміч,"Вінницька область, Вінниця",84,2018-12-14,270,"Заробітна плата, премії","Заробітна плата, лікарняні, вагітності, відрядження, компенсації",166048,Центральний офіс,38558365,Україна,Зарплата,26001053732835,current,1509.37,Кононенко Юлія Петрівна,,фізична особа
Самопоміч,"Львівська область, Сокальський район",84,2018-12-14,270,"Заробітна плата, премії","Заробітна плата, лікарняні, вагітності, відрядження, компенсації",166047,Центральний офіс,38558365,Україна,Зарплата,26001053732835,current,3260.25,Чунис Олег Романович,,фізична особа
Самопоміч,"Донецька область, Донецьк",84,2018-12-14,270,"Заробітна плата, премії","Заробітна плата, лікарняні, вагітності, відрядження, компенсації",166046,Центральний офіс,38558365,Україна,Зарплата,26001053732835,current,1501.32,Володіна Валерія Олександрівна,,фізична особа
Самопоміч,"Львівська область, Кам'янка-Бузький район, Кам'янка-Бузька",84,2018-12-14,270,"Заробітна плата, премії","Заробітна плата, лікарняні, вагітності, відрядження, компенсації",166045,Центральний офіс,38558365,Україна,Зарплата,26001053732835,current,752.67,Шваюк Оксана Романівна,,фізична особа
Самопоміч,"Львівська область, Сколівський район",84,2018-12-14,270,"Заробітна плата, премії","Заробітна плата, лікарняні, вагітності, відрядження, компенсації",166044,Центральний офіс,38558365,Україна,Зарплата,26001053732835,current,595.70,Малюк Олег Ярославович,,фізична особа
Самопоміч,"Чернігівська область, Борзнянський район, Борзна",84,2018-12-14,270,"Заробітна плата, премії","Заробітна плата, лікарняні, вагітності, відрядження, компенсації",166043,Центральний офіс,38558365,Україна,Зарплата,26001053732835,current,885.50,Христич Ірина Петрівна,,фізична особа
Самопоміч,"Сумська область, Сумський район, Суми",84,2018-12-14,270,"Заробітна плата, премії","Заробітна плата, лікарняні, вагітності, відрядження, компенсації",166042,Центральний офіс,38558365,Україна,Зарплата,26001053732835,current,3501.75,Гладкова Ірина Сергіївна,,фізична особа
Самопоміч,"Миколаївська область, Миколаїв",84,2018-12-14,270,"Заробітна плата, премії","Заробітна плата, лікарняні, вагітності, відрядження, компенсації",166041,Центральний офіс,38558365,Україна,Зарплата,26001053732835,current,2495.50,Євдокимов Юрій Вячеславович,,фізична особа
Самопоміч,"Чернівецька область, Чернівці",84,2018-12-14,270,"Заробітна плата, премії","Заробітна плата, лікарняні, вагітності, відрядження, компенсації",166040,Центральний офіс,38558365,Україна,Зарплата,26001053732835,current,7506.62,Кобеля Марʼяна Ярославівна,,фізична особа
Самопоміч,Київ,84,2018-12-14,270,"Заробітна плата, премії","Заробітна плата, лікарняні, вагітності, відрядження, компенсації",166039,Центральний офіс,38558365,Україна,Зарплата,26001053732835,current,4250.40,Костенко Валентин Ігорович,,фізична особа
Самопоміч,Київ,84,2018-12-14,270,"Заробітна плата, премії","Заробітна плата, лікарняні, вагітності, відрядження, компенсації",166038,Центральний офіс,38558365,Україна,Зарплата,26001053732835,current,10002.12,Савичук Олег Олександрович,,фізична особа
Самопоміч,"Чернігівська область, Сосницький район",84,2018-12-14,270,"Заробітна плата, премії","Заробітна плата, лікарняні, вагітності, відрядження, компенсації",166037,Центральний офіс,38558365,Україна,Зарплата,26001053732835,current,752.67,Душик Наталія Володимирівна,,фізична особа
Самопоміч,"Хмельницька область, Волочиський район, Волочиськ",84,2018-12-14,270,"Заробітна плата, премії","Заробітна плата, лікарняні, вагітності, відрядження, компенсації",166036,Центральний офіс,38558365,Україна,Зарплата,26001053732835,current,3694.95,Страз Оксана Антонівна,,фізична особа
Самопоміч,"Чернігівська область, Срібнянський район, Срібне",84,2018-12-14,270,"Заробітна плата, премії","Заробітна плата, лікарняні, вагітності, відрядження, компенсації",166035,Центральний офіс,38558365,Україна,Зарплата,26001053732835,current,752.67,Соловей Сергій Петрович,,фізична особа
Самопоміч,"Львівська область, Жовківський район",84,2018-12-14,270,"Заробітна плата, премії","Заробітна плата, лікарняні, вагітності, відрядження, компенсації",166034,Центральний офіс,38558365,Україна,Зарплата,26001053732835,current,1498.51,Калиняк Оксана Романівна,,фізична особа
Самопоміч,Київ,84,2018-12-14,270,"Заробітна плата, премії","Заробітна плата, лікарняні, вагітності, відрядження, компенсації",166033,Центральний офіс,38558365,Україна,Зарплата,26001053732835,current,1509.37,Щетінін Олексій Вікторович,,фізична особа
Самопоміч,"Вінницька область, Вінниця",84,2018-12-14,270,"Заробітна плата, премії","Заробітна плата, лікарняні, вагітності, відрядження, компенсації",166032,Центральний офіс,38558365,Україна,Зарплата,26001053732835,current,6037.50,Бугакова Олена Юріївна,,фізична особа
Самопоміч,"Івано-Франківська область, Коломийський район, Коломия",84,2018-12-14,270,"Заробітна плата, премії","Заробітна плата, лікарняні, вагітності, відрядження, компенсації",166031,Центральний офіс,38558365,Україна,Зарплата,26001053732835,current,752.67,Аннюк Іванна Сергіївна,,фізична особа
Самопоміч,"Київська обл., Бориспіль",84,2018-12-14,270,"Заробітна плата, премії","Заробітна плата, лікарняні, вагітності, відрядження, компенсації",166030,Центральний офіс,38558365,Україна,Зарплата,26001053732835,current,2559.90,Князька Ірина Миколаївна,,фізична особа
Самопоміч,Київ,84,2018-12-14,270,"Заробітна плата, премії","Заробітна плата, лікарняні, вагітності, відрядження, компенсації",166029,Центральний офіс,38558365,Україна,Зарплата,26001053732835,current,5011.12,Гарнік Марʼяна Романівна,,фізична особа
Самопоміч,"Донецька область, Слов'янський район, Слов'янськ",84,2018-12-14,270,"Заробітна плата, премії","Заробітна плата, лікарняні, вагітності, відрядження, компенсації",166028,Центральний офіс,38558365,Україна,Зарплата,26001053732835,current,382.37,Мєнь Олег Володимирович,,фізична особа
Самопоміч,"Львівська область, Львів",84,2018-12-14,270,"Заробітна плата, премії","Заробітна плата, лікарняні, вагітності, відрядження, компенсації",166027,Центральний офіс,38558365,Україна,Зарплата,26001053732835,current,4004.87,Подоляк Меланія-Марія Орестівна,,фізична особа
Самопоміч,"Львівська область, Жидачівський район, Жидачів",84,2018-12-14,270,"Заробітна плата, премії","Заробітна плата, лікарняні, вагітності, відрядження, компенсації",166026,Центральний офіс,38558365,Україна,Зарплата,26001053732835,current,10002.12,Бойчук Олеся Богданівна,,фізична особа
Самопоміч,"Закарпатська область, Рахівський район, Рахів",84,2018-12-14,270,"Заробітна плата, премії","Заробітна плата, лікарняні, вагітності, відрядження, компенсації",166025,Центральний офіс,38558365,Україна,Зарплата,26001053732835,current,1871.62,Тулайдан Мирослава Василівна,,фізична особа
Самопоміч,"Черкаська область, Черкаси",84,2018-12-14,270,"Заробітна плата, премії","Заробітна плата, лікарняні, вагітності, відрядження, компенсації",166024,Центральний офіс,38558365,Україна,Зарплата,26001053732835,current,2495.50,Козиряй Тетяна Володимирівна,,фізична особа
Самопоміч,Київ,84,2018-12-14,270,"Заробітна плата, премії","Заробітна плата, лікарняні, вагітності, відрядження, компенсації",166023,Центральний офіс,38558365,Україна,Зарплата,26001053732835,current,6500.37,Криворучко Ольга Олександрівна,,фізична особа
Самопоміч,"Дніпропетровська область, Дніпро́",84,2018-12-14,270,"Заробітна плата, премії","Заробітна плата, лікарняні, вагітності, відрядження, компенсації",166022,Центральний офіс,38558365,Україна,Зарплата,26001053732835,current,3018.75,Наказіна Ольга Олександрівна,,фізична особа
Самопоміч,Івано-Франківська область,84,2018-12-14,270,"Заробітна плата, премії","Заробітна плата, лікарняні, вагітності, відрядження, компенсації",166021,Центральний офіс,38558365,Україна,Зарплата,26001053732835,current,2741.02,Іщенко Олександра Євгенівна,,фізична особа
Самопоміч,"Херсонська область, Херсон",84,2018-12-14,270,"Заробітна плата, премії","Заробітна плата, лікарняні, вагітності, відрядження, компенсації",166020,Центральний офіс,38558365,Україна,Зарплата,26001053732835,current,344.14,Тимченко Володимир Валерійович,,фізична особа
Самопоміч,Вінницька область,84,2018-12-14,270,"Заробітна плата, премії","Заробітна плата, лікарняні, вагітності, відрядження, компенсації",166019,Центральний офіс,38558365,Україна,Зарплата,26001053732835,current,603.75,Семесь Ольга Олександрівна,,фізична особа
Самопоміч,"Рівненська область, Острог",84,2018-12-14,270,"Заробітна плата, премії","Заробітна плата, лікарняні, вагітності, відрядження, компенсації",166018,Центральний офіс,38558365,Україна,Зарплата,26001053732835,current,752.67,Балик Дмитро Миколайович,,фізична особа
Самопоміч,"Івано-Франківська область, Івано-Франківськ",84,2018-12-14,270,"Заробітна плата, премії","Заробітна плата, лікарняні, вагітності, відрядження, компенсації",166017,Центральний офіс,38558365,Україна,Зарплата,26001053732835,current,6749.92,Войтович Роман Степанович,,фізична особа
Самопоміч,"Львівська область, Львів",84,2018-12-14,270,"Заробітна плата, премії","Заробітна плата, лікарняні, вагітності, відрядження, компенсації",166016,Центральний офіс,38558365,Україна,Зарплата,26001053732835,current,4508.00,Кокорузь Марія Михайлівна,,фізична особа
Самопоміч,"Херсонська область, Херсон",84,2018-12-14,270,"Заробітна плата, премії","Заробітна плата, лікарняні, вагітності, відрядження, компенсації",166015,Центральний офіс,38558365,Україна,Зарплата,26001053732835,current,2495.50,Білковський Вʼячеслав Вʼячеславович,,фізична особа
Самопоміч,"Київська обл., Обухівський район",84,2018-12-14,270,"Заробітна плата, премії","Заробітна плата, лікарняні, вагітності, відрядження, компенсації",166014,Центральний офіс,38558365,Україна,Зарплата,26001053732835,current,4250.40,Тищук Анастасія Сергіївна,,фізична особа
Самопоміч,"Київська обл., Обухівський район",84,2018-12-14,275,"Заробітна плата, премії","Заробітна плата, лікарняні, вагітності, відрядження, компенсації",166013,Центральний офіс,38558365,Україна,Зарплата,26001053732835,current,841.63,Тищук Анастасія Сергіївна,,фізична особа
Самопоміч,"Львівська область, Пустомитівський район",84,2018-12-14,270,"Заробітна плата, премії","Заробітна плата, лікарняні, вагітності, відрядження, компенсації",166012,Центральний офіс,38558365,Україна,Зарплата,26001053732835,current,2515.62,Паздерська Руслана Степанівна,,фізична особа
Самопоміч,"Житомирська область, Пулинський район, Пулини",84,2018-12-14,270,"Заробітна плата, премії","Заробітна плата, лікарняні, вагітності, відрядження, компенсації",166011,Центральний офіс,38558365,Україна,Зарплата,26001053732835,current,1509.37,Сірик Владислав Сергійович,,фізична особа
Самопоміч,"Тернопільська область, Теребовлянський район",84,2018-12-14,270,"Заробітна плата, премії","Заробітна плата, лікарняні, вагітності, відрядження, компенсації",166010,Центральний офіс,38558365,Україна,Зарплата,26001053732835,current,2254.00,Півторак Ярослав Миколайович,,фізична особа
Самопоміч,"Львівська область, Львів",84,2018-12-14,270,"Заробітна плата, премії","Заробітна плата, лікарняні, вагітності, відрядження, компенсації",166009,Центральний офіс,38558365,Україна,Зарплата,26001053732835,current,4999.05,Блінова Світлана Миколаївна,,фізична особа
Самопоміч,"Львівська область, Золочівський район, Золочів",84,2018-12-14,270,"Заробітна плата, премії","Заробітна плата, лікарняні, вагітності, відрядження, компенсації",166008,Центральний офіс,38558365,Україна,Зарплата,26001053732835,current,752.67,Горгота Леся Зіновіївна,,фізична особа
Самопоміч,"Харківська область, Харків",84,2018-12-14,270,"Заробітна плата, премії","Заробітна плата, лікарняні, вагітності, відрядження, компенсації",166007,Центральний офіс,38558365,Україна,Зарплата,26001053732835,current,2495.50,Малбієва Катерина Павлівна,,фізична особа
Самопоміч,"Дніпропетровська область, Павлоград",84,2018-12-14,270,"Заробітна плата, премії","Заробітна плата, лікарняні, вагітності, відрядження, компенсації",166006,Центральний офіс,38558365,Україна,Зарплата,26001053732835,current,1791.12,Пономаренко Анастасія Станіславівна,,фізична особа
Самопоміч,"Рівненська область, Рівне",84,2018-12-14,270,"Заробітна плата, премії","Заробітна плата, лікарняні, вагітності, відрядження, компенсації",166005,Центральний офіс,38558365,Україна,Зарплата,26001053732835,current,2000.42,Пікула Микола Миколайович,,фізична особа
Самопоміч,"Полтавська область, Полтава",84,2018-12-14,270,"Заробітна плата, премії","Заробітна плата, лікарняні, вагітності, відрядження, компенсації",166004,Центральний офіс,38558365,Україна,Зарплата,26001053732835,current,3501.75,Удалова Лариса Іванівна,,фізична особа
Самопоміч,Київ,84,2018-12-14,270,"Заробітна плата, премії","Заробітна плата, лікарняні, вагітності, відрядження, компенсації",166003,Центральний офіс,38558365,Україна,Зарплата,26001053732835,current,4510.01,Деркач Юлія Олександрівна,,фізична особа
Самопоміч,"Київська обл., Бровари",84,2018-12-14,270,"Заробітна плата, премії","Заробітна плата, лікарняні, вагітності, відрядження, компенсації",166002,Центральний офіс,38558365,Україна,Зарплата,26001053732835,current,1006.25,Крилова Тетяна Миколаївна,,фізична особа
Самопоміч,"Львівська область, Радехівський район, Радехів",84,2018-12-14,270,"Заробітна плата, премії","Заробітна плата, лікарняні, вагітності, відрядження, компенсації",166001,Центральний офіс,38558365,Україна,Зарплата,26001053732835,current,752.67,Демків Світлана Сергіївна,,фізична особа
Самопоміч,"Львівська область, Львів",84,2018-12-14,270,"Заробітна плата, премії","Заробітна плата, лікарняні, вагітності, відрядження, компенсації",166000,Центральний офіс,38558365,Україна,Зарплата,26001053732835,current,3260.25,Телішевська Галина Ігорівна,,фізична особа
Самопоміч,"Хмельницька область, Нетішин",84,2018-12-14,270,"Заробітна плата, премії","Заробітна плата, лікарняні, вагітності, відрядження, компенсації",165999,Центральний офіс,38558365,Україна,Зарплата,26001053732835,current,5011.12,Шминдрук Ігор Сергійович,,фізична особа
Самопоміч,"Закарпатська область, Мукачево",84,2018-12-14,270,"Заробітна плата, премії","Заробітна плата, лікарняні, вагітності, відрядження, компенсації",165998,Центральний офіс,38558365,Україна,Зарплата,26001053732835,current,7506.62,Ковач Ольга Володимирівна,,фізична особа
Самопоміч,"Львівська область, Львів",84,2018-12-14,270,"Заробітна плата, премії","Заробітна плата, лікарняні, вагітності, відрядження, компенсації",165997,Центральний офіс,38558365,Україна,Зарплата,26001053732835,current,1568.54,Здзьобек Софія Франківна,,фізична особа
Самопоміч,"Львівська область, Пустомитівський район",84,2018-12-14,270,"Заробітна плата, премії","Заробітна плата, лікарняні, вагітності, відрядження, компенсації",165996,Центральний офіс,38558365,Україна,Зарплата,26001053732835,current,10002.12,Бордун Галина Володимирівна,,фізична особа
Самопоміч,"Сумська область, Сумський район, Суми",84,2018-12-14,270,"Заробітна плата, премії","Заробітна плата, лікарняні, вагітності, відрядження, компенсації",165995,Центральний офіс,38558365,Україна,Зарплата,26001053732835,current,2350.60,Бєлікова Олена Миколаївна,,фізична особа
Самопоміч,"Львівська область, Львів",84,2018-12-14,270,"Заробітна плата, премії","Заробітна плата, лікарняні, вагітності, відрядження, компенсації",165994,Центральний офіс,38558365,Україна,Зарплата,26001053732835,current,4004.87,Христина Зоряна Орестівна,,фізична особа
Самопоміч,Київ,84,2018-12-14,270,"Заробітна плата, премії","Заробітна плата, лікарняні, вагітності, відрядження, компенсації",165993,Центральний офіс,38558365,Україна,Зарплата,26001053732835,current,5011.12,Васильєва Марʼяна Анатоліївна,,фізична особа
Самопоміч,"Львівська область, Львів",84,2018-12-14,270,"Заробітна плата, премії","Заробітна плата, лікарняні, вагітності, відрядження, компенсації",165992,Центральний офіс,38558365,Україна,Зарплата,26001053732835,current,2515.62,Басик Андрій Миколайович,,фізична особа
Самопоміч,Київ,84,2018-12-14,270,"Заробітна плата, премії","Заробітна плата, лікарняні, вагітності, відрядження, компенсації",165991,Центральний офіс,38558365,Україна,Зарплата,26001053732835,current,4250.40,Ярова Дарина Григорівна,,фізична особа
Самопоміч,"Полтавська область, Лубни",84,2018-12-14,270,"Заробітна плата, премії","Заробітна плата, лікарняні, вагітності, відрядження, компенсації",165990,Центральний офіс,38558365,Україна,Зарплата,26001053732835,current,1509.37,Балога Валентина Федорівна,,фізична особа
Самопоміч,"Київська обл., Васильків",84,2018-12-14,270,"Заробітна плата, премії","Заробітна плата, лікарняні, вагітності, відрядження, компенсації",165989,Центральний офіс,38558365,Україна,Зарплата,26001053732835,current,4508.00,Ковріжних Іван Олександрович,,фізична особа
Самопоміч,"Львівська область, Львів",84,2018-12-14,270,"Заробітна плата, премії","Заробітна плата, лікарняні, вагітності, відрядження, компенсації",165988,Центральний офіс,38558365,Україна,Зарплата,26001053732835,current,4749.50,Шаповал Оксана Вікторівна,,фізична особа
Самопоміч,Київ,84,2018-12-14,270,"Заробітна плата, премії","Заробітна плата, лікарняні, вагітності, відрядження, компенсації",165987,Центральний офіс,38558365,Україна,Зарплата,26001053732835,current,3501.75,Бородіна Марина Анатоліївна,,фізична особа
Самопоміч,"Львівська область, Львів",84,2018-12-14,270,"Заробітна плата, премії","Заробітна плата, лікарняні, вагітності, відрядження, компенсації",165986,Центральний офіс,38558365,Україна,Зарплата,26001053732835,current,905.62,Никорак Ольга Юріївна,,фізична особа
Самопоміч,Київ,84,2018-12-14,270,"Заробітна плата, премії","Заробітна плата, лікарняні, вагітності, відрядження, компенсації",165985,Центральний офіс,38558365,Україна,Зарплата,26001053732835,current,10002.12,Лисенко Марія Михайлівна,,фізична особа
Самопоміч,"Запорізька область, Гуляйпільський район, Гуляйполе",84,2018-12-14,270,"Заробітна плата, премії","Заробітна плата, лікарняні, вагітності, відрядження, компенсації",165984,Центральний офіс,38558365,Україна,Зарплата,26001053732835,current,1308.12,Семеренко Святослав Олександрович,,фізична особа
Самопоміч,"Кіровоградська область, Олександрійський район",84,2018-12-14,270,"Заробітна плата, премії","Заробітна плата, лікарняні, вагітності, відрядження, компенсації",165983,Центральний офіс,38558365,Україна,Зарплата,26001053732835,current,3501.75,Суліма Алла Володимирівна,,фізична особа
Самопоміч,"Львівська область, Львів",84,2018-12-14,270,"Заробітна плата, премії","Заробітна плата, лікарняні, вагітності, відрядження, компенсації",165982,Центральний офіс,38558365,Україна,Зарплата,26001053732835,current,5011.12,Яремчук Роман Володимирович,,фізична особа
Самопоміч,"Львівська область, Львів",84,2018-12-14,270,"Заробітна плата, премії","Заробітна плата, лікарняні, вагітності, відрядження, компенсації",165981,Центральний офіс,38558365,Україна,Зарплата,26001053732835,current,4004.87,Рудич Анастасія Валентинівна,,фізична особа
Самопоміч,"Львівська область, Львів",84,2018-12-14,270,"Заробітна плата, премії","Заробітна плата, лікарняні, вагітності, відрядження, компенсації",165980,Центральний офіс,38558365,Україна,Зарплата,26001053732835,current,3501.75,Беднарський Василь Іванович,,фізична особа
Самопоміч,"Львівська область, Сокальський район, Сокаль",84,2018-12-14,270,"Заробітна плата, премії","Заробітна плата, лікарняні, вагітності, відрядження, компенсації",165979,Центральний офіс,38558365,Україна,Зарплата,26001053732835,current,5011.12,Вавринчук Зоряна Петрівна,,фізична особа
Самопоміч,"Львівська область, Пустомитівський район",84,2018-12-14,270,"Заробітна плата, премії","Заробітна плата, лікарняні, вагітності, відрядження, компенсації",165978,Центральний офіс,38558365,Україна,Зарплата,26001053732835,current,3501.75,Гуль Оксана Семенівна,,фізична особа
Самопоміч,"Львівська область, Червоноград",84,2018-12-14,270,"Заробітна плата, премії","Заробітна плата, лікарняні, вагітності, відрядження, компенсації",165977,Центральний офіс,38558365,Україна,Зарплата,26001053732835,current,2374.75,Буй Богдан Володимирович,,фізична особа
Самопоміч,м. Кропивницький,84,2018-12-14,270,"Заробітна плата, премії","Заробітна плата, лікарняні, вагітності, відрядження, компенсації",165976,Центральний офіс,38558365,Україна,Зарплата,26001053732835,current,3501.75,Будько Вадим Ігорович,,фізична особа
Самопоміч,"Житомирська область, Брусилівський район, Брусилів",84,2018-12-14,270,"Заробітна плата, премії","Заробітна плата, лікарняні, вагітності, відрядження, компенсації",165975,Центральний офіс,38558365,Україна,Зарплата,26001053732835,current,3501.75,Стадник Орися Борисівна,,фізична особа
Самопоміч,"Львівська область, Львів",84,2018-12-14,270,"Заробітна плата, премії","Заробітна плата, лікарняні, вагітності, відрядження, компенсації",165974,Центральний офіс,38558365,Україна,Зарплата,26001053732835,current,503.12,Червінка Надія Петрівна,,фізична особа
Самопоміч,"Львівська область, Львів",84,2018-12-14,270,"Заробітна плата, премії","Заробітна плата, лікарняні, вагітності, відрядження, компенсації",165973,Центральний офіс,38558365,Україна,Зарплата,26001053732835,current,4749.50,Склярук Олександр Олександрович,,фізична особа
Самопоміч,"Львівська область, Львів",84,2018-12-14,270,"Заробітна плата, премії","Заробітна плата, лікарняні, вагітності, відрядження, компенсації",165972,Центральний офіс,38558365,Україна,Зарплата,26001053732835,current,1400.70,Вовк Володимир Тарасович,,фізична особа
Самопоміч,"Дніпропетровська область, Кривий Ріг",84,2018-12-14,270,"Заробітна плата, премії","Заробітна плата, лікарняні, вагітності, відрядження, компенсації",165971,Центральний офіс,38558365,Україна,Зарплата,26001053732835,current,2515.62,Баришенський Роман Віталійович,,фізична особа
Самопоміч,Київ,84,2018-12-14,270,"Заробітна плата, премії","Заробітна плата, лікарняні, вагітності, відрядження, компенсації",165970,Центральний офіс,38558365,Україна,Зарплата,26001053732835,current,3501.75,Спірідонов Роман Георгійович,,фізична особа
Самопоміч,"Рівненська область, Гощанський район",84,2018-12-14,270,"Заробітна плата, премії","Заробітна плата, лікарняні, вагітності, відрядження, компенсації",165969,Центральний офіс,38558365,Україна,Зарплата,26001053732835,current,2249.97,Хакімова Ірина Іброхимівна,,фізична особа
Самопоміч,"Рівненська область, Дубенський район",84,2018-12-14,270,"Заробітна плата, премії","Заробітна плата, лікарняні, вагітності, відрядження, компенсації",165968,Центральний офіс,38558365,Україна,Зарплата,26001053732835,current,3501.75,Польова Ольга Вадимівна,,фізична особа
Самопоміч,Київ,84,2018-12-14,270,"Заробітна плата, премії","Заробітна плата, лікарняні, вагітності, відрядження, компенсації",165967,Центральний офіс,38558365,Україна,Зарплата,26001053732835,current,5011.12,Ляпкало Галина Андріївна,,фізична особа
Самопоміч,"Сумська область, Кролевецький район, Кролевець",84,2018-12-14,270,"Заробітна плата, премії","Заробітна плата, лікарняні, вагітності, відрядження, компенсації",165966,Центральний офіс,38558365,Україна,Зарплата,26001053732835,current,1498.51,Чепурний Андрій Миколайович,,фізична особа
Самопоміч,"Кіровоградська область, Кропивницький",84,2018-12-14,270,"Заробітна плата, премії","Заробітна плата, лікарняні, вагітності, відрядження, компенсації",165965,Центральний офіс,38558365,Україна,Зарплата,26001053732835,current,3501.75,Дашковська Тетяна Григорівна,,фізична особа
Самопоміч,"Сумська область, Сумський район, Суми",84,2018-12-14,270,"Заробітна плата, премії","Заробітна плата, лікарняні, вагітності, відрядження, компенсації",165964,Центральний офіс,38558365,Україна,Зарплата,26001053732835,current,374.73,Бутенко Денис Миколайович,,фізична особа
Самопоміч,"Харківська область, Харків",84,2018-12-14,270,"Заробітна плата, премії","Заробітна плата, лікарняні, вагітності, відрядження, компенсації",165963,Центральний офіс,38558365,Україна,Зарплата,26001053732835,current,3139.50,Мамай Наталія Миколаївна,,фізична особа
Самопоміч,"Львівська область, Львів",84,2018-12-14,270,"Заробітна плата, премії","Заробітна плата, лікарняні, вагітності, відрядження, компенсації",165962,Центральний офіс,38558365,Україна,Зарплата,26001053732835,current,3002.65,Боршовська Галина Ярославівна,,фізична особа
Самопоміч,"Донецька область, Ясинувата",84,2018-12-14,270,"Заробітна плата, премії","Заробітна плата, лікарняні, вагітності, відрядження, компенсації",165961,Центральний офіс,38558365,Україна,Зарплата,26001053732835,current,5011.12,Новікова Тетяна Олексіївна,,фізична особа
Самопоміч,"Львівська область, Львів",84,2018-12-14,270,"Заробітна плата, премії","Заробітна плата, лікарняні, вагітності, відрядження, компенсації",165960,Центральний офіс,38558365,Україна,Зарплата,26001053732835,current,2505.56,Івасько Лілія Михайлівна,,фізична особа
Самопоміч,"Волинська область, Луцьк",84,2018-12-14,270,"Заробітна плата, премії","Заробітна плата, лікарняні, вагітності, відрядження, компенсації",165959,Центральний офіс,38558365,Україна,Зарплата,26001053732835,current,6001.27,Лігун Андрій Іванович,,фізична особа
Самопоміч,"Львівська область, Львів",84,2018-12-14,270,"Заробітна плата, премії","Заробітна плата, лікарняні, вагітності, відрядження, компенсації",165958,Центральний офіс,38558365,Україна,Зарплата,26001053732835,current,4999.05,Зуб Ігор Романович,,фізична особа
Самопоміч,"Тернопільська область, Чортківський район, Горішня Вигнанка, вулиця Шевченка, 34",84,2018-12-14,270,"Заробітна плата, премії","Заробітна плата, лікарняні, вагітності, відрядження, компенсації",165957,Центральний офіс,38558365,Україна,Зарплата,26001053732835,current,5011.12,Вітровий Богдан Олегович,,фізична особа
Самопоміч,"Івано-Франківська область, Косівський район",84,2018-12-14,270,"Заробітна плата, премії","Заробітна плата, лікарняні, вагітності, відрядження, компенсації",165956,Центральний офіс,38558365,Україна,Зарплата,26001053732835,current,752.67,Гордій Руслана Романівна,,фізична особа
Самопоміч,"Львівська область, Львів",84,2018-12-14,270,"Заробітна плата, премії","Заробітна плата, лікарняні, вагітності, відрядження, компенсації",165955,Центральний офіс,38558365,Україна,Зарплата,26001053732835,current,4004.87,Петровська Дарія Олегівна,,фізична особа
Самопоміч,"Волинська область, Рожищенський район, Рожище",84,2018-12-14,270,"Заробітна плата, премії","Заробітна плата, лікарняні, вагітності, відрядження, компенсації",165954,Центральний офіс,38558365,Україна,Зарплата,26001053732835,current,1086.75,Джусюк Алла Юріївна,,фізична особа
Самопоміч,"Тернопільська область, Тернопіль",84,2018-12-14,270,"Заробітна плата, премії","Заробітна плата, лікарняні, вагітності, відрядження, компенсації",165953,Центральний офіс,38558365,Україна,Зарплата,26001053732835,current,3002.65,Коваль Ірина Геннадіївна,,фізична особа
Самопоміч,"Львівська область, Львів",84,2018-12-14,270,"Заробітна плата, премії","Заробітна плата, лікарняні, вагітності, відрядження, компенсації",165952,Центральний офіс,38558365,Україна,Зарплата,26001053732835,current,1509.37,Гордон Ігор Зеновійович,,фізична особа
Самопоміч,"Житомирська область, Житомир",84,2018-12-14,270,"Заробітна плата, премії","Заробітна плата, лікарняні, вагітності, відрядження, компенсації",165951,Центральний офіс,38558365,Україна,Зарплата,26001053732835,current,3501.75,Дідківська Альона Михайлівна,,фізична особа
Самопоміч,Київ,84,2018-12-14,270,"Заробітна плата, премії","Заробітна плата, лікарняні, вагітності, відрядження, компенсації",165950,Центральний офіс,38558365,Україна,Зарплата,26001053732835,current,1247.75,Воробйов Олександр Миколайович,,фізична особа
Самопоміч,"Дніпропетровська область, Кам’янське",84,2018-12-14,270,"Заробітна плата, премії","Заробітна плата, лікарняні, вагітності, відрядження, компенсації",165949,Центральний офіс,38558365,Україна,Зарплата,26001053732835,current,2012.50,Олянюк Олена Анатоліївна,,фізична особа
Самопоміч,"Хмельницька область, Дунаєвецький район",84,2018-12-14,270,"Заробітна плата, премії","Заробітна плата, лікарняні, вагітності, відрядження, компенсації",165948,Центральний офіс,38558365,Україна,Зарплата,26001053732835,current,1509.37,Воропай Юлія Вікторівна,,фізична особа
Самопоміч,"Запорізька область, Запоріжжя",84,2018-12-14,270,"Заробітна плата, премії","Заробітна плата, лікарняні, вагітності, відрядження, компенсації",165947,Центральний офіс,38558365,Україна,Зарплата,26001053732835,current,8999.90,Богданов Віктор Павлович,,фізична особа
Самопоміч,Вінницька область,84,2018-12-14,270,"Заробітна плата, премії","Заробітна плата, лікарняні, вагітності, відрядження, компенсації",165946,Центральний офіс,38558365,Україна,Зарплата,26001053732835,current,1610.00,Стефаненко Людмила Ксенофонтівна,,фізична особа
Самопоміч,"Львівська область, Борислав",84,2018-12-14,270,"Заробітна плата, премії","Заробітна плата, лікарняні, вагітності, відрядження, компенсації",165945,Центральний офіс,38558365,Україна,Зарплата,26001053732835,current,2000.42,Марголич Святослав Степанович,,фізична особа
Самопоміч,"Львівська область, Львів",84,2018-12-14,270,"Заробітна плата, премії","Заробітна плата, лікарняні, вагітності, відрядження, компенсації",165944,Центральний офіс,38558365,Україна,Зарплата,26001053732835,current,3002.65,Сиротяк Андрій Васильович,,фізична особа
Самопоміч,"Львівська область, Львів",84,2018-12-14,270,"Заробітна плата, премії","Заробітна плата, лікарняні, вагітності, відрядження, компенсації",165943,Центральний офіс,38558365,Україна,Зарплата,26001053732835,current,1247.75,Процик Остап Ярославович,,фізична особа
Самопоміч,"Чернігівська область, Бобровицький район, Бобровиця",84,2018-12-14,270,"Заробітна плата, премії","Заробітна плата, лікарняні, вагітності, відрядження, компенсації",165942,Центральний офіс,38558365,Україна,Зарплата,26001053732835,current,885.50,Лебедь Тетяна Андріївна,,фізична особа
Самопоміч,"Львівська область, Львів",84,2018-12-14,270,"Заробітна плата, премії","Заробітна плата, лікарняні, вагітності, відрядження, компенсації",165941,Центральний офіс,38558365,Україна,Зарплата,26001053732835,current,3501.75,Бенцало Любов Леонідівна,,фізична особа
Самопоміч,Хмельницька область,84,2018-12-14,270,"Заробітна плата, премії","Заробітна плата, лікарняні, вагітності, відрядження, компенсації",165940,Центральний офіс,38558365,Україна,Зарплата,26001053732835,current,752.67,Закурдаєв Віктор Іванович,,фізична особа
Самопоміч,"Львівська область, Сколівський район",84,2018-12-14,270,"Заробітна плата, премії","Заробітна плата, лікарняні, вагітності, відрядження, компенсації",165939,Центральний офіс,38558365,Україна,Зарплата,26001053732835,current,7502.60,Шульган Марта-Стефанія Ігорівна,,фізична особа
Самопоміч,"Хмельницька область, Хмельницький",84,2018-12-14,270,"Заробітна плата, премії","Заробітна плата, лікарняні, вагітності, відрядження, компенсації",165938,Центральний офіс,38558365,Україна,Зарплата,26001053732835,current,1509.37,Коваль Ілля Олександрович,,фізична особа
Самопоміч,"Тернопільська область, Тернопіль",84,2018-12-14,270,"Заробітна плата, премії","Заробітна плата, лікарняні, вагітності, відрядження, компенсації",165937,Центральний офіс,38558365,Україна,Зарплата,26001053732835,current,3501.75,Нитка Роман Олегович,,фізична особа
Самопоміч,"Сумська область, Шостка",84,2018-12-14,270,"Заробітна плата, премії","Заробітна плата, лікарняні, вагітності, відрядження, компенсації",165936,Центральний офіс,38558365,Україна,Зарплата,26001053732835,current,1227.62,Гончарова Катерина Сергіївна,,фізична особа
Самопоміч,Київ,84,2018-12-14,270,"Заробітна плата, премії","Заробітна плата, лікарняні, вагітності, відрядження, компенсації",165935,Центральний офіс,38558365,Україна,Зарплата,26001053732835,current,3220.00,Прокопенко Марія Вадимівна,,фізична особа
Самопоміч,"Волинська область, Горохівський район, Горохів",84,2018-12-14,270,"Заробітна плата, премії","Заробітна плата, лікарняні, вагітності, відрядження, компенсації",165934,Центральний офіс,38558365,Україна,Зарплата,26001053732835,current,752.67,Якимчук Ольга Олегівна,,фізична особа
Самопоміч,"Донецька область, Донецьк",84,2018-12-14,270,"Заробітна плата, премії","Заробітна плата, лікарняні, вагітності, відрядження, компенсації",165933,Центральний офіс,38558365,Україна,Зарплата,26001053732835,current,3252.20,Алексєєнко Олена Володимирівна,,фізична особа
Самопоміч,"Івано-Франківська область, Коломийський район, Коломия",84,2018-12-14,270,"Заробітна плата, премії","Заробітна плата, лікарняні, вагітності, відрядження, компенсації",165932,Центральний офіс,38558365,Україна,Зарплата,26001053732835,current,752.67,Галайчук Алла Миколаївна,,фізична особа
Самопоміч,"Львівська область, Дрогобич",84,2018-12-14,270,"Заробітна плата, премії","Заробітна плата, лікарняні, вагітності, відрядження, компенсації",165931,Центральний офіс,38558365,Україна,Зарплата,26001053732835,current,7506.62,Зінченко Тарас Ігорович,,фізична особа
Самопоміч,"Волинська область, Любомльський район, Любомль",84,2018-12-14,270,"Заробітна плата, премії","Заробітна плата, лікарняні, вагітності, відрядження, компенсації",165930,Центральний офіс,38558365,Україна,Зарплата,26001053732835,current,752.67,Булавка Тамара Павлівна,,фізична особа
Самопоміч,"Сумська область, Конотоп",84,2018-12-14,270,"Заробітна плата, премії","Заробітна плата, лікарняні, вагітності, відрядження, компенсації",165929,Центральний офіс,38558365,Україна,Зарплата,26001053732835,current,1754.90,Деркач Світлана Григорівна,,фізична особа
Самопоміч,"Житомирська область, Баранівський район, Баранівка",84,2018-12-14,270,"Заробітна плата, премії","Заробітна плата, лікарняні, вагітності, відрядження, компенсації",165928,Центральний офіс,38558365,Україна,Зарплата,26001053732835,current,503.12,Ворощук Сергій Антонович,,фізична особа
Самопоміч,Житомирська область,84,2018-12-14,270,"Заробітна плата, премії","Заробітна плата, лікарняні, вагітності, відрядження, компенсації",165927,Центральний офіс,38558365,Україна,Зарплата,26001053732835,current,4999.05,Никончук Дмитро Миколайович,,фізична особа
Самопоміч,"Львівська область, Львів",84,2018-12-14,270,"Заробітна плата, премії","Заробітна плата, лікарняні, вагітності, відрядження, компенсації",165926,Центральний офіс,38558365,Україна,Зарплата,26001053732835,current,3501.75,Супрун Марта Олегівна,,фізична особа
Самопоміч,"Дніпропетровська область, Дніпровський район, Підгородне",84,2018-12-14,270,"Заробітна плата, премії","Заробітна плата, лікарняні, вагітності, відрядження, компенсації",165925,Центральний офіс,38558365,Україна,Зарплата,26001053732835,current,5011.12,Бухтіяров Олег Геннадійович,,фізична особа
Самопоміч,"Чернівецька область, Новодністровськ",84,2018-12-14,270,"Заробітна плата, премії","Заробітна плата, лікарняні, вагітності, відрядження, компенсації",165924,Центральний офіс,38558365,Україна,Зарплата,26001053732835,current,1750.87,Палагнюк Анастасія Русланівна,,фізична особа
Самопоміч,"Львівська область, Львів",84,2018-12-14,270,"Заробітна плата, премії","Заробітна плата, лікарняні, вагітності, відрядження, компенсації",165923,Центральний офіс,38558365,Україна,Зарплата,26001053732835,current,4004.87,Гнип Максим Стахович,,фізична особа
Самопоміч,"Хмельницька область, Нетішин",84,2018-12-14,270,"Заробітна плата, премії","Заробітна плата, лікарняні, вагітності, відрядження, компенсації",165922,Центральний офіс,38558365,Україна,Зарплата,26001053732835,current,6560.75,Коваль Наталія Михайлівна,,фізична особа
Самопоміч,"Луганська область, Луганськ",84,2018-12-14,270,"Заробітна плата, премії","Заробітна плата, лікарняні, вагітності, відрядження, компенсації",165921,Центральний офіс,38558365,Україна,Зарплата,26001053732835,current,2757.12,Мягкова Ірина Миколаївна,,фізична особа
Самопоміч,"Полтавська область, Кременчуцький район, Горішні Плавні",84,2018-12-14,270,"Заробітна плата, премії","Заробітна плата, лікарняні, вагітності, відрядження, компенсації",165920,Центральний офіс,38558365,Україна,Зарплата,26001053732835,current,1529.50,Попович Наталія Фірузівна,,фізична особа
Самопоміч,"Чернігівська область, Бахмацький район",84,2018-12-14,270,"Заробітна плата, премії","Заробітна плата, лікарняні, вагітності, відрядження, компенсації",165919,Центральний офіс,38558365,Україна,Зарплата,26001053732835,current,4000.85,Сухарь Юлія Русланівна,,фізична особа
Самопоміч,"Хмельницька область, Хмельницький",84,2018-12-14,270,"Заробітна плата, премії","Заробітна плата, лікарняні, вагітності, відрядження, компенсації",165918,Центральний офіс,38558365,Україна,Зарплата,26001053732835,current,2515.62,Погребняк Ольга Олександрівна,,фізична особа
Самопоміч,"Кіровоградська область, Благовіщенський район, Благовіщенське",84,2018-12-14,270,"Заробітна плата, премії","Заробітна плата, лікарняні, вагітності, відрядження, компенсації",165917,Центральний офіс,38558365,Україна,Зарплата,26001053732835,current,3501.75,Суслов Роман Дмитрович,,фізична особа
Самопоміч,"Сумська область, Сумський район, Суми",84,2018-12-14,270,"Заробітна плата, премії","Заробітна плата, лікарняні, вагітності, відрядження, компенсації",165916,Центральний офіс,38558365,Україна,Зарплата,26001053732835,current,374.73,Зименко Олександр Вікторович,,фізична особа
Самопоміч,"Полтавська область, Полтава",84,2018-12-14,270,"Заробітна плата, премії","Заробітна плата, лікарняні, вагітності, відрядження, компенсації",165915,Центральний офіс,38558365,Україна,Зарплата,26001053732835,current,3002.65,Лаптєв Дмитро Михайлович,,фізична особа
Самопоміч,"Хмельницька область, Ізяславський район",84,2018-12-14,270,"Заробітна плата, премії","Заробітна плата, лікарняні, вагітності, відрядження, компенсації",165914,Центральний офіс,38558365,Україна,Зарплата,26001053732835,current,1006.25,Осадько Аліса Сергіївна,,фізична особа
Самопоміч,"Львівська область, Львів",84,2018-12-14,270,"Заробітна плата, премії","Заробітна плата, лікарняні, вагітності, відрядження, компенсації",165913,Центральний офіс,38558365,Україна,Зарплата,26001053732835,current,1750.87,Блавацька Ілона Олегівна,,фізична особа
Самопоміч,"Харківська область, Харківський район",84,2018-12-14,270,"Заробітна плата, премії","Заробітна плата, лікарняні, вагітності, відрядження, компенсації",165912,Центральний офіс,38558365,Україна,Зарплата,26001053732835,current,2515.62,Баранников Сергій Олександрович,,фізична особа
Самопоміч,"Хмельницька область, Хмельницький",84,2018-12-14,270,"Заробітна плата, премії","Заробітна плата, лікарняні, вагітності, відрядження, компенсації",165911,Центральний офіс,38558365,Україна,Зарплата,26001053732835,current,1505.35,Гіджеліцький Ігор Казимирович,,фізична особа
Самопоміч,Київ,84,2018-12-14,270,"Заробітна плата, премії","Заробітна плата, лікарняні, вагітності, відрядження, компенсації",165910,Центральний офіс,38558365,Україна,Зарплата,26001053732835,current,4000.85,Векуа Софіко Демурівна,,фізична особа
Самопоміч,"Івано-Франківська область, Коломийський район, Коломия",84,2018-12-14,270,"Заробітна плата, премії","Заробітна плата, лікарняні, вагітності, відрядження, компенсації",165909,Центральний офіс,38558365,Україна,Зарплата,26001053732835,current,8251.25,Федюк Любомир Мирославович,,фізична особа
Самопоміч,"Львівська область, Львів",84,2018-12-14,270,"Заробітна плата, премії","Заробітна плата, лікарняні, вагітності, відрядження, компенсації",165908,Центральний офіс,38558365,Україна,Зарплата,26001053732835,current,5606.82,Дунаєвська Ольга Євстахіївна,,фізична особа
Самопоміч,"Черкаська область, Золотоноша",84,2018-12-14,270,"Заробітна плата, премії","Заробітна плата, лікарняні, вагітності, відрядження, компенсації",165907,Центральний офіс,38558365,Україна,Зарплата,26001053732835,current,1791.12,Луцик Оксана Олександрівна,,фізична особа
Самопоміч,"Херсонська область, Херсон",84,2018-12-14,270,"Заробітна плата, премії","Заробітна плата, лікарняні, вагітності, відрядження, компенсації",165906,Центральний офіс,38558365,Україна,Зарплата,26001053732835,current,3501.75,Циктор Михайло Вікторович,,фізична особа
Самопоміч,"Полтавська область, Полтава",84,2018-12-14,270,"Заробітна плата, премії","Заробітна плата, лікарняні, вагітності, відрядження, компенсації",165905,Центральний офіс,38558365,Україна,Зарплата,26001053732835,current,2495.50,Бистрицька Катерина Сергіївна,,фізична особа
Самопоміч,"Донецька область, Слов'янський район, Слов'янськ",84,2018-12-14,270,"Заробітна плата, премії","Заробітна плата, лікарняні, вагітності, відрядження, компенсації",165904,Центральний офіс,38558365,Україна,Зарплата,26001053732835,current,5011.12,Риженкова Катерина Михайлівна,,фізична особа
Самопоміч,Київ,84,2018-12-14,270,"Заробітна плата, премії","Заробітна плата, лікарняні, вагітності, відрядження, компенсації",165903,Центральний офіс,38558365,Україна,Зарплата,26001053732835,current,966.00,Черкашин Денис Євгенович,,фізична особа
Самопоміч,"Чернігівська область, Ніжин",84,2018-12-14,270,"Заробітна плата, премії","Заробітна плата, лікарняні, вагітності, відрядження, компенсації",165902,Центральний офіс,38558365,Україна,Зарплата,26001053732835,current,1002.22,Волкова Наталія Петрівна,,фізична особа
Самопоміч,"Вінницька область, Жмеринка",84,2018-12-14,270,"Заробітна плата, премії","Заробітна плата, лікарняні, вагітності, відрядження, компенсації",165901,Центральний офіс,38558365,Україна,Зарплата,26001053732835,current,7506.62,Горчук Микола Володимирович,,фізична особа
Самопоміч,"Київська обл., Васильківський район",84,2018-12-14,270,"Заробітна плата, премії","Заробітна плата, лікарняні, вагітності, відрядження, компенсації",165900,Центральний офіс,38558365,Україна,Зарплата,26001053732835,current,4910.50,Шевченко Олександр Леонідович,,фізична особа
Самопоміч,"Львівська область, Львів",84,2018-12-14,270,"Заробітна плата, премії","Заробітна плата, лікарняні, вагітності, відрядження, компенсації",165899,Центральний офіс,38558365,Україна,Зарплата,26001053732835,current,7506.62,Кучеренко Олексій Ігорович,,фізична особа
Самопоміч,"Львівська область, Львів",84,2018-12-14,270,"Заробітна плата, премії","Заробітна плата, лікарняні, вагітності, відрядження, компенсації",165898,Центральний офіс,38558365,Україна,Зарплата,26001053732835,current,1509.37,Матіяш Василь Зіновійович,,фізична особа
Самопоміч,Київ,84,2018-12-14,270,"Заробітна плата, премії","Заробітна плата, лікарняні, вагітності, відрядження, компенсації",165897,Центральний офіс,38558365,Україна,Зарплата,26001053732835,current,4999.05,Зубер Світлана Олександрівна,,фізична особа
Самопоміч,"Львівська область, Жидачівський район, Дев'ятники",84,2018-12-14,270,"Заробітна плата, премії","Заробітна плата, лікарняні, вагітності, відрядження, компенсації",165896,Центральний офіс,38558365,Україна,Зарплата,26001053732835,current,5011.12,Юрків Марія Ярославівна,,фізична особа
Самопоміч,"Львівська область, Львів",84,2018-12-14,270,"Заробітна плата, премії","Заробітна плата, лікарняні, вагітності, відрядження, компенсації",165895,Центральний офіс,38558365,Україна,Зарплата,26001053732835,current,2402.12,Коваль Ольга Вікторівна,,фізична особа
Самопоміч,"Миколаївська область, Очаків",84,2018-12-14,270,"Заробітна плата, премії","Заробітна плата, лікарняні, вагітності, відрядження, компенсації",165894,Центральний офіс,38558365,Україна,Зарплата,26001053732835,current,4999.05,Твердовська Ірина Рафкатівна,,фізична особа
Самопоміч,"Закарпатська область, Рахівський район, Рахів",84,2018-12-14,270,"Заробітна плата, премії","Заробітна плата, лікарняні, вагітності, відрядження, компенсації",165893,Центральний офіс,38558365,Україна,Зарплата,26001053732835,current,1498.51,Губко Богдан Валентинович,,фізична особа
Самопоміч,Київ,84,2018-12-14,270,"Заробітна плата, премії","Заробітна плата, лікарняні, вагітності, відрядження, компенсації",165892,Центральний офіс,38558365,Україна,Зарплата,26001053732835,current,5011.12,Голєнкова Ольга Сергіївна,,фізична особа
Самопоміч,"Івано-Франківська область, Галицький район, Галич",84,2018-12-14,270,"Заробітна плата, премії","Заробітна плата, лікарняні, вагітності, відрядження, компенсації",165891,Центральний офіс,38558365,Україна,Зарплата,26001053732835,current,1501.32,Грибіш Степан Миколайович,,фізична особа
Самопоміч,"Львівська область, Львів",84,2018-12-14,270,"Заробітна плата, премії","Заробітна плата, лікарняні, вагітності, відрядження, компенсації",165890,Центральний офіс,38558365,Україна,Зарплата,26001053732835,current,10002.12,Камінська Ірина Степанівна,,фізична особа
Самопоміч,"Рівненська область, Сарненський район",84,2018-12-14,270,"Заробітна плата, премії","Заробітна плата, лікарняні, вагітності, відрядження, компенсації",165889,Центральний офіс,38558365,Україна,Зарплата,26001053732835,current,1501.32,Якубович Ірина Станіславівна,,фізична особа
Самопоміч,"Житомирська область, Ємільчинський район",84,2018-12-14,270,"Заробітна плата, премії","Заробітна плата, лікарняні, вагітності, відрядження, компенсації",165888,Центральний офіс,38558365,Україна,Зарплата,26001053732835,current,885.50,Дейнека Віталій Петрович,,фізична особа
Самопоміч,Київ,84,2018-12-14,270,"Заробітна плата, премії","Заробітна плата, лікарняні, вагітності, відрядження, компенсації",165887,Центральний офіс,38558365,Україна,Зарплата,26001053732835,current,4510.01,Друзенко Тетяна Вікторівна,,фізична особа
Самопоміч,"Львівська область, Львів",84,2018-12-14,270,"Заробітна плата, премії","Заробітна плата, лікарняні, вагітності, відрядження, компенсації",165886,Центральний офіс,38558365,Україна,Зарплата,26001053732835,current,3501.75,Лещишин Анета Григорівна,,фізична особа
Самопоміч,"Черкаська область, Канів",84,2018-12-14,270,"Заробітна плата, премії","Заробітна плата, лікарняні, вагітності, відрядження, компенсації",165885,Центральний офіс,38558365,Україна,Зарплата,26001053732835,current,1650.25,Мокрієнко Олександр Михайлович,,фізична особа
Самопоміч,"Івано-Франківська область, Калуш",84,2018-12-14,270,"Заробітна плата, премії","Заробітна плата, лікарняні, вагітності, відрядження, компенсації",165884,Центральний офіс,38558365,Україна,Зарплата,26001053732835,current,1750.87,Федорів Юлія Андріївна,,фізична особа
Самопоміч,"Львівська область, Пустомитівський район",84,2018-12-14,270,"Заробітна плата, премії","Заробітна плата, лікарняні, вагітності, відрядження, компенсації",165883,Центральний офіс,38558365,Україна,Зарплата,26001053732835,current,6250.82,Лисенко Лілія Володимирівна,,фізична особа
Самопоміч,"Львівська область, Львів",84,2018-12-14,270,"Заробітна плата, премії","Заробітна плата, лікарняні, вагітності, відрядження, компенсації",165882,Центральний офіс,38558365,Україна,Зарплата,26001053732835,current,2477.79,Шевців Яромир Володимирович,,фізична особа
Самопоміч,"Львівська область, Пустомитівський район",84,2018-12-14,270,"Заробітна плата, премії","Заробітна плата, лікарняні, вагітності, відрядження, компенсації",165881,Центральний офіс,38558365,Україна,Зарплата,26001053732835,current,5755.75,Смітюх Жанна Вікторівна,,фізична особа
Самопоміч,Миколаївська область,84,2018-12-14,270,"Заробітна плата, премії","Заробітна плата, лікарняні, вагітності, відрядження, компенсації",165880,Центральний офіс,38558365,Україна,Зарплата,26001053732835,current,752.67,Смаровоз Ганна Георгіївна,,фізична особа
Самопоміч,"Полтавська область, Полтава",84,2018-12-14,270,"Заробітна плата, премії","Заробітна плата, лікарняні, вагітності, відрядження, компенсації",165879,Центральний офіс,38558365,Україна,Зарплата,26001053732835,current,1509.37,Поляк Світлана Вікторівна,,фізична особа
Самопоміч,"Чернігівська область, Ічнянський район",84,2018-12-14,270,"Заробітна плата, премії","Заробітна плата, лікарняні, вагітності, відрядження, компенсації",165878,Центральний офіс,38558365,Україна,Зарплата,26001053732835,current,752.67,Коваленко Інна Миколаївна,,фізична особа
Самопоміч,Київ,84,2018-12-14,270,"Заробітна плата, премії","Заробітна плата, лікарняні, вагітності, відрядження, компенсації",165877,Центральний офіс,38558365,Україна,Зарплата,26001053732835,current,4004.87,Сидоренко Ілона Артурівна,,фізична особа
Самопоміч,"Волинська область, Луцьк",84,2018-12-14,270,"Заробітна плата, премії","Заробітна плата, лікарняні, вагітності, відрядження, компенсації",165876,Центральний офіс,38558365,Україна,Зарплата,26001053732835,current,4508.00,Надточій Алла Володимирівна,,фізична особа
Самопоміч,"Львівська область, Львів",84,2018-12-14,270,"Заробітна плата, премії","Заробітна плата, лікарняні, вагітності, відрядження, компенсації",165875,Центральний офіс,38558365,Україна,Зарплата,26001053732835,current,2121.98,Гмирук Марія Сергіївна,,фізична особа
Самопоміч,"Київська обл., Києво-Святошинський район",84,2018-12-14,270,"Заробітна плата, премії","Заробітна плата, лікарняні, вагітності, відрядження, компенсації",165874,Центральний офіс,38558365,Україна,Зарплата,26001053732835,current,10002.12,Берко Степан Тарасович,,фізична особа
Самопоміч,Кіровоградська область,84,2018-12-14,270,"Заробітна плата, премії","Заробітна плата, лікарняні, вагітності, відрядження, компенсації",165873,Центральний офіс,38558365,Україна,Зарплата,26001053732835,current,1771.00,Чемерис Олександр Якович,,фізична особа
Самопоміч,"Львівська область, Львів",84,2018-12-14,270,"Заробітна плата, премії","Заробітна плата, лікарняні, вагітності, відрядження, компенсації",165872,Центральний офіс,38558365,Україна,Зарплата,26001053732835,current,901.60,Тимців Наталія Василівна,,фізична особа
Самопоміч,"Чернівецька область, Чернівці",84,2018-12-14,270,"Заробітна плата, премії","Заробітна плата, лікарняні, вагітності, відрядження, компенсації",165871,Центральний офіс,38558365,Україна,Зарплата,26001053732835,current,2012.50,Українець Інна Олександрівна,,фізична особа
Самопоміч,"Івано-Франківська область, Надворнянський район, Надвірна",84,2018-12-14,270,"Заробітна плата, премії","Заробітна плата, лікарняні, вагітності, відрядження, компенсації",165870,Центральний офіс,38558365,Україна,Зарплата,26001053732835,current,756.70,Арсенич Наталія Миколаївна,,фізична особа
Самопоміч,"Львівська область, Львів",84,2018-12-14,270,"Заробітна плата, премії","Заробітна плата, лікарняні, вагітності, відрядження, компенсації",165869,Центральний офіс,38558365,Україна,Зарплата,26001053732835,current,3018.75,Яким Лілія Степанівна,,фізична особа
Самопоміч,"Львівська область, Львів",84,2018-12-14,270,"Заробітна плата, премії","Заробітна плата, лікарняні, вагітності, відрядження, компенсації",165868,Центральний офіс,38558365,Україна,Зарплата,26001053732835,current,1227.62,Крупей Микола Ігорович,,фізична особа
Самопоміч,"Хмельницька область, Красилівський район, Красилів",84,2018-12-14,270,"Заробітна плата, премії","Заробітна плата, лікарняні, вагітності, відрядження, компенсації",165867,Центральний офіс,38558365,Україна,Зарплата,26001053732835,current,885.50,Хмельницька Богдана Володимирівна,,фізична особа
Самопоміч,"Харківська область, Дергачівський район, Дергачі",84,2018-12-14,270,"Заробітна плата, премії","Заробітна плата, лікарняні, вагітності, відрядження, компенсації",165866,Центральний офіс,38558365,Україна,Зарплата,26001053732835,current,2012.50,Анчишкін Олександр Володимирович,,фізична особа
Самопоміч,"Івано-Франківська область, Галицький район, Галич",84,2018-12-14,270,"Заробітна плата, премії","Заробітна плата, лікарняні, вагітності, відрядження, компенсації",165865,Центральний офіс,38558365,Україна,Зарплата,26001053732835,current,1501.32,Качанський Михайло Юрійович,,фізична особа
Самопоміч,"Вінницька область, Тиврівський район",84,2018-12-14,270,"Заробітна плата, премії","Заробітна плата, лікарняні, вагітності, відрядження, компенсації",165864,Центральний офіс,38558365,Україна,Зарплата,26001053732835,current,1247.75,Завальницька Оксана Василівна,,фізична особа
Самопоміч,"Чернівецька область, Чернівці",84,2018-12-14,270,"Заробітна плата, премії","Заробітна плата, лікарняні, вагітності, відрядження, компенсації",165863,Центральний офіс,38558365,Україна,Зарплата,26001053732835,current,1750.87,Кучерівська Софія Степанівна,,фізична особа
Самопоміч,"Чернівецька область, Чернівці",84,2018-12-14,270,"Заробітна плата, премії","Заробітна плата, лікарняні, вагітності, відрядження, компенсації",165862,Центральний офіс,38558365,Україна,Зарплата,26001053732835,current,752.67,Главіцка Крістіна Віталіївна,,фізична особа
Самопоміч,"Кіровоградська область, Світловодський район",84,2018-12-14,270,"Заробітна плата, премії","Заробітна плата, лікарняні, вагітності, відрядження, компенсації",165861,Центральний офіс,38558365,Україна,Зарплата,26001053732835,current,1501.32,Орлова Юлія Василівна,,фізична особа
Самопоміч,Київ,84,2018-12-14,270,"Заробітна плата, премії","Заробітна плата, лікарняні, вагітності, відрядження, компенсації",165860,Центральний офіс,38558365,Україна,Зарплата,26001053732835,current,1509.37,Омельченко Михайло Вадимович,,фізична особа
Самопоміч,"Запорізька область, Запоріжжя",84,2018-12-14,270,"Заробітна плата, премії","Заробітна плата, лікарняні, вагітності, відрядження, компенсації",165859,Центральний офіс,38558365,Україна,Зарплата,26001053732835,current,4628.75,Романюк Олег Васильович,,фізична особа
Самопоміч,"Львівська область, Червоноград",84,2018-12-14,270,"Заробітна плата, премії","Заробітна плата, лікарняні, вагітності, відрядження, компенсації",165858,Центральний офіс,38558365,Україна,Зарплата,26001053732835,current,5011.12,Фартушок Дмитро Ігорович,,фізична особа
Самопоміч,"Львівська область, Яворівський район, Новояворівськ",84,2018-12-14,270,"Заробітна плата, премії","Заробітна плата, лікарняні, вагітності, відрядження, компенсації",165857,Центральний офіс,38558365,Україна,Зарплата,26001053732835,current,1498.51,Клочник Оксана Євгенівна,,фізична особа
Самопоміч,"Тернопільська область, Борщівський район, Борщів",84,2018-12-14,270,"Заробітна плата, премії","Заробітна плата, лікарняні, вагітності, відрядження, компенсації",165856,Центральний офіс,38558365,Україна,Зарплата,26001053732835,current,1501.32,Кріль Оксана Володимирівна,,фізична особа
Самопоміч,"Чернігівська область, Ніжин",84,2018-12-14,270,"Заробітна плата, премії","Заробітна плата, лікарняні, вагітності, відрядження, компенсації",165855,Центральний офіс,38558365,Україна,Зарплата,26001053732835,current,756.70,Середа Дмитро Анатолійович,,фізична особа
Самопоміч,"Львівська область, Пустомитівський район",84,2018-12-14,270,"Заробітна плата, премії","Заробітна плата, лікарняні, вагітності, відрядження, компенсації",165854,Центральний офіс,38558365,Україна,Зарплата,26001053732835,current,3002.65,Зільник Віталій Михайлович,,фізична особа
Самопоміч,"Тернопільська область, Тернопіль",84,2018-12-14,270,"Заробітна плата, премії","Заробітна плата, лікарняні, вагітності, відрядження, компенсації",165853,Центральний офіс,38558365,Україна,Зарплата,26001053732835,current,3002.65,Криськів Світлана Михайлівна,,фізична особа
Самопоміч,"Львівська область, Львів",84,2018-12-14,270,"Заробітна плата, премії","Заробітна плата, лікарняні, вагітності, відрядження, компенсації",165852,Центральний офіс,38558365,Україна,Зарплата,26001053732835,current,382.37,Кізима Роман Михайлович,,фізична особа
Самопоміч,Київ,84,2018-12-14,270,"Заробітна плата, премії","Заробітна плата, лікарняні, вагітності, відрядження, компенсації",165851,Центральний офіс,38558365,Україна,Зарплата,26001053732835,current,5011.12,Штанєва Анастасія Андріївна,,фізична особа
Самопоміч,"Чернігівська область, Варвинський район, Варва",84,2018-12-14,270,"Заробітна плата, премії","Заробітна плата, лікарняні, вагітності, відрядження, компенсації",165850,Центральний офіс,38558365,Україна,Зарплата,26001053732835,current,752.67,Свистун Григорій Миколайович,,фізична особа
Самопоміч,"Вінницька область, Тростянецький район, Тростянець",84,2018-12-14,270,"Заробітна плата, премії","Заробітна плата, лікарняні, вагітності, відрядження, компенсації",165849,Центральний офіс,38558365,Україна,Зарплата,26001053732835,current,1597.92,Моргун Світлана Григорівна,,фізична особа
Самопоміч,"Львівська область, Львів",84,2018-12-14,270,"Заробітна плата, премії","Заробітна плата, лікарняні, вагітності, відрядження, компенсації",165848,Центральний офіс,38558365,Україна,Зарплата,26001053732835,current,1006.25,Заяць Богдана Романівна,,фізична особа
Самопоміч,"Закарпатська область, Ужгород",84,2018-12-14,270,"Заробітна плата, премії","Заробітна плата, лікарняні, вагітності, відрядження, компенсації",165847,Центральний офіс,38558365,Україна,Зарплата,26001053732835,current,3501.75,Охременко Людмила Григорівна,,фізична особа
Самопоміч,"Миколаївська область, Миколаїв",84,2018-12-14,270,"Заробітна плата, премії","Заробітна плата, лікарняні, вагітності, відрядження, компенсації",165846,Центральний офіс,38558365,Україна,Зарплата,26001053732835,current,3501.75,Данчук Олександр Васильович,,фізична особа
Самопоміч,"Київська обл., Києво-Святошинський район",84,2018-12-14,270,"Заробітна плата, премії","Заробітна плата, лікарняні, вагітності, відрядження, компенсації",165845,Центральний офіс,38558365,Україна,Зарплата,26001053732835,current,5001.06,Скочинська Юлія Володимирівна,,фізична особа
Самопоміч,Київ,84,2018-12-14,270,"Заробітна плата, премії","Заробітна плата, лікарняні, вагітності, відрядження, компенсації",165844,Центральний офіс,38558365,Україна,Зарплата,26001053732835,current,4508.00,Кирилов Володимир Сергійович,,фізична особа
Самопоміч,Тернопільська область,84,2018-12-14,270,"Заробітна плата, премії","Заробітна плата, лікарняні, вагітності, відрядження, компенсації",165843,Центральний офіс,38558365,Україна,Зарплата,26001053732835,current,5011.12,Грушицький Олег Мирославович,,фізична особа
Самопоміч,"Рівненська область, Рівне",84,2018-12-14,270,"Заробітна плата, премії","Заробітна плата, лікарняні, вагітності, відрядження, компенсації",165842,Центральний офіс,38558365,Україна,Зарплата,26001053732835,current,3501.75,Топорко Олена Вʼячеславівна,,фізична особа
Самопоміч,"Одеська область, Одеса",84,2018-12-14,270,"Заробітна плата, премії","Заробітна плата, лікарняні, вагітності, відрядження, компенсації",165841,Центральний офіс,38558365,Україна,Зарплата,26001053732835,current,4025.00,Новіков Геннадій Олегович,,фізична особа
Самопоміч,Севастополь,84,2018-12-14,270,"Заробітна плата, премії","Заробітна плата, лікарняні, вагітності, відрядження, компенсації",165840,Центральний офіс,38558365,Україна,Зарплата,26001053732835,current,3501.75,Балдига Лілія Олександрівна,,фізична особа
Самопоміч,Тернопільська область,84,2018-12-14,270,"Заробітна плата, премії","Заробітна плата, лікарняні, вагітності, відрядження, компенсації",165839,Центральний офіс,38558365,Україна,Зарплата,26001053732835,current,752.67,Фидрин Віталій Михайлович,,фізична особа
Самопоміч,"Хмельницька область, Хмельницький",84,2018-12-14,270,"Заробітна плата, премії","Заробітна плата, лікарняні, вагітності, відрядження, компенсації",165838,Центральний офіс,38558365,Україна,Зарплата,26001053732835,current,885.50,Радченко Олександр Петрович,,фізична особа
Самопоміч,"Львівська область, Львів",84,2018-12-14,270,"Заробітна плата, премії","Заробітна плата, лікарняні, вагітності, відрядження, компенсації",165837,Центральний офіс,38558365,Україна,Зарплата,26001053732835,current,5755.75,Алєксєєва Наталія Ігорівна,,фізична особа
Самопоміч,"Волинська область, Луцьк",84,2018-12-14,270,"Заробітна плата, премії","Заробітна плата, лікарняні, вагітності, відрядження, компенсації",165836,Центральний офіс,38558365,Україна,Зарплата,26001053732835,current,5011.12,Собуцький Микола Миколайович,,фізична особа
Самопоміч,Івано-Франківська область,84,2018-12-14,270,"Заробітна плата, премії","Заробітна плата, лікарняні, вагітності, відрядження, компенсації",165835,Центральний офіс,38558365,Україна,Зарплата,26001053732835,current,752.67,Шира Ірина Володимирівна,,фізична особа
Самопоміч,"Одеська область, Чорноморськ",84,2018-12-14,270,"Заробітна плата, премії","Заробітна плата, лікарняні, вагітності, відрядження, компенсації",165834,Центральний офіс,38558365,Україна,Зарплата,26001053732835,current,4025.00,Кочан Анна Олександрівна,,фізична особа
Самопоміч,"Тернопільська область, Чортківський район, Чортків",84,2018-12-14,270,"Заробітна плата, премії","Заробітна плата, лікарняні, вагітності, відрядження, компенсації",165833,Центральний офіс,38558365,Україна,Зарплата,26001053732835,current,5635.00,Кушнір Олег Орестович,,фізична особа
Самопоміч,"Дніпропетровська область, Дніпровський район",84,2018-12-14,270,"Заробітна плата, премії","Заробітна плата, лікарняні, вагітності, відрядження, компенсації",165832,Центральний офіс,38558365,Україна,Зарплата,26001053732835,current,3501.75,Соколова Олена Юріївна,,фізична особа
Самопоміч,"Львівська область, Золочівський район, Золочів",84,2018-12-14,270,"Заробітна плата, премії","Заробітна плата, лікарняні, вагітності, відрядження, компенсації",165831,Центральний офіс,38558365,Україна,Зарплата,26001053732835,current,5011.12,Муравель Тетяна Богданівна,,фізична особа
Самопоміч,"Львівська область, Львів",84,2018-12-14,270,"Заробітна плата, премії","Заробітна плата, лікарняні, вагітності, відрядження, компенсації",165830,Центральний офіс,38558365,Україна,Зарплата,26001053732835,current,3501.75,Тимочко Сюзанна Ігорівна,,фізична особа
Самопоміч,"Волинська область, Луцьк",84,2018-12-14,270,"Заробітна плата, премії","Заробітна плата, лікарняні, вагітності, відрядження, компенсації",165829,Центральний офіс,38558365,Україна,Зарплата,26001053732835,current,3501.75,Манзюк Валентина Феодосіївна,,фізична особа
Самопоміч,"Львівська область, Бродівський район",84,2018-12-14,270,"Заробітна плата, премії","Заробітна плата, лікарняні, вагітності, відрядження, компенсації",165828,Центральний офіс,38558365,Україна,Зарплата,26001053732835,current,750.66,Пилипець Марія Ярославівна,,фізична особа
Самопоміч,"Волинська область, Луцьк",84,2018-12-14,270,"Заробітна плата, премії","Заробітна плата, лікарняні, вагітності, відрядження, компенсації",165827,Центральний офіс,38558365,Україна,Зарплата,26001053732835,current,1891.75,Боднарчук Богдана Володимирівна,,фізична особа
Самопоміч,"Рівненська область, Острозький район",84,2018-12-14,270,"Заробітна плата, премії","Заробітна плата, лікарняні, вагітності, відрядження, компенсації",165826,Центральний офіс,38558365,Україна,Зарплата,26001053732835,current,885.50,Вільбовець Ірина Валентинівна,,фізична особа
Самопоміч,"Дніпропетровська область, Дніпро́",84,2018-12-14,270,"Заробітна плата, премії","Заробітна плата, лікарняні, вагітності, відрядження, компенсації",165825,Центральний офіс,38558365,Україна,Зарплата,26001053732835,current,3501.75,Гладкова Аліна Михайлівна,,фізична особа
Самопоміч,"Харківська область, Харків",84,2018-12-14,270,"Заробітна плата, премії","Заробітна плата, лікарняні, вагітності, відрядження, компенсації",165824,Центральний офіс,38558365,Україна,Зарплата,26001053732835,current,1610.00,Матвієнко Олена Миколаївна,,фізична особа
Самопоміч,"Хмельницька область, Нетішин",84,2018-12-14,270,"Заробітна плата, премії","Заробітна плата, лікарняні, вагітності, відрядження, компенсації",165823,Центральний офіс,38558365,Україна,Зарплата,26001053732835,current,1779.05,Матросова Олена Віталіївна,,фізична особа
Самопоміч,"Львівська область, Львів",84,2018-12-14,270,"Заробітна плата, премії","Заробітна плата, лікарняні, вагітності, відрядження, компенсації",165822,Центральний офіс,38558365,Україна,Зарплата,26001053732835,current,5856.37,Дедишин Володимир Євгенович,,фізична особа
Самопоміч,Київ,84,2018-12-14,270,"Заробітна плата, премії","Заробітна плата, лікарняні, вагітності, відрядження, компенсації",165821,Центральний офіс,38558365,Україна,Зарплата,26001053732835,current,4029.02,Бульба Альона Сергіївна,,фізична особа
Самопоміч,"Львівська область, Львів",84,2018-12-14,270,"Заробітна плата, премії","Заробітна плата, лікарняні, вагітності, відрядження, компенсації",165820,Центральний офіс,38558365,Україна,Зарплата,26001053732835,current,2093.00,Мирощенко Андрій Миколайович,,фізична особа
Самопоміч,"Івано-Франківська область, Івано-Франківськ",84,2018-12-14,270,"Заробітна плата, премії","Заробітна плата, лікарняні, вагітності, відрядження, компенсації",165819,Центральний офіс,38558365,Україна,Зарплата,26001053732835,current,1501.32,Гарасимко Іван Михайлович,,фізична особа
Самопоміч,"Закарпатська область, Тячівський район, Тячів",84,2018-12-14,270,"Заробітна плата, премії","Заробітна плата, лікарняні, вагітності, відрядження, компенсації",165818,Центральний офіс,38558365,Україна,Зарплата,26001053732835,current,503.12,Томащук Світлана Вікторівна,,фізична особа
Самопоміч,"Вінницька область, Немирівський район, Немирів",84,2018-12-14,270,"Заробітна плата, премії","Заробітна плата, лікарняні, вагітності, відрядження, компенсації",165817,Центральний офіс,38558365,Україна,Зарплата,26001053732835,current,1498.51,Єщенко Ірина Петрівна,,фізична особа
Самопоміч,"Сумська область, Глухів",84,2018-12-14,274,"Заробітна плата, премії","Заробітна плата, лікарняні, вагітності, відрядження, компенсації",165816,Центральний офіс,38558365,Україна,Зарплата,26001053732835,current,3242.77,Іванова Олена Миколаївна,,фізична особа
Самопоміч,"Львівська область, Львів",84,2018-12-14,270,"Заробітна плата, премії","Заробітна плата, лікарняні, вагітності, відрядження, компенсації",165815,Центральний офіс,38558365,Україна,Зарплата,26001053732835,current,5997.25,Терещенко Роман Анатолійович,,фізична особа
Самопоміч,"Харківська область, Харків",84,2018-12-14,270,"Заробітна плата, премії","Заробітна плата, лікарняні, вагітності, відрядження, компенсації",165814,Центральний офіс,38558365,Україна,Зарплата,26001053732835,current,2978.50,Бахтігозіна Марина Віталіївна,,фізична особа
Самопоміч,"Вінницька область, Немирівський район, Немирів",84,2018-12-14,270,"Заробітна плата, премії","Заробітна плата, лікарняні, вагітності, відрядження, компенсації",165813,Центральний офіс,38558365,Україна,Зарплата,26001053732835,current,5011.12,Гончарук Світлана Петрівна,,фізична особа
Самопоміч,Київ,84,2018-12-14,270,"Заробітна плата, премії","Заробітна плата, лікарняні, вагітності, відрядження, компенсації",165812,Центральний офіс,38558365,Україна,Зарплата,26001053732835,current,2415.00,Демедюк Сніжана Василівна,,фізична особа
Самопоміч,"Волинська область, Камінь-Каширський район, Камінь-Каширський",84,2018-12-14,270,"Заробітна плата, премії","Заробітна плата, лікарняні, вагітності, відрядження, компенсації",165811,Центральний офіс,38558365,Україна,Зарплата,26001053732835,current,1499.31,Рогозіна Тетяна Олександрівна,,фізична особа
Самопоміч,"Львівська область, Борислав",84,2018-12-14,270,"Заробітна плата, премії","Заробітна плата, лікарняні, вагітності, відрядження, компенсації",165810,Центральний офіс,38558365,Україна,Зарплата,26001053732835,current,2741.02,Маринчак Марта Ярославівна,,фізична особа
Самопоміч,"Львівська область, Львів",84,2018-12-14,270,"Заробітна плата, премії","Заробітна плата, лікарняні, вагітності, відрядження, компенсації",165809,Центральний офіс,38558365,Україна,Зарплата,26001053732835,current,4749.50,Окрепка Ілона Геннадіївна,,фізична особа
Самопоміч,"Черкаська область, Чорнобаївський район",84,2018-12-14,270,"Заробітна плата, премії","Заробітна плата, лікарняні, вагітності, відрядження, компенсації",165808,Центральний офіс,38558365,Україна,Зарплата,26001053732835,current,3002.65,Заїка Наталія Михайлівна,,фізична особа
Самопоміч,"Кіровоградська область, Кропивницький",84,2018-12-14,270,"Заробітна плата, премії","Заробітна плата, лікарняні, вагітності, відрядження, компенсації",165807,Центральний офіс,38558365,Україна,Зарплата,26001053732835,current,3501.75,Савенко Владислав Сергійович,,фізична особа
Самопоміч,"Черкаська область, Черкаси",84,2018-12-14,270,"Заробітна плата, премії","Заробітна плата, лікарняні, вагітності, відрядження, компенсації",165806,Центральний офіс,38558365,Україна,Зарплата,26001053732835,current,1498.51,Скічко Вʼячеслав Павлович,,фізична особа
Самопоміч,"Волинська область, Луцьк",84,2018-12-14,270,"Заробітна плата, премії","Заробітна плата, лікарняні, вагітності, відрядження, компенсації",165805,Центральний офіс,38558365,Україна,Зарплата,26001053732835,current,2515.62,Ліщук Андрій Іванович,,фізична особа
Самопоміч,"Миколаївська область, Миколаїв",84,2018-12-14,270,"Заробітна плата, премії","Заробітна плата, лікарняні, вагітності, відрядження, компенсації",165804,Центральний офіс,38558365,Україна,Зарплата,26001053732835,current,3791.55,Ішметова Лілія Кирилівна,,фізична особа
Самопоміч,"Чернігівська область, Чернігів",84,2018-12-14,270,"Заробітна плата, премії","Заробітна плата, лікарняні, вагітності, відрядження, компенсації",165803,Центральний офіс,38558365,Україна,Зарплата,26001053732835,current,974.05,Царик Олександра Михайлівна,,фізична особа
Самопоміч,"Тернопільська область, Тернопіль",84,2018-12-14,270,"Заробітна плата, премії","Заробітна плата, лікарняні, вагітності, відрядження, компенсації",165802,Центральний офіс,38558365,Україна,Зарплата,26001053732835,current,1791.12,Станкевич Марія Петрівна,,фізична особа
Самопоміч,"Кіровоградська область, Олександрія",84,2018-12-14,270,"Заробітна плата, премії","Заробітна плата, лікарняні, вагітності, відрядження, компенсації",165801,Центральний офіс,38558365,Україна,Зарплата,26001053732835,current,5011.12,Матвієнко Михайло Володимирович,,фізична особа
Самопоміч,"Львівська область, Львів",84,2018-12-14,270,"Заробітна плата, премії","Заробітна плата, лікарняні, вагітності, відрядження, компенсації",165800,Центральний офіс,38558365,Україна,Зарплата,26001053732835,current,4004.87,Шуплат Юлія Богданівна,,фізична особа
Самопоміч,Херсонська область,84,2018-12-14,270,"Заробітна плата, премії","Заробітна плата, лікарняні, вагітності, відрядження, компенсації",165799,Центральний офіс,38558365,Україна,Зарплата,26001053732835,current,2495.50,Подольський Дмитро Сергійович,,фізична особа
Самопоміч,"Львівська область, Дрогобицький район",84,2018-12-14,270,"Заробітна плата, премії","Заробітна плата, лікарняні, вагітності, відрядження, компенсації",165798,Центральний офіс,38558365,Україна,Зарплата,26001053732835,current,752.67,Оленич Сергій Романович,,фізична особа
Самопоміч,"Львівська область, Львів",84,2018-12-14,270,"Заробітна плата, премії","Заробітна плата, лікарняні, вагітності, відрядження, компенсації",165797,Центральний офіс,38558365,Україна,Зарплата,26001053732835,current,3002.65,Главацька Аліна Володимирівна,,фізична особа
Самопоміч,"Запорізька область, Запоріжжя",84,2018-12-14,270,"Заробітна плата, премії","Заробітна плата, лікарняні, вагітності, відрядження, компенсації",165796,Центральний офіс,38558365,Україна,Зарплата,26001053732835,current,5997.25,Корольов Олег Миколайович,,фізична особа
Самопоміч,"Чернігівська область, Срібнянський район, Срібне",84,2018-12-14,270,"Заробітна плата, премії","Заробітна плата, лікарняні, вагітності, відрядження, компенсації",165795,Центральний офіс,38558365,Україна,Зарплата,26001053732835,current,1006.25,Вовчук Дмитро Васильович,,фізична особа
Самопоміч,"Житомирська область, Житомир",84,2018-12-14,270,"Заробітна плата, премії","Заробітна плата, лікарняні, вагітності, відрядження, компенсації",165794,Центральний офіс,38558365,Україна,Зарплата,26001053732835,current,7506.62,Змаженко Анна Сергіївна,,фізична особа
Самопоміч,"Львівська область, Львів",84,2018-12-14,270,"Заробітна плата, премії","Заробітна плата, лікарняні, вагітності, відрядження, компенсації",165793,Центральний офіс,38558365,Україна,Зарплата,26001053732835,current,2515.62,Письменна Тетяна Олександрівна,,фізична особа
Самопоміч,"Київська обл., Біла Церква",84,2018-12-14,270,"Заробітна плата, премії","Заробітна плата, лікарняні, вагітності, відрядження, компенсації",165792,Центральний офіс,38558365,Україна,Зарплата,26001053732835,current,2515.62,Погребняк Юлія Ігорівна,,фізична особа
Самопоміч,"Львівська область, Мостиський район, Мостиська",84,2018-12-14,270,"Заробітна плата, премії","Заробітна плата, лікарняні, вагітності, відрядження, компенсації",165791,Центральний офіс,38558365,Україна,Зарплата,26001053732835,current,1750.87,Олешко Оксана Богданівна,,фізична особа
Самопоміч,"Львівська область, Львів",84,2018-12-14,270,"Заробітна плата, премії","Заробітна плата, лікарняні, вагітності, відрядження, компенсації",165790,Центральний офіс,38558365,Україна,Зарплата,26001053732835,current,4004.87,Мотус Оксана Іванівна,,фізична особа
Самопоміч,"Вінницька область, Барський район, Бар",84,2018-12-14,270,"Заробітна плата, премії","Заробітна плата, лікарняні, вагітності, відрядження, компенсації",165789,Центральний офіс,38558365,Україна,Зарплата,26001053732835,current,1127.00,Крикливий Олександр Володимирович,,фізична особа
Самопоміч,"Черкаська область, Корсунь-Шевченківський район, Корсунь-Шевченківський",84,2018-12-14,270,"Заробітна плата, премії","Заробітна плата, лікарняні, вагітності, відрядження, компенсації",165788,Центральний офіс,38558365,Україна,Зарплата,26001053732835,current,1791.12,Слюсаренко Ірина Сергіївна,,фізична особа
Самопоміч,"Львівська область, Старосамбірський район, Старий Самбір",84,2018-12-14,270,"Заробітна плата, премії","Заробітна плата, лікарняні, вагітності, відрядження, компенсації",165787,Центральний офіс,38558365,Україна,Зарплата,26001053732835,current,1498.51,Федечко Наталія Зеновіївна,,фізична особа
Самопоміч,"Івано-Франківська область, Івано-Франківськ",84,2018-12-14,270,"Заробітна плата, премії","Заробітна плата, лікарняні, вагітності, відрядження, компенсації",165786,Центральний офіс,38558365,Україна,Зарплата,26001053732835,current,3501.75,Яковишин Володимир Юрійович,,фізична особа
Самопоміч,"Луганська область, Сєвєродонецьк",84,2018-12-14,270,"Заробітна плата, премії","Заробітна плата, лікарняні, вагітності, відрядження, компенсації",165785,Центральний офіс,38558365,Україна,Зарплата,26001053732835,current,2817.50,Одарченко Катерина Олександрівна,,фізична особа
Самопоміч,"Львівська область, Львів",84,2018-12-14,270,"Заробітна плата, премії","Заробітна плата, лікарняні, вагітності, відрядження, компенсації",165784,Центральний офіс,38558365,Україна,Зарплата,26001053732835,current,4004.87,Варунок Галина Степанівна,,фізична особа
Самопоміч,"Одеська область, Одеса",84,2018-12-14,270,"Заробітна плата, премії","Заробітна плата, лікарняні, вагітності, відрядження, компенсації",165783,Центральний офіс,38558365,Україна,Зарплата,26001053732835,current,3501.75,Дейнега Світлана Іванівна,,фізична особа
Самопоміч,"Львівська область, Пустомитівський район",84,2018-12-14,270,"Заробітна плата, премії","Заробітна плата, лікарняні, вагітності, відрядження, компенсації",165782,Центральний офіс,38558365,Україна,Зарплата,26001053732835,current,752.67,Ільків Олег Олегович,,фізична особа
Самопоміч,"Сумська область, Липоводолинський район",84,2018-12-14,270,"Заробітна плата, премії","Заробітна плата, лікарняні, вагітності, відрядження, компенсації",165781,Центральний офіс,38558365,Україна,Зарплата,26001053732835,current,1851.50,Педько Марина Олексіївна,,фізична особа
Самопоміч,"Запорізька область, Запоріжжя",84,2018-12-14,270,"Заробітна плата, премії","Заробітна плата, лікарняні, вагітності, відрядження, компенсації",165780,Центральний офіс,38558365,Україна,Зарплата,26001053732835,current,1610.00,Бойко Борис Олександрович,,фізична особа
Самопоміч,"Чернігівська область, Ніжин",84,2018-12-14,270,"Заробітна плата, премії","Заробітна плата, лікарняні, вагітності, відрядження, компенсації",165779,Центральний офіс,38558365,Україна,Зарплата,26001053732835,current,2012.50,Лях Владислав Михайлович,,фізична особа
Самопоміч,"Миколаївська область, Новобузький район, Новий Буг",84,2018-12-14,270,"Заробітна плата, премії","Заробітна плата, лікарняні, вагітності, відрядження, компенсації",165778,Центральний офіс,38558365,Україна,Зарплата,26001053732835,current,752.67,Шевченко Валерій Вікторович,,фізична особа
Самопоміч,"Чернігівська область, Чернігів",84,2018-12-14,270,"Заробітна плата, премії","Заробітна плата, лікарняні, вагітності, відрядження, компенсації",165777,Центральний офіс,38558365,Україна,Зарплата,26001053732835,current,885.50,Травінцева Ганна Анатоліївна,,фізична особа
Самопоміч,"Тернопільська область, Тернопіль",84,2018-12-14,270,"Заробітна плата, премії","Заробітна плата, лікарняні, вагітності, відрядження, компенсації",165776,Центральний офіс,38558365,Україна,Зарплата,26001053732835,current,4004.87,Гарасимів Зоряна Володимирівна,,фізична особа
Самопоміч,Львівська область,84,2018-12-14,270,"Заробітна плата, премії","Заробітна плата, лікарняні, вагітності, відрядження, компенсації",165775,Центральний офіс,38558365,Україна,Зарплата,26001053732835,current,4004.87,Давидович Любов Павлівна,,фізична особа
Самопоміч,"Львівська область, Львів",84,2018-12-14,270,"Заробітна плата, премії","Заробітна плата, лікарняні, вагітності, відрядження, компенсації",165774,Центральний офіс,38558365,Україна,Зарплата,26001053732835,current,2515.62,Притула Назар Ігорович,,фізична особа
Самопоміч,"Вінницька область, Оратівський район, Оратів",84,2018-12-14,270,"Заробітна плата, премії","Заробітна плата, лікарняні, вагітності, відрядження, компенсації",165773,Центральний офіс,38558365,Україна,Зарплата,26001053732835,current,1501.32,Хитрич Віктор Володимирович,,фізична особа
Самопоміч,"Вінницька область, Гайсинський район, Гайсин",84,2018-12-14,270,"Заробітна плата, премії","Заробітна плата, лікарняні, вагітності, відрядження, компенсації",165772,Центральний офіс,38558365,Україна,Зарплата,26001053732835,current,4004.87,Франтовська Оксана Миколаївна,,фізична особа
Самопоміч,Київ,84,2018-12-14,270,"Заробітна плата, премії","Заробітна плата, лікарняні, вагітності, відрядження, компенсації",165771,Центральний офіс,38558365,Україна,Зарплата,26001053732835,current,3151.57,Степанюк Ірина Анатоліївна,,фізична особа
Самопоміч,Київ,84,2018-12-14,270,"Заробітна плата, премії","Заробітна плата, лікарняні, вагітності, відрядження, компенсації",165770,Центральний офіс,38558365,Україна,Зарплата,26001053732835,current,1006.25,Козяр Олександр Іванович,,фізична особа
Самопоміч,"Львівська область, Львів",84,2018-12-14,270,"Заробітна плата, премії","Заробітна плата, лікарняні, вагітності, відрядження, компенсації",165769,Центральний офіс,38558365,Україна,Зарплата,26001053732835,current,3501.75,Мостюк Софія Андріївна,,фізична особа
Самопоміч,Київ,84,2018-12-14,270,"Заробітна плата, премії","Заробітна плата, лікарняні, вагітності, відрядження, компенсації",165768,Центральний офіс,38558365,Україна,Зарплата,26001053732835,current,2998.62,Книш Катерина Олегівна,,фізична особа
